Workbook

Sheet AER only (hidden)
B1: Data in these columns used for data validation and database purposes.
B2: Date last modified: | C2: 2017-01-16 | D2: added (Albury and Victora) for AGN
C3: 2016-10-17 | D3: updated TransGrid's correct legal name, corrected TasNetworks (T) to June financial year
C4: 2017-02-01 | D4: inserted Power and Water, added NRs (dms_FeederCat_1 and dms_FeederCat_2)
C5: 2017-03-03 | D5: inserted AEMO as a business | AB5: FOR ELECTRICITY BUSINESSES ONLY
C6: 2018-03-28 | D6: major changes to accommodate STPIS
C7: Template Version | D7: 5 | AB7: Feeder Types | AF7: TasNetworks (D) | AG7: MAIFI flag | AH7: Feeder Names
AB8: CBD | AC8: Urban | AD8: Short rural | AE8: long rural | AF8: EXTRA
B9: dms_TradingName_List | C9: dms_TradingNameFull_List | D9: dms_ABN_List | E9: dms_JurisdictionList | F9: dms_Sector_List | G9: dms_Segment_List | H9: dms_FormControl_List | I9: dms_RPT_List | J9: dms_RPTMonth_List | K9: dms_CRCPlength_List | L9: dms_FRCPlength_List | M9: dms_663_List | N9: dms_DeterminationRef_List | O9: dms_Addr1_List | P9: dms_Addr2_List | Q9: dms_Suburb_List | R9: dms_State_List | S9: dms_PostCode_List | T9: dms_PAddr1_List | U9: dms_PAddr2_List | V9: dms_PSuburb_List | W9: dms_PState_List | X9: dms_PPostCode_List | Y9: dms_ContactName1_List | Z9: dms_ContactPh1_List | AA9: dms_ContactEmail_List | AB9: dms_CBD_flag | AC9: dms_Urban_flag | AD9: dms_ShortRural_flag | AE9: dms_LongRural_flag | AF9: dms_FeederType_5_flag | AG9: dms_MAIFI_flag_List | AH9: dms_FeederName_1 | AI9: dms_FeederName_2 | AJ9: dms_FeederName_3 | AK9: dms_FeederName_4 | AL9: dms_FeederName_5 | AM9: Column1
B10: ActewAGL Distribution | C10: ActewAGL Distribution | D10: 76670568688 | E10: ACT | F10: Electricity | G10: Distribution | H10: Revenue cap | I10: Financial | J10: June | K10: 5 | L10: 5 | M10: 5 | N10: 2014-19 Distribution Determination | O10: 40 Bunda Street | Q10: CANBERRA | R10: ACT | S10: 2600 | T10: GPO BOX 366 | V10: CANBERRA | W10: ACT | X10: 2601 | Y10: Robert Walker | Z10: 02 6248 3847 | AA10: robert.walker@actewagle.com.au | AB10: NO | AC10: YES | AD10: YES | AE10: NO | AF10: NO | AH10: CBD | AI10: Urban | AJ10: Short rural | AK10: Long rural | AM10: ActewAGL Distribution
B11: ActewAGL Distribution (Tx Assets) | C11: ActewAGL Distribution (Tx Assets) | D11: 76670568688 | E11: ACT | F11: Electricity | G11: Distribution | H11: Revenue cap | I11: Financial | J11: June | K11: 5 | L11: 5 | M11: 5 | N11: distribution determination | O11: 40 Bunda Street | Q11: CANBERRA | R11: ACT | S11: 2600 | T11: GPO BOX 366 | V11: CANBERRA | W11: ACT | X11: 2601 | Y11: Robert Walker | Z11: 02 6248 3847 | AA11: robert.walker@actewagle.com.au | AB11: NO | AC11: YES | AD11: YES | AE11: NO | AF11: NO | AH11: CBD | AI11: Urban | AJ11: Short rural | AK11: Long rural | AM11: ActewAGL Distribution (Tx Assets)
B12: ActewAGL Gas | C12: ActewAGL Gas | D12: 76670568688 | E12: ACT | F12: Gas | G12: Distribution | H12: Weighted average price cap | I12: Financial | J12: June | K12: 5 | L12: 5 | M12: x | O12: 40 Bunda Street | Q12: CANBERRA | R12: ACT | S12: 2600 | T12: GPO BOX 366 | V12: CANBERRA | W12: ACT | X12: 2601 | Y12: Philip Deamer | Z12: 02 6248 3438 | AA12: GasAAReview@actewagl.com.au | AH12: CBD | AI12: Urban | AJ12: Short rural | AK12: Long rural | AM12: ActewAGL Gas
B13: AEMO | C13: Australian Energy Market Operator Ltd | D13: 94072010327 | E13: Vic | F13: Electricity | G13: Transmission | H13: - | I13: Financial | J13: March | K13: 5 | L13: 5 | M13: x | N13: - | O13: Level 22 | P13: 530 Collins Street | Q13: MELBOURNE | R13: VIC | S13: 3000 | T13: GPO Box 2008 | V13: MELBOURNE | W13: VIC | X13: 3001 | AB13: n/a | AC13: n/a | AD13: n/a | AE13: n/a | AF13: n/a | AH13: CBD | AI13: Urban | AJ13: Short rural | AK13: Long rural | AM13: AEMO
B14: AGN (Albury and Victoria) | C14: Australian Gas Networks Limited (reporting data for Albury and Victoria) | D14: 19078551685 | E14: Vic | F14: Gas | G14: Distribution | H14: Weighted average price cap | I14: Calendar | J14: December | K14: 5 | L14: 5 | M14: x | O14: Level 6 | P14: 400 King William Street | Q14: ADELAIDE | R14: SA | S14: 5000 | T14: PO Box 6468 | U14: Halifax Street | V14: ADELAIDE | W14: SA | X14: 5000 | Y14: Craig de Laine | Z14: 08 8418 1129 | AA14: craig.delaine@agn.com.au | AB14: n/a | AC14: n/a | AD14: n/a | AE14: n/a | AF14: n/a | AH14: CBD | AI14: Urban | AJ14: Short rural | AK14: Long rural | AM14: AGN (Albury)
B15: AGN (Albury) | C15: Australian Gas Networks Limited (reporting data for Albury) | D15: 19078551685 | E15: Vic | F15: Gas | G15: Distribution | H15: Weighted average price cap | I15: Calendar | J15: December | K15: 5 | L15: 5 | M15: x | O15: Level 6 | P15: 400 King William Street | Q15: ADELAIDE | R15: SA | S15: 5000 | T15: PO Box 6468 | U15: Halifax Street | V15: ADELAIDE | W15: SA | X15: 5000 | Y15: Craig de Laine | Z15: 08 8418 1129 | AA15: craig.delaine@agn.com.au | AB15: n/a | AC15: n/a | AD15: n/a | AE15: n/a | AF15: n/a | AH15: CBD | AI15: Urban | AJ15: Short rural | AK15: Long rural
B16: AGN (SA) | C16: Australian Gas Networks Limited (reporting data for SA) | D16: 19078551685 | E16: SA | F16: Gas | G16: Distribution | H16: Weighted average price cap | I16: Financial | J16: June | K16: 5 | L16: 5 | M16: 5 | N16: distribution determination | O16: Level 6 | P16: 400 King William Street | Q16: ADELAIDE | R16: SA | S16: 5000 | T16: PO Box 6468 | U16: Halifax Street | V16: ADELAIDE | W16: SA | X16: 5000 | Y16: Craig de Laine | Z16: 08 8418 1129 | AA16: craig.delaine@agn.com.au | AB16: n/a | AC16: n/a | AD16: n/a | AE16: n/a | AF16: n/a | AH16: CBD | AI16: Urban | AJ16: Short rural | AK16: Long rural | AM16: AGN (SA)
B17: AGN (Victoria) | C17: Australian Gas Networks Limited (reporting data for Victoria) | D17: 19078551685 | E17: Vic | F17: Gas | G17: Distribution | H17: Weighted average price cap | I17: Calendar | J17: December | K17: 5 | L17: 5 | M17: x | O17: Level 6 | P17: 400 King William Street | Q17: ADELAIDE | R17: SA | S17: 5000 | T17: PO Box 6468 | U17: Halifax Street | V17: ADELAIDE | W17: SA | X17: 5000 | Y17: Craig de Laine | Z17: 08 8418 1129 | AA17: craig.delaine@agn.com.au | AB17: n/a | AC17: n/a | AD17: n/a | AE17: n/a | AF17: n/a | AH17: CBD | AI17: Urban | AJ17: Short rural | AK17: Long rural | AM17: AGN (Victoria)
B18: Amadeus | C18: APT Pipelines (NT) Pty Ltd | D18: 39009737393 | E18: NT | F18: Gas | G18: Transmission | H18: Weighted average price cap | I18: Financial | J18: June | K18: 5 | L18: 5 | M18: x | N18: n/a | O18: Level 19, HSBC Building | P18: 580 George Street | Q18: SYDNEY | R18: NSW | S18: 2000 | T18: Level 19, HSBC Building | U18: 580 George Street | V18: SYDNEY | W18: NSW | X18: 2000 | Y18: Alexandra Curran | Z18: 02 9275 0020 | AA18: alexandra.curran@apa.com.au | AB18: n/a | AC18: n/a | AD18: n/a | AE18: n/a | AF18: n/a | AH18: CBD | AI18: Urban | AJ18: Short rural | AK18: Long rural | AM18: Amadeus
B19: APA GasNet | C19: APA GasNet Australia (Operations) Pty Ltd | D19: 065083009 | E19: Vic | F19: Gas | G19: Transmission | H19: Weighted average price cap | I19: Calendar | J19: December | K19: 5 | L19: 5 | M19: x | O19: Level 19, HSBC Building | P19: 580 George Street | Q19: SYDNEY | R19: NSW | S19: 2000 | T19: PO Box R41 | V19: ROYAL EXCHANGE | W19: NSW | X19: 1225 | Y19: Alexandra Curran | Z19: 02 9275 0020 | AA19: alexandra.curran@apa.com.au | AB19: n/a | AC19: n/a | AD19: n/a | AE19: n/a | AF19: n/a | AH19: CBD | AI19: Urban | AJ19: Short rural | AK19: Long rural | AM19: APA GasNet
B20: Ausgrid | C20: Ausgrid | D20: 78508211731 | E20: NSW | F20: Electricity | G20: Distribution | H20: Revenue cap | I20: Financial | J20: June | K20: 5 | L20: 5 | M20: 5 | N20: 2014-19 Distribution Determination | O20: 570 George St | Q20: SYDNEY | R20: NSW | S20: 2000 | T20: GPO Box 4009 | V20: SYDNEY | W20: NSW | X20: 2001 | Y20: John Thomson | Z20: 02 9269 2312 | AA20: john.thomson@ausgrid.com.au | AB20: YES | AC20: YES | AD20: YES | AE20: YES | AF20: NO | AH20: CBD | AI20: Urban | AJ20: Short rural | AK20: Long rural | AM20: Ausgrid
B21: Ausgrid (Tx Assets) | C21: Ausgrid (Tx Assets) | D21: 67505337385 | E21: NSW | F21: Electricity | G21: Distribution | H21: Revenue cap | I21: Financial | J21: June | K21: 5 | L21: 5 | M21: 5 | N21: distribution determination | O21: 570 George St | Q21: SYDNEY | R21: NSW | S21: 2000 | T21: GPO Box 4009 | V21: SYDNEY | W21: NSW | X21: 2001 | Y21: John Thomson | Z21: 02 9269 2312 | AA21: john.thomson@ausgrid.com.au | AB21: YES | AC21: YES | AD21: YES | AE21: YES | AF21: NO | AH21: CBD | AI21: Urban | AJ21: Short rural | AK21: Long rural | AM21: Ausgrid (Tx Assets)
B22: AusNet (D) | C22: AusNet Electricity Services Pty Ltd | D22: 91064651118 | E22: Vic | F22: Electricity | G22: Distribution | H22: Revenue cap | I22: Calendar | J22: December | K22: 5 | L22: 5 | M22: 2 | N22: 2016-20 Distribution Determination | O22: Level 32 | P22: 2 Southbank Boulevard | Q22: SOUTHBANK | R22: Vic | S22: 3006 | T22: Locked Bag 14051 | V22: MELBOURNE CITY MAIL CENTRE | W22: VIC | X22: 8001 | Y22: please provide contact details | AC22: YES | AD22: YES | AE22: YES | AF22: NO | AH22: CBD | AI22: Urban | AJ22: Short rural | AK22: Long rural | AM22: AusNet (D)
B23: AusNet (Gas) | C23: AusNet Gas Services | D23: 086015036 | E23: Vic | F23: Gas | G23: Distribution | H23: Weighted average price cap | I23: Calendar | J23: December | K23: 5 | L23: 5 | M23: X | O23: Level 19, HSBC Building | P23: 580 George Street | Q23: SYDNEY | R23: NSW | S23: 2000 | T23: PO Box R41 | V23: ROYAL EXCHANGE | W23: NSW | X23: 1225 | Y23: Alexandra Curran | Z23: 02 9275 0020 | AA23: alexandra.curran@apa.com.au | AB23: n/a | AC23: n/a | AD23: n/a | AE23: n/a | AF23: n/a | AH23: CBD | AI23: Urban | AJ23: Short rural | AK23: Long rural | AM23: AusNet (Gas)
B24: AusNet (T) | C24: Ausnet Services (Transmission) Ltd | D24: 48116124362 | E24: Vic | F24: Electricity | G24: Transmission | H24: Revenue cap | I24: Financial | J24: March | K24: 5 | L24: 5 | M24: 2 | N24: transmission determination | O24: Level 32 | P24: 2 Southbank Boulevard | Q24: SOUTHBANK | R24: Vic | S24: 3006 | T24: Locked Bag 14051 | V24: MELBOURNE CITY MAIL CENTRE | W24: Vic | X24: 8001 | Y24: Clare Thompson | Z24: 03 9695 6670 | AA24: clare.e.thompson@ausnetservices.com.au | AB24: n/a | AC24: n/a | AD24: n/a | AE24: n/a | AF24: n/a | AH24: CBD | AI24: Urban | AJ24: Short rural | AK24: Long rural | AM24: AusNet (T)
B25: Australian Distribution Co. | C25: Australian Distribution Co. | D25: 11222333444 | E25: - | F25: Electricity | G25: Distribution | H25: Revenue cap | I25: Financial | J25: June | K25: 5 | L25: 5 | M25: 2 | N25: distribution determination | O25: 123 Straight Street | Q25: SYDNEY | R25: NSW | S25: 2000 | T25: PO Box 123 | V25: SYDNEY | W25: NSW | X25: 2000 | Y25: Bob Smith | Z25: 02 1234 5678 | AA25: bob@auselec.net.au | AB25: n/a | AC25: n/a | AD25: n/a | AE25: n/a | AF25: NO | AH25: CBD | AI25: Urban | AJ25: Short rural | AK25: Long rural | AM25: Australian Distribution Co.
B26: Australian Distribution Co. (Vic) | C26: Australian Distribution Co. (Victoria) | D26: 11222333444 | E26: Vic | F26: Electricity | G26: Distribution | H26: Revenue cap | I26: Calendar | J26: December | K26: 5 | L26: 5 | M26: 2 | N26: distribution determination | O26: 123 Straight Street | Q26: MELBOURNE | R26: Vic | S26: 3000 | T26: PO Box 123 | V26: MELBOURNE | W26: VIC | X26: 3000 | Y26: Bob Smith | Z26: 02 1234 5678 | AA26: bob@auselec.net.au | AB26: n/a | AC26: n/a | AD26: n/a | AE26: n/a | AF26: NO | AH26: CBD | AI26: Urban | AJ26: Short rural | AK26: Long rural | AM26: Australian Distribution Co. (Vic)
B27: Australian Transmission Co. | C27: Australian Transmission Co. | D27: 11222333444 | E27: - | F27: Electricity | G27: Transmission | H27: Revenue cap | I27: Financial | J27: June | K27: 5 | L27: 5 | M27: 5 | N27: transmission determination | O27: 123 Straight Street | Q27: SYDNEY | R27: NSW | S27: 2000 | T27: PO Box 123 | V27: SYDNEY | W27: NSW | X27: 2000 | Y27: Bob Smith | Z27: 02 1234 5678 | AA27: bob@auselec.net.au | AB27: n/a | AC27: n/a | AD27: n/a | AE27: n/a | AF27: NO | AH27: CBD | AI27: Urban | AJ27: Short rural | AK27: Long rural | AM27: Australian Transmission Co.
B28: Central Ranges Pipeline (D) | C28: Central Ranges Pipeline Pty Ltd | D28: 108218355 | E28: NSW | F28: Gas | G28: Distribution | H28: Weighted average price cap | I28: Financial | J28: June | K28: 15 | L28: 5 | M28: 5 | N28: distribution determination | O28: Level 19 | P28: 580 George Street | Q28: SYDNEY | R28: NSW | S28: 2000 | T28: PO Box R41 | V28: ROYAL EXCHANGE | W28: NSW | X28: 1225 | Y28: Scott Young | Z28: 02 9275 0031 | AA28: scott.young@apa.com.au | AB28: n/a | AC28: n/a | AD28: n/a | AE28: n/a | AF28: n/a | AH28: CBD | AI28: Urban | AJ28: Short rural | AK28: Long rural
B29: Central Ranges Pipeline (T) | C29: Central Ranges Pipeline Pty Ltd | D29: 108218355 | E29: NSW | F29: Gas | G29: Distribution | H29: Weighted average price cap | I29: Financial | J29: June | K29: 14 | L29: 5 | M29: 5 | N29: transmission determination | O29: Level 19 | P29: 580 George Street | Q29: SYDNEY | R29: NSW | S29: 2000 | T29: PO Box R41 | V29: ROYAL EXCHANGE | W29: NSW | X29: 1225 | Y29: Scott Young | Z29: 02 9275 0031 | AA29: scott.young@apa.com.au | AB29: n/a | AC29: n/a | AD29: n/a | AE29: n/a | AF29: n/a | AH29: CBD | AI29: Urban | AJ29: Short rural | AK29: Long rural
B30: CitiPower | C30: CitiPower | D30: 76064651056 | E30: Vic | F30: Electricity | G30: Distribution | H30: Revenue cap | I30: Calendar | J30: December | K30: 5 | L30: 5 | M30: 2 | N30: 2016-20 Distribution Determination | O30: 40 Market Street | Q30: MELBOURNE | R30: Vic | S30: 3000 | T30: Locked Bag 14090 | V30: MELBOURNE | W30: VIC | X30: 8001 | Y30: Hannah Williams | Z30: 03 9683 4088 | AA30: hwilliams@powercor.com.au | AB30: YES | AC30: YES | AD30: NO | AE30: NO | AF30: NO | AH30: CBD | AI30: Urban | AJ30: Short rural | AK30: Long rural | AM30: CitiPower
B31: Directlink | C31: Directlink | D31: 16779340889 | E31: Qld | F31: Electricity | G31: Transmission | H31: Revenue cap | I31: Financial | J31: June | K31: 9 | L31: 5 | M31: 5 | N31: transmission determination | O31: Level 19, HSBC Building | P31: 580 George Street | Q31: SYDNEY | R31: NSW | S31: 2000 | T31: PO Box R41 | V31: ROYAL EXCHANGE | W31: NSW | X31: 1225 | Y31: Scott Young | Z31: 02 9275 0031 | AA31: scott.young@apa.com.au | AB31: n/a | AC31: n/a | AD31: n/a | AE31: n/a | AF31: n/a | AH31: CBD | AI31: Urban | AJ31: Short rural | AK31: Long rural | AM31: Directlink
B32: ElectraNet | C32: ElectraNet | D32: 41094482416 | E32: SA | F32: Electricity | G32: Transmission | H32: Revenue cap | I32: Financial | J32: June | K32: 5 | L32: 5 | M32: 5 | N32: transmission determination | O32: 52-55 East Terrace | P32: Rymill Park | Q32: ADELAIDE | R32: SA | S32: 5000 | T32: PO Box 7096 | U32: Hutt Street Post Office | V32: ADELAIDE | W32: SA | X32: 5000 | Y32: Bill Jackson | Z32: 08 8404 7969 | AA32: jackson.bill@electranet.com.au | AB32: n/a | AC32: n/a | AD32: n/a | AE32: n/a | AF32: n/a | AH32: CBD | AI32: Urban | AJ32: Short rural | AK32: Long rural | AM32: ElectraNet
B33: Endeavour Energy | C33: Endeavour Energy | D33: 11247365823 | E33: NSW | F33: Electricity | G33: Distribution | H33: Revenue cap | I33: Financial | J33: June | K33: 5 | L33: 5 | M33: 5 | N33: 2014-19 Distribution Determination | O33: 51 Huntingwood Drive | Q33: HUNTINGWOOD | R33: NSW | S33: 2148 | T33: PO Box 811 | V33: SEVEN HILLS | W33: NSW | X33: 1730 | Y33: Jon Hocking | Z33: 02 9853 4386 / 0407 348 156 | AA33: Jon.Hocking@Endeavourenergy.com.au | AB33: NO | AC33: YES | AD33: YES | AE33: YES | AF33: NO | AH33: CBD | AI33: Urban | AJ33: Short rural | AK33: Long rural | AM33: Endeavour Energy
B34: Energex | C34: Energex | D34: 40078849055 | E34: Qld | F34: Electricity | G34: Distribution | H34: Revenue cap | I34: Financial | J34: June | K34: 5 | L34: 5 | M34: 5 | N34: 2015-20 Distribution Determination | O34: 26 Reddacliff Street | Q34: NEWSTEAD | R34: Qld | S34: 4006 | T34: 26 Reddacliff Street | V34: NEWSTEAD | W34: QLD | X34: 4006 | Y34: Nicola Roscoe | Z34: 07 3664 5891 | AA34: nicolaroscoe@energex.com.au | AB34: YES | AC34: YES | AD34: YES | AE34: NO | AF34: NO | AH34: CBD | AI34: Urban | AJ34: Short rural | AK34: Long rural | AM34: Energex
B35: Ergon Energy | C35: Ergon Energy | D35: 50087646062 | E35: Qld | F35: Electricity | G35: Distribution | H35: Revenue cap | I35: Financial | J35: June | K35: 5 | L35: 5 | M35: 5 | N35: 2015-20 Distribution Determination | O35: 22 Walker Street | Q35: TOWNSVILLE | R35: Qld | S35: 4810 | T35: Po Box 264 | V35: FORTITUDE VALLEY | W35: QLD | X35: 4006 | Y35: Jenny Doyle, Group Manager Regulatory Affairs | Z35: (07) 3851 6416 | AA35: jenny.doyle@ergon.com.au | AB35: NO | AC35: YES | AD35: YES | AE35: YES | AF35: NO | AH35: CBD | AI35: Urban | AJ35: Short rural | AK35: Long rural | AM35: Ergon Energy
B36: Essential Energy | C36: Essential Energy | D36: 37428185226 | E36: NSW | F36: Electricity | G36: Distribution | H36: Revenue cap | I36: Financial | J36: June | K36: 5 | L36: 5 | M36: 5 | N36: 2014-19 Distribution Determination | O36: 8 Buller Street | Q36: PORT MACQUARIE | R36: NSW | S36: 2444 | T36: PO Box 5730 | V36: PORT MACQUARIE | W36: NSW | X36: 2444 | Y36: Catherine Waddell | Z36: 02 6338 3553 | AA36: catherine.waddell@essentialenergy.com.au | AB36: NO | AC36: NO | AD36: YES | AE36: YES | AF36: NO | AH36: CBD | AI36: Urban | AJ36: Short rural | AK36: Long rural | AM36: Essential Energy
B37: Jemena Electricity | C37: Jemena Electricity | D37: 82064651083 | E37: Vic | F37: Electricity | G37: Distribution | H37: Revenue cap | I37: Calendar | J37: December | K37: 5 | L37: 5 | M37: 2 | N37: 2016-20 Distribution Determination | O37: Level 16 | P37: 567 Collins Street | Q37: MELBOURNE | R37: VIC | S37: 3000 | T37: PO Box 16182 | V37: MELBOURNE | W37: VIC | X37: 8001 | Y37: Matthew Serpell | Z37: 03 9173 8231 | AA37: matthew.serpell@jemena.com.au | AB37: NO | AC37: NO | AD37: YES | AE37: NO | AF37: NO | AH37: CBD | AI37: Urban | AJ37: Short rural | AK37: Long rural | AM37: Jemena Electricity
B38: JGN | C38: Jemena Gas Networks (NSW) Ltd | D38: 003 004 322 | E38: NSW | F38: Gas | G38: Distribution | H38: Weighted average price cap | I38: Financial | J38: June | K38: 5 | L38: 5 | Y38: please provide contact details | AB38: n/a | AC38: n/a | AD38: n/a | AE38: n/a | AF38: n/a | AH38: CBD | AI38: Urban | AJ38: Short rural | AK38: Long rural | AM38: JGN
B39: Multinet Gas | C39: Multinet Gas (DB No.1) Pty Ltd (ACN 086 026 986), Multinet Gas (DB No.2) Pty Ltd (ACN 086 230 122) | D39: 086026986 | E39: Vic | F39: Gas | G39: Distribution | H39: Weighted average price cap | I39: Calendar | J39: December | K39: 5 | L39: 5 | M39: x | O39: 43-45 Centreway | Q39: MT WAVERLEY | R39: Vic | S39: 3149 | Y39: Andrew Schille | Z39: 03 8846 9860 | AA39: andrew.schille@ue.com.au | AB39: n/a | AC39: n/a | AD39: n/a | AE39: n/a | AF39: n/a | AH39: CBD | AI39: Urban | AJ39: Short rural | AK39: Long rural | AM39: Multinet Gas
B40: Murraylink | C40: Murraylink | D40: 79181207909 | E40: SA | F40: Electricity | G40: Transmission | H40: Revenue cap | I40: Financial | J40: June | K40: 5 | L40: 5 | M40: 5 | N40: transmission determination | O40: Level 19 | P40: 580 George Street | Q40: SYDNEY | R40: NSW | S40: 2000 | T40: PO Box R41 | V40: ROYAL EXCHANGE | W40: NSW | X40: 1225 | Y40: Scott Young | Z40: 02 9275 0031 | AA40: scott.young@apa.com.au | AB40: n/a | AC40: n/a | AD40: n/a | AE40: n/a | AF40: n/a | AH40: CBD | AI40: Urban | AJ40: Short rural | AK40: Long rural | AM40: Murraylink
B41: Power and Water | C41: Power and Water Corporation | D41: 15947352360 | E41: NT | F41: Electricity | G41: Distribution | H41: Revenue cap | I41: Financial | J41: June | K41: 5 | L41: 5 | M41: x | N41: distribution determination | O41: GPO Box 1921 | Q41: DARWIN | R41: NT | S41: 801 | T41: GPO Box 1921 | V41: DARWIN | W41: NT | X41: 801 | Y41: Lucy Moon | Z41: 08 8924 5822 | AA41: Lucy.Moon@powerwater.com.au | AB41: YES | AC41: YES | AD41: YES | AE41: YES | AF41: NO | AH41: CBD | AI41: Urban | AJ41: Short rural | AK41: Long rural
B42: Powercor Australia | C42: Powercor Australia | D42: 89064651109 | E42: Vic | F42: Electricity | G42: Distribution | H42: Revenue cap | I42: Calendar | J42: December | K42: 5 | L42: 5 | M42: 2 | N42: 2016-20 Distribution Determination | O42: 40 Market Street | Q42: MELBOURNE | R42: Vic | S42: 3000 | T42: Locked bag 14090 | V42: MELBOURNE | W42: VIC | X42: 8001 | Y42: Hannah Williams | Z42: 03 9683 4088 | AA42: hwilliams@powercor.com.au | AD42: YES | AE42: YES | AF42: NO | AH42: CBD | AI42: Urban | AJ42: Short rural | AK42: Long rural | AM42: Powercor Australia
B43: Powerlink | C43: Queensland Electricity Transmission Corporation Limited trading as Powerlink Queensland | D43: 82078849233 | E43: Qld | F43: Electricity | G43: Transmission | H43: Revenue cap | I43: Financial | J43: June | K43: 5 | L43: 5 | M43: 5 | N43: transmission determination | O43: 33 Harold St | Q43: VIRGINIA | R43: Qld | S43: 4014 | T43: PO Box 1193 | V43: VIRGINIA | W43: QLD | X43: 4014 | Y43: Jennifer Harris | Z43: 07 3860 2667 | AA43: jharris@powerlink.com.au | AB43: n/a | AC43: n/a | AD43: n/a | AE43: n/a | AF43: n/a | AH43: CBD | AI43: Urban | AJ43: Short rural | AK43: Long rural | AM43: Powerlink
B44: Roma to Brisbane Pipeline | C44: APT Petroleum Pipelines Limited t/a Roma to Brisbane Pipeline | D44: 009 737 393 | E44: Qld | F44: Gas | G44: Transmission | H44: Weighted average price cap | I44: Financial | J44: June | K44: 5 | L44: 5 | M44: x | N44: n/a | O44: 580 George Street | Q44: SYDNEY | R44: NSW | S44: 2000 | T44: PO Box R41 | V44: ROYAL EXCHANGE | W44: NSW | X44: 1225 | Y44: Mark Allen | Z44: 02 9275 0010 | AA44: mark.allen@apa.com.au | AB44: n/a | AC44: n/a | AD44: n/a | AE44: n/a | AF44: n/a | AH44: CBD | AI44: Urban | AJ44: Short rural | AK44: Long rural | AM44: Roma to Brisbane Pipeline
B45: SA Power Networks | C45: SA Power Networks | D45: 13332330749 | E45: SA | F45: Electricity | G45: Distribution | H45: Revenue cap | I45: Financial | J45: June | K45: 5 | L45: 5 | M45: 5 | N45: 2015-20 Distribution Determination | O45: 1 Anzac Highway | Q45: KESWICK | R45: SA | S45: 5035 | T45: GPO Box 77 | V45: ADELAIDE | W45: SA | X45: 5000 | Y45: Richard Sibly | Z45: 08 8404 5613 | AA45: richard.sibly@sapowernetworks.com.au | AB45: NO | AC45: NO | AD45: YES | AE45: YES | AF45: NO | AH45: CBD | AI45: Urban | AJ45: Short rural | AK45: Long rural | AM45: SA Power Networks
B46: TasNetworks (D) | C46: TasNetworks (D) | D46: 24167357299 | E46: Tas | F46: Electricity | G46: Distribution | H46: Revenue cap | I46: Financial | J46: June | K46: 5 | L46: 5 | M46: 5 | N46: distribution determination | O46: 1-7 Maria Street | Q46: LENAH VALLEY | R46: Tas | S46: 7008 | T46: PO Box 606 | V46: MOONAH | W46: Tas | X46: 7009 | Y46: John Sayers | Z46: 03 6271 6469 | AA46: john.sayers@tasnetworks.com.au | AB46: YES | AC46: YES | AD46: YES | AE46: YES | AF46: YES | AH46: Critical Infrastructure | AI46: High density commercial | AJ46: Urban | AK46: High density rural | AL46: Low density rural | AM46: TasNetworks (D)
B47: TasNetworks (T) | C47: TasNetworks (T) | D47: 24167357299 | E47: Tas | F47: Electricity | G47: Transmission | H47: Revenue cap | I47: Financial | J47: June | K47: 5 | L47: 5 | M47: 5 | N47: transmission determination | O47: 1-7 Maria Street | Q47: LENAH VALLEY | R47: Tas | S47: 7008 | T47: PO Box 606 | V47: MOONAH | W47: Tas | X47: 7009 | Y47: John Sayers | Z47: 03 6271 6469 | AA47: john.sayers@tasnetworks.com.au | AB47: n/a | AC47: n/a | AD47: n/a | AE47: n/a | AF47: n/a | AH47: CBD | AI47: Urban | AJ47: Short rural | AK47: Long rural | AM47: TasNetworks (T)
B48: TransGrid | C48: NSW Electricity Networks Operations Pty Ltd trading as TransGrid | D48: 70250995390 | E48: NSW | F48: Electricity | G48: Transmission | H48: Revenue cap | I48: Financial | J48: June | K48: 5 | L48: 4 | M48: 5 | N48: transmission determination | O48: 180 Thomas Street | Q48: SYDNEY | R48: NSW | S48: 2000 | T48: PO Box A1000 | V48: SYDNEY SOUTH | W48: NSW | X48: 1235 | Y48: Garrie Chubb | Z48: 0408 210 221 | AA48: garrie.chubb@transgrid.com.au | AB48: n/a | AC48: n/a | AD48: n/a | AE48: n/a | AF48: n/a | AH48: CBD | AI48: Urban | AJ48: Short rural | AK48: Long rural | AM48: TransGrid
B49: United Energy | C49: United Energy | D49: 70064651029 | E49: Vic | F49: Electricity | G49: Distribution | H49: Revenue cap | I49: Calendar | J49: December | K49: 5 | L49: 5 | M49: 2 | N49: 2016-20 Distribution Determination | O49: Level 3 | P49: 6 Nexus Court | Q49: MULGRAVE | R49: Vic | S49: 3149 | T49: PO Box 449 | V49: MOUNT WAVERLEY | W49: VIC | X49: 3170 | Y49: Mathew Abraham | Z49: 03 8846 9758 | AA49: mathew.abraham@ue.com.au | AB49: NO | AC49: NO | AD49: YES | AE49: NO | AF49: NO | AH49: CBD | AI49: Urban | AJ49: Short rural | AK49: Long rural | AM49: United Energy
B50: Western Power (D) | C50: Western Power (D) | D50: 18540492861 | E50: WA | F50: Electricity | G50: Distribution | H50: Revenue cap | I50: Financial | J50: June | K50: 12 | L50: 4 | M50: x | N50: distribution determination | O50: 363 Wellington Street | Q50: PERTH | R50: WA | S50: 6000 | T50: GPO Box L921 | V50: PERTH | W50: WA | X50: 6842 | Y50: Judy Hunter | Z50: 08 9326 6239 | AA50: judy.hunter@westernpower.com.au | AB50: NO | AC50: NO | AD50: YES | AE50: YES | AF50: NO | AG50: NO | AH50: CBD | AI50: Urban | AJ50: Short rural | AK50: Long rural | AM50: Western Power (D)
B51: Western Power (T) | C51: Western Power (T) | D51: 18540492861 | E51: WA | F51: Electricity | G51: Transmission | H51: Revenue cap | I51: Financial | J51: June | K51: 12 | L51: 4 | M51: x | N51: transmission determination | O51: 363 Wellington Street | Q51: PERTH | R51: WA | S51: 6000 | T51: GPO Box L921 | V51: PERTH | W51: WA | X51: 6842 | Y51: Judy Hunter | Z51: 08 9326 6239 | AA51: judy.hunter@westernpower.com.au | AB51: n/a | AC51: n/a | AD51: n/a | AE51: n/a | AF51: n/a | AH51: CBD | AI51: Urban | AJ51: Short rural | AK51: Long rural | AM51: Western Power (T)
Y54: For EB & Reset RINs only | AD54: For AARs only
B55: The Reg Year Ending (dms_RYE) must be set to the last year of the regulatory period. For forecast data is is usually (FRCP_y5) for actual it is a single year (CRY). For historical actual data the RYE will need to be set manually in the business details sheet by setting the dms_Multiyear_flag to 1 and putting the correct value in 'dms_Specified_FinalYear. See cells C67:C68 | G55: =IF(dms_RPT="financial",VALUE(LEFT(CRCP_y1,4)-1)&"-"&TEXT(VALUE(RIGHT(CRCP_y1,2)-1),"00"),VALUE(LEFT(CRCP_y1,4)-1)) -> 2014-15 | N55: Drop down selector box for CA & Reset RINs. | O55: For CA & Reset RINs only | Y55: for DNSP only | AD55: For DNSPs only | AJ55: Reason for interruption | AK55: dms_Reason_Interruption_Detailed | AL55: dms_Reason_Interruption | AM55: dms_STPIS_Exclusion_List | AN55: dms_020301_ProjectType_List | AO55: dms_020302_ProjectType_List
B56: dms_Model_List | C56: DELETE NR 'CRY' IF NOT AN ANNUAL RIN (EB, CA , ARR) | E56: dms_RYE_Formula_Result | N56: dms_0203_ProjectType | O56: dms_020303_01_UOM | P56: dms_020501_01_UOM | Q56: dms_020501_02_UOM | R56: dms_020501_03_UOM | S56: dms_020501_04_UOM | T56: dms_020603_01_UOM | U56: dms_020701_01_UOM | V56: dms_020701_02_UOM | W56: dms_040102_01_UOM | X56: dms_040102_04_UOM | Y56: dms_030601_01_UOM | Z56: dms_030601_02_UOM | AA56: dms_030701_01_UOM | AB56: dms_030702_01_UOM | AC56: dms_030703_01_UOM | AD56: dms_030605_UOM | AE56: dms_03060703_UOM | AJ56: Animal | AK56: Animal impact | AL56: Animal | AM56: Weather | AN56: New substation establishment | AO56: New line on new route - single circuit
B57: ARR | C57: ANNUAL REPORTING STATEMENT | E57: =LEFT(dms_SingleYear_FinalYear_Result,2)&RIGHT(dms_SingleYear_FinalYear_Result,2) -> 2018 | F57: =LEFT(dms_SingleYear_FinalYear_Result,2)&RIGHT(dms_SingleYear_FinalYear_Result,2) | H57: Formula errors are OK | N57: New line on new route - single circuit | O57: Circuit line length in km | P57: 0's | Q57: 0's | R57: 0's | S57: 0's | T57: 0's | U57: km | V57: km | W57: 0's | X57: days | Y57: minutes/customer | Z57: minutes/customer | AA57: Customer / km | AB57: % | AC57: km | AD57: number | AE57: number | AK57: Animal nesting/burrowing, etc and other | AL57: Asset failure | AM57: Equipment failure | AN57: Capacity upgrade | AO57: New line on new route - dual circuit
B58: CA | C58: CATEGORY ANALYSIS | E58: =LEFT(dms_SingleYear_FinalYear_Result,2)&RIGHT(dms_SingleYear_FinalYear_Result,2) -> 2018 | F58: =LEFT(dms_SingleYear_FinalYear_Result,2)&RIGHT(dms_SingleYear_FinalYear_Result,2) | H58: Formula errors are OK | N58: New line on new route - dual circuit | O58: Circuit line length in km | P58: 0's | Q58: 0's | R58: 0's | S58: 0's | T58: 0's | U58: 0's | V58: 0's | W58: 0's | X58: 0's | Y58: minutes/customer | Z58: minutes/customer | AA58: MWh/customer | AB58: Number of spans | AD58: number | AE58: number | AK58: Other | AL58: Other | AM58: Operational error | AN58: Voltage upgrade | AO58: New line on new route - other
B59: CPI | C59: CPI | N59: New line on new route - other | O59: Circuit line length in km | P59: MVA added | Q59: MVA added | R59: MVA added | S59: MVA added | T59: 0's | U59: km | V59: km | W59: 0's | X59: $0s | Y59: interruptions/customer | Z59: interruptions/customer | AA59: kVA / customer | AB59: Number of spans | AD59: number | AE59: number | AJ59: Asset failure | AK59: LV | AL59: Overloads | AM59: Vegetation | AN59: Other | AO59: Line rebuild over existing route - single circuit
B60: EB | C60: ECONOMIC BENCHMARKING | E60: =LEFT(dms_SingleYear_FinalYear_Result,2)&RIGHT(dms_SingleYear_FinalYear_Result,2) -> 2018 | F60: =LEFT(dms_SingleYear_FinalYear_Result,2)&RIGHT(dms_SingleYear_FinalYear_Result,2) | H60: Formula errors are OK | N60: Line rebuild over existing route - single circuit | O60: Circuit line length in km | P60: 0's | Q60: 0's | R60: 0's | S60: 0's | T60: 0's | U60: km | V60: km | W60: $0s | X60: 0's | Y60: interruptions/customer | Z60: interruptions/customer | AB60: Number of spans | AD60: number | AE60: number | AK60: Distribution substation | AL60: Planned | AM60: Animals | AO60: Line rebuild over existing route - dual circuit
B61: PTRM | C61: POST TAX REVENUE MODEL | E61: =LEFT(dms_MultiYear_FinalYear_Result,2)&RIGHT(dms_MultiYear_FinalYear_Result,2) -> 2025 | F61: =LEFT(dms_MultiYear_FinalYear_Result,2)&RIGHT(dms_MultiYear_FinalYear_Result,2) | N61: Line rebuild over existing route - dual circuit | O61: Number | P61: total spend $0s | Q61: total spend $0s | R61: total spend $0s | S61: total spend $0s | T61: (per cent) | U61: 0's | V61: 0's | AB61: Number of spans | AD61: number | AE61: (per cent) | AK61: HV | AL61: Network business | AM61: Third party impacts | AO61: Reconductor - Single circuit
B62: Reset | C62: REGULATORY REPORTING STATEMENT | E62: =LEFT(dms_MultiYear_FinalYear_Result,2)&RIGHT(dms_MultiYear_FinalYear_Result,2) -> 2025 | F62: =LEFT(dms_MultiYear_FinalYear_Result,2)&RIGHT(dms_MultiYear_FinalYear_Result,2) | H62: Formula errors are OK | N62: Reconductor - Single circuit | O62: Number | P62: net circuit km added | Q62: net circuit km added | R62: net circuit km added | S62: net circuit km added | U62: years | V62: years | AB62: Years | AD62: number | AK62: Zone substation | AL62: Third party | AM62: Transmission failure | AO62: Reconductor - Dual circuit
B63: RFM | C63: ROLL FORWARD MODEL | E63: =LEFT(dms_CRCP_FinalYear_Result,2)&RIGHT(dms_CRCP_FinalYear_Result,2) -> 2018 | F63: =LEFT(dms_CRCP_FinalYear_Result,2)&RIGHT(dms_CRCP_FinalYear_Result,2) | N63: Reconductor - Dual circuit | O63: Number | P63: total spend $0s | Q63: total spend $0s | R63: total spend $0s | S63: total spend $0s | AB63: Years | AD63: number | AK63: Subtransmission | AL63: Unknown | AM63: Load shedding | AO63: Reconductor - Other
B64: WACC | C64: WEIGHTED AVERAGE COST OF CAPITAL | E64: =LEFT(dms_MultiYear_FinalYear_Result,2)&RIGHT(dms_MultiYear_FinalYear_Result,2) -> 2025 | F64: =LEFT(dms_MultiYear_FinalYear_Result,2)&RIGHT(dms_MultiYear_FinalYear_Result,2) | N64: Other | P64: net circuit km added | Q64: net circuit km added | R64: net circuit km added | S64: net circuit km added | AB64: Trees | AD64: number | AJ64: Other | AK64: insert description of 'other' | AL64: Vegetation | AM64: Inter-distributor connection failure | AO64: Line upgrade - raising/retensoring
P65: total spend $0s | Q65: total spend $0s | R65: total spend $0s | S65: total spend $0s | AB65: Trees | AD65: number | AJ65: Overloads | AK65: - | AL65: Weather | AM65: Other | AO65: Line upgrade - voltage upgrade
B66: dms_DataQuality_List | P66: 0's | R66: $0s | AB66: Defects | AD66: number | AJ66: Planned | AK66: - | AL66: 2 - STPIS Exclusion (3.3)(a) | AO66: Line upgrade - capacity
B67: Actual | P67: 0's | AB67: Defects | AD67: number | AJ67: Network business | AK67: Network error | AL67: 3 - STPIS Exclusion (3.3)(a) | AO67: String spare circuit
B68: Estimate | P68: 0's | AB68: Spans | AD68: number | AK68: Switching and protection error | AL68: 4 - STPIS Exclusion (3.3)(a) | AO68: Other
B69: Consolidated | P69: $0s | AB69: km | AD69: (per cent) | AJ69: Third party | AK69: Fire | AL69: 5 - STPIS Exclusion (3.3)(a)
B70: Recast | AB70: Spans | AD70: (per cent) | AK70: Other | AL70: 6 - STPIS Exclusion (3.3)(a)
B71: Public | AK71: Dig-in | AL71: 7 - STPIS Exclusion (3.3)(a)
AK72: Unauthorised access
B73: For all files either AER or business needs to be able to specify the type of submission | C73: For PTRM & RFM templates we must provide a choice in case they change their form of control - otherwise it is drawn from the business specific lookup table above. | O73: For PTRM files - this field set the text for the named range "DMS_Xfactor" which in all cases is simply the text "x factors" - this saves putting in each old gas PTRM file | Y73: for TNSP only | AK73: Vehicle impact
B74: dms_SourceList | C74: dms_FormControl_Choices | O74: DMS_Xfactor | Y74: dms_030601_01_UOM | AA74: dms_030701_01_UOM | AB74: dms_030702_01_UOM | AJ74: Unknown | AK74: Unknown
B75: After appeal | C75: Revenue cap | O75: x factors | Y75: % | AA75: Number of spans | AB75: km | AJ75: Vegetation | AK75: Blow-in/Fall-in - NSP responsibility
B76: Draft decision | C76: Revenue yield | Y76: number | AA76: Years | AB76: % | AK76: Grow-in - NSP responsibility
B77: Final decision | C77: Weighted average price cap | Y77: number | AA77: Trees | AB77: km | AK77: Blow-in/Fall-in - Other responsible party
B78: PTRM update 1 | Y78: % | AA78: Defects | AB78: number | AK78: Grow-in - Other responsible party
B79: PTRM update 2 | Y79: number | AA79: Number of spans | AJ79: Weather
B80: PTRM update 3 | Y80: number | AA80: km | AJ80: 2 - STPIS Exclusion (3.3)(a)
B81: PTRM update 4 | Y81: % | AA81: km | AJ81: 3 - STPIS Exclusion (3.3)(a)
B82: PTRM update 5 | Y82: number | AA82: Number of spans | AJ82: 4 - STPIS Exclusion (3.3)(a)
B83: PTRM update 6 | Y83: number | AJ83: 5 - STPIS Exclusion (3.3)(a)
B84: PTRM update 7 | Y84: % | AJ84: 6 - STPIS Exclusion (3.3)(a)
B85: Regulatory proposal | Y85: number | AJ85: 7 - STPIS Exclusion (3.3)(a)
B86: Reporting | Y86: %
B87: Revised regulatory proposal | Y87: number
Y88: %
Y89: number
B93: These are indeces and lookup values for various dates. All step from the value placed in FRCP_y1 on the business and other details worksheet | C93: =IF(dms_FifthFeeder_flag_NSP="NO","This NSP has only 4 feeder categories","This NSP has 5 feeder categories") -> This NSP has 5 feeder categories | L93: These date tables are currently used in the Recast templates to provide column headings and conditional formatting
B94: dms_FRCPlength_Num_List | C94: dms_FinalYear_List | D94: dms_CRCPlength_Num_List | E94: dms_CFinalYear_List | F94: dms_FRCP_years | H94: dms_CRCP_years | J94: dms_CRCP_index | L94: CRY from input cell on business sheet | M94: CRY - financial | N94: dms_FinYears | O94: CRY calendar | P94: dms_CalYears | Y94: These "row descriptions" are the column headings in the various templates but become row descriptions in the ETL process
B95: 1 | C95: dms_FRCP_y1 | D95: 1 | E95: CRCP_y1 | F95: =FRCP_y1 -> 2020-21 | G95: dms_FRCP_y1 | H95: =IF(dms_RPT="financial",VALUE(LEFT(dms_FRCP_y1,4)-1)&"-"&TEXT(VALUE(MID(dms_FRCP_y1,3,2)),"00"),VALUE(LEFT(dms_FRCP_y1,4)-1)) -> 2019-20 | I95: dms_CRCP_yZ | J95: 1 | L95: =CRY -> 2017-18 | M95: =VALUE(LEFT(CRY,4))&"-"&TEXT(MID(CRY,3,2)+1,"00") -> 2017-18 | N95: dms_CRYf_y1 | O95: =VALUE(LEFT(CRY,4)+1) -> 2018 | P95: dms_CRYc_y1 | Z95: Table 6.3 sustained interruptions - row descriptions
B96: 2 | C96: dms_FRCP_y2 | D96: 2 | E96: CRCP_y2 | F96: =IF(dms_RPT="financial",VALUE(LEFT(dms_FRCP_y1,4)+1)&"-"&TEXT(VALUE(RIGHT(dms_FRCP_y1,2)+1),"00"),VALUE(LEFT(dms_FRCP_y1,4)+1)) -> 2021-22 | G96: dms_FRCP_y2 | H96: =IF(dms_RPT="financial",VALUE(LEFT(dms_CRCP_yZ,4)-1)&"-"&TEXT(VALUE(MID(dms_CRCP_yZ,3,2)),"00"),VALUE(LEFT(dms_CRCP_yZ,4)-1)) -> 2018-19 | I96: dms_CRCP_yY | J96: 2 | M96: =VALUE(LEFT(dms_CRYf_y1,4)+1)&"-"&TEXT(MID(dms_CRYf_y1,3,2)+2,"00") -> 2018-19 | N96: dms_CRYf_y2 | O96: =VALUE(LEFT(dms_CRYc_y1,4)+1) -> 2019 | P96: dms_CRYc_y2 | Z96: dms_060301_CustNo_Affected_Row | AA96: dms_060301_Avg_Duration_Sustained_Int_Row | AB96: dms_060301_Effect_unplanned_SAIDI_Row | AC96: dms_060301_Effect_unplanned_SAIFI_Row
B97: 3 | C97: =IF(dms_Model="ARR",15,9) | D97: 3 | E97: =IF(dms_Model="ARR",15,9) | F97: =IF(dms_RPT="financial",VALUE(LEFT(dms_FRCP_y2,4)+1)&"-"&TEXT(VALUE(RIGHT(dms_FRCP_y2,2)+1),"00"),VALUE(LEFT(dms_FRCP_y2,4)+1)) -> 2022-23 | G97: dms_FRCP_y3 | H97: =IF(dms_RPT="financial",VALUE(LEFT(dms_CRCP_yY,4)-1)&"-"&TEXT(VALUE(MID(dms_CRCP_yY,3,2)),"00"),VALUE(LEFT(dms_CRCP_yY,4)-1)) -> 2017-18 | I97: dms_CRCP_yX | J97: 3 | M97: =VALUE(LEFT(dms_CRYf_y2,4)+1)&"-"&TEXT(MID(dms_CRYf_y2,3,2)+2,"00") -> 2019-20 | N97: dms_CRYf_y3 | O97: =VALUE(LEFT(dms_CRYc_y2,4)+1) -> 2020 | P97: dms_CRYc_y3 | Z97: Number of customers affected by the interruption | AA97: Average duration of sustained customer interruption | AB97: Effect on unplanned SAIDI | AC97: Effect on unplanned SAIFI
B98: 4 | C98: dms_FRCP_y4 | D98: 4 | E98: CRCP_y4 | F98: =IF(dms_RPT="financial",VALUE(LEFT(dms_FRCP_y3,4)+1)&"-"&TEXT(VALUE(RIGHT(dms_FRCP_y3,2)+1),"00"),VALUE(LEFT(dms_FRCP_y3,4)+1)) -> 2023-24 | G98: dms_FRCP_y4 | H98: =IF(dms_RPT="financial",VALUE(LEFT(dms_CRCP_yX,4)-1)&"-"&TEXT(VALUE(MID(dms_CRCP_yX,3,2)),"00"),VALUE(LEFT(dms_CRCP_yX,4)-1)) -> 2016-17 | I98: dms_CRCP_yW | J98: 4 | M98: =VALUE(LEFT(dms_CRYf_y3,4)+1)&"-"&TEXT(MID(dms_CRYf_y3,3,2)+2,"00") -> 2020-21 | N98: dms_CRYf_y4 | O98: =VALUE(LEFT(dms_CRYc_y3,4)+1) -> 2021 | P98: dms_CRYc_y4
B99: 5 | C99: dms_FRCP_y5 | D99: 5 | E99: CRCP_y5 | F99: =IF(dms_RPT="financial",VALUE(LEFT(dms_FRCP_y4,4)+1)&"-"&TEXT(VALUE(RIGHT(dms_FRCP_y4,2)+1),"00"),VALUE(LEFT(dms_FRCP_y4,4)+1)) -> 2024-25 | G99: dms_FRCP_y5 | H99: =IF(dms_RPT="financial",VALUE(LEFT(dms_CRCP_yW,4)-1)&"-"&TEXT(VALUE(MID(dms_CRCP_yW,3,2)),"00"),VALUE(LEFT(dms_CRCP_yW,4)-1)) -> 2015-16 | I99: dms_CRCP_yV | J99: 5 | M99: =VALUE(LEFT(dms_CRYf_y4,4)+1)&"-"&TEXT(MID(dms_CRYf_y4,3,2)+2,"00") -> 2021-22 | N99: dms_CRYf_y5 | O99: =VALUE(LEFT(dms_CRYc_y4,4)+1) -> 2022 | P99: dms_CRYc_y5
B100: 6 | C100: dms_FRCP_y6 | D100: 6 | E100: CRCP_y6 | F100: =IF(dms_RPT="financial",VALUE(LEFT(dms_FRCP_y5,4)+1)&"-"&TEXT(VALUE(RIGHT(dms_FRCP_y5,2)+1),"00"),VALUE(LEFT(dms_FRCP_y5,4)+1)) -> 2025-26 | G100: dms_FRCP_y6 | H100: =IF(dms_RPT="financial",VALUE(LEFT(dms_CRCP_yV,4)-1)&"-"&TEXT(VALUE(MID(dms_CRCP_yV,3,2)),"00"),VALUE(LEFT(dms_CRCP_yV,4)-1)) -> 2014-15 | I100: dms_CRCP_yU | J100: 6 | M100: =VALUE(LEFT(dms_CRYf_y5,4)+1)&"-"&TEXT(MID(dms_CRYf_y5,3,2)+2,"00") -> 2022-23 | N100: dms_CRYf_y6 | O100: =VALUE(LEFT(dms_CRYc_y5,4)+1) -> 2023 | P100: dms_CRYc_y6
B101: 7 | C101: dms_FRCP_y7 | D101: 7 | E101: CRCP_y7 | F101: =IF(dms_RPT="financial",VALUE(LEFT(dms_FRCP_y6,4)+1)&"-"&TEXT(VALUE(RIGHT(dms_FRCP_y6,2)+1),"00"),VALUE(LEFT(dms_FRCP_y6,4)+1)) -> 2026-27 | G101: dms_FRCP_y7 | H101: =IF(dms_RPT="financial",VALUE(LEFT(dms_CRCP_yU,4)-1)&"-"&TEXT(VALUE(MID(dms_CRCP_yU,3,2)),"00"),VALUE(LEFT(dms_CRCP_yU,4)-1)) -> 2013-14 | I101: dms_CRCP_yT | J101: 7 | M101: =VALUE(LEFT(dms_CRYf_y6,4)+1)&"-"&TEXT(MID(dms_CRYf_y6,3,2)+2,"00") -> 2023-24 | N101: dms_CRYf_y7 | O101: =VALUE(LEFT(dms_CRYc_y6,4)+1) -> 2024 | P101: dms_CRYc_y7 | Z101: Table 6.1 telephone answering - row descriptions and start date
B102: 8 | C102: dms_FRCP_y8 | D102: 8 | E102: CRCP_y8 | F102: =IF(dms_RPT="financial",VALUE(LEFT(dms_FRCP_y7,4)+1)&"-"&TEXT(VALUE(RIGHT(dms_FRCP_y7,2)+1),"00"),VALUE(LEFT(dms_FRCP_y7,4)+1)) -> 2027-28 | G102: dms_FRCP_y8 | H102: =IF(dms_RPT="financial",VALUE(LEFT(dms_CRCP_yT,4)-1)&"-"&TEXT(VALUE(MID(dms_CRCP_yT,3,2)),"00"),VALUE(LEFT(dms_CRCP_yT,4)-1)) -> 2012-13 | I102: dms_CRCP_yS | J102: 8 | M102: =VALUE(LEFT(dms_CRYf_y7,4)+1)&"-"&TEXT(MID(dms_CRYf_y7,3,2)+2,"00") -> 2024-25 | N102: dms_CRYf_y8 | O102: =VALUE(LEFT(dms_CRYc_y7,4)+1) -> 2025 | P102: dms_CRYc_y8 | Z102: dms_060101_Rows | AA102: dms_060102_Rows | AB102: dms_060101_StartDateTxt
B103: 9 | C103: dms_FRCP_y9 | D103: 9 | E103: CRCP_y9 | F103: =IF(dms_RPT="financial",VALUE(LEFT(dms_FRCP_y8,4)+1)&"-"&TEXT(VALUE(RIGHT(dms_FRCP_y8,2)+1),"00"),VALUE(LEFT(dms_FRCP_y8,4)+1)) -> 2028-29 | G103: dms_FRCP_y9 | H103: =IF(dms_RPT="financial",VALUE(LEFT(dms_CRCP_yS,4)-1)&"-"&TEXT(VALUE(MID(dms_CRCP_yS,3,2)),"00"),VALUE(LEFT(dms_CRCP_yS,4)-1)) -> 2011-12 | I103: dms_CRCP_yR | J103: 9 | M103: =VALUE(LEFT(dms_CRYf_y8,4)+1)&"-"&TEXT(MID(dms_CRYf_y8,3,2)+2,"00") -> 2025-26 | N103: dms_CRYf_y9 | O103: =VALUE(LEFT(dms_CRYc_y8,4)+1) -> 2026 | P103: dms_CRYc_y9 | Z103: Total number of calls (after removing excluded events) | AA103: Number of calls answered within 30 seconds (after excluding excluded events) | AB103: =dms_060701_StartDateTxt -> 1-Jul-2017
B104: 10 | C104: =IFERROR(IF(dms_Model="ARR",(MAX(0,dms_0608_LastRow-dms_0608_OffsetRows)),"not an ARR"),"6.8 not present") | D104: 10 | E104: =IFERROR(IF(dms_Model="ARR",(MAX(0,dms_0608_LastRow-dms_0608_OffsetRows)),"not an ARR"),"6.8 not present") | F104: =IF(dms_RPT="financial",VALUE(LEFT(dms_FRCP_y9,4)+1)&"-"&TEXT(VALUE(RIGHT(dms_FRCP_y9,2)+1),"00"),VALUE(LEFT(dms_FRCP_y9,4)+1)) -> 2029-30 | G104: dms_FRCP_y10 | H104: =IF(dms_RPT="financial",VALUE(LEFT(dms_CRCP_yR,4)-1)&"-"&TEXT(VALUE(MID(dms_CRCP_yR,3,2)),"00"),VALUE(LEFT(dms_CRCP_yR,4)-1)) -> 2010-11 | I104: dms_CRCP_yQ | J104: 10 | M104: =VALUE(LEFT(dms_CRYf_y9,4)+1)&"-"&TEXT(MID(dms_CRYf_y9,3,2)+2,"00") -> 2026-27 | N104: dms_CRYf_y10 | O104: =VALUE(LEFT(dms_CRYc_y9,4)+1) -> 2027 | P104: dms_CRYc_y10
B105: 11 | C105: dms_FRCP_y11 | D105: 11 | E105: CRCP_y11 | F105: =IF(dms_RPT="financial",VALUE(LEFT(dms_FRCP_y10,4)+1)&"-"&TEXT(VALUE(RIGHT(dms_FRCP_y10,2)+1),"00"),VALUE(LEFT(dms_FRCP_y10,4)+1)) -> 2030-31 | G105: dms_FRCP_y11 | H105: =IF(dms_RPT="financial",VALUE(LEFT(dms_CRCP_yQ,4)-1)&"-"&TEXT(VALUE(MID(dms_CRCP_yQ,3,2)),"00"),VALUE(LEFT(dms_CRCP_yQ,4)-1)) -> 2009-10 | I105: dms_CRCP_yP | J105: 11 | M105: =VALUE(LEFT(dms_CRYf_y10,4)+1)&"-"&TEXT(MID(dms_CRYf_y10,3,2)+2,"00") -> 2027-28 | N105: dms_CRYf_y11 | O105: =VALUE(LEFT(dms_CRYc_y10,4)+1) -> 2028 | P105: dms_CRYc_y11
B106: 12 | C106: dms_FRCP_y12 | D106: 12 | E106: CRCP_y12 | F106: =IF(dms_RPT="financial",VALUE(LEFT(dms_FRCP_y11,4)+1)&"-"&TEXT(VALUE(RIGHT(dms_FRCP_y11,2)+1),"00"),VALUE(LEFT(dms_FRCP_y11,4)+1)) -> 2031-32 | G106: dms_FRCP_y12 | H106: =IF(dms_RPT="financial",VALUE(LEFT(dms_CRCP_yP,4)-1)&"-"&TEXT(VALUE(MID(dms_CRCP_yP,3,2)),"00"),VALUE(LEFT(dms_CRCP_yP,4)-1)) -> 2008-09 | I106: dms_CRCP_yO | J106: 12 | M106: =VALUE(LEFT(dms_CRYf_y11,4)+1)&"-"&TEXT(MID(dms_CRYf_y11,3,2)+2,"00") -> 2028-29 | N106: dms_CRYf_y12 | O106: =VALUE(LEFT(dms_CRYc_y11,4)+1) -> 2029 | P106: dms_CRYc_y12
B107: 13 | C107: dms_FRCP_y13 | D107: 13 | E107: CRCP_y13 | F107: =IF(dms_RPT="financial",VALUE(LEFT(dms_FRCP_y12,4)+1)&"-"&TEXT(VALUE(RIGHT(dms_FRCP_y12,2)+1),"00"),VALUE(LEFT(dms_FRCP_y12,4)+1)) -> 2032-33 | G107: dms_FRCP_y13 | H107: =IF(dms_RPT="financial",VALUE(LEFT(dms_CRCP_yO,4)-1)&"-"&TEXT(VALUE(MID(dms_CRCP_yO,3,2)),"00"),VALUE(LEFT(dms_CRCP_yO,4)-1)) -> 2007-08 | I107: dms_CRCP_yN | J107: 13 | M107: =VALUE(LEFT(dms_CRYf_y12,4)+1)&"-"&TEXT(MID(dms_CRYf_y12,3,2)+2,"00") -> 2029-30 | N107: dms_CRYf_y13 | O107: =VALUE(LEFT(dms_CRYc_y12,4)+1) -> 2030 | P107: dms_CRYc_y13 | AE107: dms_0603_FeederList | AF107: =INDEX(dms_FeederName_1,MATCH(dms_TradingName,dms_TradingName_List)) -> CBD | AG107: =INDEX(dms_FeederName_2,MATCH(dms_TradingName,dms_TradingName_List)) -> Urban | AH107: =INDEX(dms_FeederName_3,MATCH(dms_TradingName,dms_TradingName_List)) -> Short rural | AI107: =INDEX(dms_FeederName_4,MATCH(dms_TradingName,dms_TradingName_List)) -> Long rural
B108: 14 | C108: dms_FRCP_y14 | D108: 14 | E108: CRCP_y14 | F108: =IF(dms_RPT="financial",VALUE(LEFT(dms_FRCP_y13,4)+1)&"-"&TEXT(VALUE(RIGHT(dms_FRCP_y13,2)+1),"00"),VALUE(LEFT(dms_FRCP_y13,4)+1)) -> 2033-34 | G108: dms_FRCP_y14 | H108: =IF(dms_RPT="financial",VALUE(LEFT(dms_CRCP_yN,4)-1)&"-"&TEXT(VALUE(MID(dms_CRCP_yN,3,2)),"00"),VALUE(LEFT(dms_CRCP_yN,4)-1)) -> 2006-07 | I108: dms_CRCP_yM | J108: 14 | M108: =VALUE(LEFT(dms_CRYf_y13,4)+1)&"-"&TEXT(MID(dms_CRYf_y13,3,2)+2,"00") -> 2030-31 | N108: dms_CRYf_y14 | O108: =VALUE(LEFT(dms_CRYc_y13,4)+1) -> 2031 | P108: dms_CRYc_y14 | Z108: Table 6.7.1 - daily performance data - unplanned - MAIFI -- row descriptions and header named range values
B109: 15 | C109: dms_FRCP_y15 | D109: 15 | E109: CRCP_y15 | F109: =IF(dms_RPT="financial",VALUE(LEFT(dms_FRCP_y14,4)+1)&"-"&TEXT(VALUE(RIGHT(dms_FRCP_y14,2)+1),"00"),VALUE(LEFT(dms_FRCP_y14,4)+1)) -> 2034-35 | G109: dms_FRCP_y15 | H109: =IF(dms_RPT="financial",VALUE(LEFT(dms_CRCP_yM,4)-1)&"-"&TEXT(VALUE(MID(dms_CRCP_yM,3,2)),"00"),VALUE(LEFT(dms_CRCP_yM,4)-1)) -> 2005-06 | I109: dms_CRCP_yL | J109: 15 | M109: =VALUE(LEFT(dms_CRYf_y14,4)+1)&"-"&TEXT(MID(dms_CRYf_y14,3,2)+2,"00") -> 2031-32 | N109: dms_CRYf_y15 | O109: =VALUE(LEFT(dms_CRYc_y14,4)+1) -> 2032 | P109: dms_CRYc_y15 | Z109: These headings (Lists) are determined from the INDEX/MATCH function on the NSP selected on the Business & other details sheet
M110: =VALUE(LEFT(dms_CRYf_y15,4)+1)&"-"&TEXT(MID(dms_CRYf_y15,3,2)+2,"00") -> 2032-33 | N110: dms_CRYf_y16 | O110: =VALUE(LEFT(dms_CRYc_y15,4)+1) -> 2033 | P110: dms_CRYc_y16 | Y110: dms_060701_Feeder_Header_Lvl4 | Z110: =INDEX(dms_FeederName_1,MATCH(dms_TradingName,dms_TradingName_List)) -> CBD | AA110: =INDEX(dms_FeederName_1,MATCH(dms_TradingName,dms_TradingName_List)) -> CBD | AB110: =INDEX(dms_FeederName_2,MATCH(dms_TradingName,dms_TradingName_List)) -> Urban | AC110: =INDEX(dms_FeederName_2,MATCH(dms_TradingName,dms_TradingName_List)) -> Urban | AD110: =INDEX(dms_FeederName_3,MATCH(dms_TradingName,dms_TradingName_List)) -> Short rural | AE110: =INDEX(dms_FeederName_3,MATCH(dms_TradingName,dms_TradingName_List)) -> Short rural | AF110: =INDEX(dms_FeederName_4,MATCH(dms_TradingName,dms_TradingName_List)) -> Long rural | AG110: =INDEX(dms_FeederName_4,MATCH(dms_TradingName,dms_TradingName_List)) -> Long rural | AH110: =IF((INDEX(dms_FeederName_5,MATCH(dms_TradingName,dms_TradingName_List))=0),"Network",(INDEX(dms_FeederName_5,MATCH(dms_TradingName,dms_TradingName_List)))) -> Network | AI110: =IF((INDEX(dms_FeederName_5,MATCH(dms_TradingName,dms_TradingName_List))=0),"Network",(INDEX(dms_FeederName_5,MATCH(dms_TradingName,dms_TradingName_List)))) -> Network | AJ110: Network | AK110: Network
B111: These are drop down lists for businesses to select the correct FRCP_y1 on the business and other details worksheet. This also populates the column headings in the worksheets | M111: =VALUE(LEFT(dms_CRYf_y16,4)+1)&"-"&TEXT(MID(dms_CRYf_y16,3,2)+2,"00") -> 2033-34 | N111: dms_CRYf_y17 | O111: =VALUE(LEFT(dms_CRYc_y16,4)+1) -> 2034 | P111: dms_CRYc_y17
B112: dms_RCP_fyear_list | C112: dms_CRY_ListF | D112: dms_CRY_ListC | E112: dms_RCP_cyear_list | F112: dms_FRCP_fyear_list | G112: dms_FRCP_ListF | H112: dms_FRCP_ListC | I112: dms_FRCP_cyear_list | M112: =VALUE(LEFT(dms_CRYf_y17,4)+1)&"-"&TEXT(MID(dms_CRYf_y17,3,2)+2,"00") -> 2034-35 | N112: dms_CRYf_y18 | O112: =VALUE(LEFT(dms_CRYc_y17,4)+1) -> 2035 | P112: dms_CRYc_y18 | Y112: dms_060701_Rows | Z112: All events | AA112: After removing excluded events | AB112: All events | AC112: After removing excluded events | AD112: All events | AE112: After removing excluded events | AF112: All events | AG112: After removing excluded events | AH112: All events | AI112: After removing excluded events | AJ112: All events | AK112: After removing excluded events
B113: dms_fy1 | C113: 2005-06 | D113: 2006 | E113: dms_cy1 | F113: dms_frcp_fy1 | G113: 2010-11 | H113: 2011 | I113: dms_crcp_cy1 | M113: =VALUE(LEFT(dms_CRYf_y18,4)+1)&"-"&TEXT(MID(dms_CRYf_y18,3,2)+2,"00") -> 2035-36 | N113: dms_CRYf_y19 | O113: =VALUE(LEFT(dms_CRYc_y18,4)+1) -> 2036 | P113: dms_CRYc_y19 | Z113: the number of column headings changes from 10 to 12 depending on the number of feeder categories for the NSP
B114: dms_fy2 | C114: 2006-07 | D114: 2007 | E114: dms_cy2 | F114: dms_frcp_fy2 | G114: 2011-12 | H114: 2012 | I114: dms_crcp_cy2 | M114: =VALUE(LEFT(dms_CRYf_y19,4)+1)&"-"&TEXT(MID(dms_CRYf_y19,3,2)+2,"00") -> 2036-37 | N114: dms_CRYf_y20 | O114: =VALUE(LEFT(dms_CRYc_y19,4)+1) -> 2037 | P114: dms_CRYc_y20
B115: dms_fy3 | C115: 2007-08 | D115: 2008 | E115: dms_cy3 | F115: dms_frcp_fy3 | G115: 2012-13 | H115: 2013 | I115: dms_crcp_cy3
B116: dms_fy4 | C116: 2008-09 | D116: 2009 | E116: dms_cy4 | F116: dms_frcp_fy4 | G116: 2013-14 | H116: 2014 | I116: dms_crcp_cy4
B117: dms_fy5 | C117: 2009-10 | D117: 2010 | E117: dms_cy5 | F117: dms_frcp_fy5 | G117: 2014-15 | H117: 2015 | I117: dms_crcp_cy5
B118: dms_fy6 | C118: 2010-11 | D118: 2011 | E118: dms_cy6 | F118: dms_frcp_fy6 | G118: 2015-16 | H118: 2016 | I118: dms_crcp_cy6 | Z118: Table 6.8.1 - row descriptions
B119: dms_fy7 | C119: 2011-12 | D119: 2012 | E119: dms_cy7 | F119: dms_frcp_fy7 | G119: 2016-17 | H119: 2017 | I119: dms_crcp_cy7 | Z119: dms_060801_01_Rows | AA119: dms_060801_02_Rows | AB119: dms_060801_03_Rows | AC119: dms_060801_04_Rows
B120: dms_fy8 | C120: 2012-13 | D120: 2013 | E120: dms_cy8 | F120: dms_frcp_fy8 | G120: 2017-18 | H120: 2018 | I120: dms_crcp_cy8 | L120: 2005-06 | M120: 2006 | Z120: Number of interruptions | AA120: Duration of interruptions | AB120: Total unplanned minutes off supply | AC120: Effect on unplanned MAIFI
B121: dms_fy9 | C121: 2013-14 | D121: 2014 | E121: dms_cy9 | F121: dms_frcp_fy9 | G121: 2018-19 | H121: 2019 | I121: dms_crcp_cy9 | L121: 2006-07 | M121: 2007
B122: dms_fy10 | C122: 2014-15 | D122: 2015 | E122: dms_cy10 | F122: dms_frcp_fy10 | G122: 2019-20 | H122: 2020 | I122: dms_crcp_cy10 | L122: 2007-08 | M122: 2008
B123: dms_fy11 | C123: 2015-16 | D123: 2016 | E123: dms_cy11 | F123: dms_frcp_fy11 | G123: 2020-21 | H123: 2021 | I123: dms_crcp_cy11 | L123: 2008-09 | M123: 2009
B124: dms_fy12 | C124: 2016-17 | D124: 2017 | E124: dms_cy12 | F124: dms_frcp_fy12 | G124: 2021-22 | H124: 2022 | I124: dms_crcp_cy12 | L124: 2009-10 | M124: 2010
B125: dms_fy13 | C125: 2017-18 | D125: 2018 | E125: dms_cy13 | F125: dms_frcp_fy13 | G125: 2022-23 | H125: 2023 | I125: dms_crcp_cy13 | L125: 2010-11 | M125: 2011 | Z125: Table 7.9.4 - market impact component - row descriptions
B126: dms_fy14 | C126: 2018-19 | D126: 2019 | E126: dms_cy14 | F126: dms_frcp_fy14 | G126: 2023-24 | H126: 2024 | I126: dms_crcp_cy14 | L126: 2011-12 | M126: 2012 | Y126: dms_070904_01_Rows | Z126: without exclusions | AA126: with exclusions
B127: dms_fy15 | C127: 2019-20 | D127: 2020 | E127: dms_cy15 | F127: dms_frcp_fy15 | G127: 2024-25 | H127: 2025 | I127: dms_crcp_cy15 | L127: 2012-13 | M127: 2013
B128: dms_fy16 | C128: 2020-21 | D128: 2021 | E128: dms_cy16 | L128: 2013-14 | M128: 2014
B129: dms_fy17 | C129: 2021-22 | D129: 2022 | E129: dms_cy17 | L129: 2014-15 | M129: 2015
B130: dms_fy18 | C130: 2022-23 | D130: 2023 | E130: dms_cy18 | L130: 2015-16 | M130: 2016
B131: dms_fy19 | C131: 2023-24 | D131: 2024 | E131: dms_cy19 | L131: 2016-17 | M131: 2017 | Z131: Use this to add to existing files
B132: dms_fy20 | C132: 2024-25 | D132: 2025 | E132: dms_cy20 | L132: 2017-18 | M132: 2018 | Z132: ARR's 6.8 STPIS exclusions
L133: 2018-19 | M133: 2019 | Z133: dms_060801_Event_Date | AA133: dms_060801_OutageID | AB133: dms_060801_FeederID | AC133: dms_060801_FeederClass | AD133: dms_060801_CauseID | AE133: dms_060801_01_Values | AF133: dms_060801_02_Values | AG133: dms_060801_03_Values | AH133: dms_060801_Excl_Cat | AI133: dms_060801_04_Values
L134: 2019-20 | M134: 2020
L135: 2020-21 | M135: 2021
L136: 2021-22 | M136: 2022 | Z136: CA 6.3 sustained interruptions
L137: 2022-23 | M137: 2023 | Z137: dms_060301_Event_Date | AA137: dms_060301_Event_Time | AB137: dms_060301_AssetID | AC137: dms_060301_FeederClass | AD137: dms_060301_Reason | AE137: dms_060301_DetailedReason | AF137: dms_060301_CustNo_Affected_Values | AG137: dms_060301_Avg_Duration_Sustained_Int_Values | AH137: dms_060301_Effect_unplanned_SAIDI_Values | AI137: dms_060301_Effect_unplanned_SAIFI_Values | AJ137: dms_060301_MED
L138: 2023-24 | M138: 2024
L139: 2024-25 | M139: 2025
L140: 2025-26 | M140: 2026
L141: 2026-27 | M141: 2027
L142: 2027-28 | M142: 2028
L143: 2028-29 | M143: 2029
L144: 2029-30 | M144: 2030
L145: 2030-31 | M145: 2031
L146: 2031-32 | M146: 2032
L147: 2032-33 | M147: 2033
L148: 2033-34 | M148: 2034
L149: 2034-35 | M149: 2035
L150: 2035-36 | M150: 2036

Sheet Instructions
B2: Transmission Network Service Provider
B3: Historical Reporting RIN Template
C4: This template is to be used by Powerlink to fulfil its reporting obligations to the AER.
C5: INSTRUCTIONS
C6: Complete the Business & other details worksheet before entering data or values in any other worksheets. The Business & other details worksheet is linked to other worksheets within the workbook and automatically generates certain column headings and conditional formatting.
C8: Identifying CONFIDENTIAL INFORMATION: Please use the macro at the top of each worksheet to identify confidential information.
C9: -Do this by selecting the cell or cells that contain confidential information and then run the Mark selection CONFIDENTIAL macro. This will format the cells a specific colour that is identified by the AER's database which in turn marks that information as confidential. -To reverse this, select the cell or cells and run the Return selection to NON-CONFIDENTIAL macro.
C11: UNITS OF MEASURE All amounts are to be unrounded and reported on a one for one basis: that is 1000 is to be entered as '1000'. Applicable units of measure may be identified in the table column headings or row descriptors.
C13: COLOUR CODING OF INPUT / NON-INPUT CELLS:
D14: Yellow = Input cell (mandatory)
D15: Darker yellow = input cell (mandatory)
D16: Orange = input cell (if data available)
D17: Grey = Not applicable/No inputs required
D18: . PLEASE DO NOT ENTER TEXT into cells that are to contain numeric data.
C21: WORKSHEET NAVIGATION Many tables in the worksheets have been "grouped" to allow for easy navigation. To ungroup or group data use the outline symbols in the left margin of excel (for Row groupings) or above the columns (for column groupings).
C23: RETURNING COMPLETED RESPONSES Please return four (4) files to the AER: 1. A confidential version which must contain a complete set of all responses with confidential information marked using the Mark selected cells CONFIDENTIAL macro and which has been completed using the locked template file provided by the AER. 2. An actual and an estimate version with confidential information marked using the Mark selection CONFIDENTIAL macro and which has been completed using the locked template file provided by the AER. 3. A public version with confidential information either removed completely or aggregated in some form together with writtten consent to disclose the public version of the response. Use the drop down box on the Business and other details worksheet to identify the file as either confidential ('consolidated') or public.
C25: SUBMITTING AMENDED DATA TO THE AER If an NSP wishes to correct data previously submitted to the AER it should resubmit that data using the original completed submission as the starting point. Please make any necessary changes to the data. Data that is not being amended should be left unchanged. NSPs must identify the reason for the amendments in the Amendment Reason box on the Business and other details worksheet. NSPs may provide further details regarding any amendments in the Amendments worksheet. .
C26: NSP may use Amended Data macro to highlight cells that contain amended data. NB: if data is also CONFIDENTIAL, re-apply the Confidentiality macro after applying the Amended macro
C27: Please resubmit two (2) files - a confidential version and a public version of the amended submission to the AER

Sheet Contents
B1: REGULATORY REPORTING STATEMENT
B2: =INDEX(dms_TradingNameFull_List,MATCH(dms_TradingName,dms_TradingName_List)) -> ElectraNet
B3: =CONCATENATE((LOOKUP(dms_Model,dms_Model_List,dms_Worksheet_List))&" "&CRY) -> CATEGORY ANALYSIS 2017-18
B4: CONTENTS
E7: 1. Business details | L7: 2. Expenditure
E26: 4. Network information | L26: 5. Network information

Sheet Business & other details
B1: =IF(dms_DataQuality="backcast",INDEX(dms_Worksheet_List,MATCH(dms_Model,dms_Model_List))&" BACKCAST",INDEX(dms_Worksheet_List,MATCH(dms_Model,dms_Model_List))) -> CATEGORY ANALYSIS
B2: =INDEX(dms_TradingNameFull_List,MATCH(dms_TradingName,dms_TradingName_List)) -> ElectraNet
B3: =IF(SUM(dms_SingleYear_Model)>0,CONCATENATE(CRY),CONCATENATE(FRCP_y1," to ",dms_MultiYear_FinalYear_Result)) -> 2017-18
B4: BUSINESS & OTHER DETAILS
B7: Instructions
B8: Complete the following business details regulatory template before entering data or values in any other regulatory template. This regulatory template is linked to other cells within the spreadsheet and automatically generates column headings and conditional formatting to distinguish business specific input and non-input cells.
B10: SUBMISSION PARTICULARS INPUT SHEETS
B12: ENTITY DETAILS
B14: Short name | C14: ElectraNet | F14: Select business name from drop down list first
B15: ACN / ABN | C15: =INDEX(dms_ABN_List,MATCH(dms_TradingName,dms_TradingName_List)) -> 41094482416
B18: Business address | C18: Address 1 | E18: =INDEX(dms_Addr1_List,MATCH(dms_TradingName,dms_TradingName_List)) -> 52-55 East Terrace
D19: Address 2 | E19: =IF(ISBLANK(INDEX(dms_Addr2_List,MATCH(dms_TradingName,dms_TradingName_List))),"",(INDEX(dms_Addr2_List,MATCH(dms_TradingName,dms_TradingName_List)))) -> Rymill Park
C20: Suburb | E20: =INDEX(dms_Suburb_List,MATCH(dms_TradingName,dms_TradingName_List)) -> ADELAIDE
D21: State | E21: =INDEX(dms_State_List,MATCH(dms_TradingName,dms_TradingName_List)) -> SA | F21: p/code | G21: =INDEX(dms_PostCode_List,MATCH(dms_TradingName,dms_TradingName_List)) -> 5000
B23: Postal address | C23: Address 1 | E23: =INDEX(dms_PAddr1_List,MATCH(dms_TradingName,dms_TradingName_List)) -> PO Box 7096
D24: Address 2 | E24: =IF(ISBLANK(INDEX(dms_PAddr2_List,MATCH(dms_TradingName,dms_TradingName_List))),"",(INDEX(dms_PAddr2_List,MATCH(dms_TradingName,dms_TradingName_List)))) -> Hutt Street Post Office
C25: Suburb | E25: =INDEX(dms_PSuburb_List,MATCH(dms_TradingName,dms_TradingName_List)) -> ADELAIDE
D26: State | E26: =INDEX(dms_PState_List,MATCH(dms_TradingName,dms_TradingName_List)) -> SA | F26: p/code | G26: =INDEX(dms_PPostCode_List,MATCH(dms_TradingName,dms_TradingName_List)) -> 5000
B29: Contact name/s | C29: =INDEX(dms_ContactName1_List,MATCH(dms_TradingName,dms_TradingName_List)) -> Bill Jackson
B30: Contact phone/s | C30: =INDEX(dms_ContactPh1_List,MATCH(dms_TradingName,dms_TradingName_List)) -> 08 8404 7969
B31: Contact email address/s | C31: =INDEX(dms_ContactEmail_List,MATCH(dms_TradingName,dms_TradingName_List)) -> jackson.bill@electranet.com.au
B33: REGULATORY CONTROL PERIODS
B35: Forthcoming regulatory control period | C35: 2020-21 | D35: =dms_FRCP_y2 -> 2021-22 | E35: =dms_FRCP_y3 -> 2022-23 | F35: =dms_FRCP_y4 -> 2023-24 | G35: =dms_FRCP_y5 -> 2024-25
C36: =dms_FRCP_y6 -> 2025-26 | D36: =dms_FRCP_y7 -> 2026-27 | E36: =dms_FRCP_y8 -> 2027-28 | F36: =dms_FRCP_y9 -> 2028-29 | G36: =dms_FRCP_y10 -> 2029-30
B39: Current regulatory control period | C39: =dms_CRCP_FirstYear_Result -> 2015-16 | D39: =IF(dms_RPT="financial",VALUE(LEFT(CRCP_y1,4)+1)&"-"&TEXT(MID(CRCP_y1,3,2)+2,"00"),VALUE(LEFT(CRCP_y1,4)+1)) -> 2016-17 | E39: =IF(dms_RPT="financial",VALUE(LEFT(CRCP_y1,4)+2)&"-"&TEXT(VALUE(MID(CRCP_y1,3,2)+3),"00"),VALUE(LEFT(CRCP_y1,4)+2)) -> 2017-18 | F39: =IF(dms_RPT="financial",VALUE(LEFT(CRCP_y1,4)+3)&"-"&TEXT(MID(CRCP_y1,3,2)+4,"00"),VALUE(LEFT(CRCP_y1,4)+3)) -> 2018-19 | G39: =IF(dms_RPT="financial",VALUE(LEFT(CRCP_y1,4)+4)&"-"&TEXT(MID(CRCP_y1,3,2)+5,"00"),VALUE(LEFT(CRCP_y1,4)+4)) -> 2019-20
C40: =IF(dms_RPT="financial",VALUE(LEFT(CRCP_y1,4)+5)&"-"&TEXT(MID(CRCP_y1,3,2)+6,"00"),VALUE(LEFT(CRCP_y1,4)+5)) -> 2020-21 | D40: =IF(dms_RPT="financial",VALUE(LEFT(CRCP_y1,4)+6)&"-"&TEXT(MID(CRCP_y1,3,2)+7,"00"),VALUE(LEFT(CRCP_y1,4)+6)) -> 2021-22 | E40: =IF(dms_RPT="financial",VALUE(LEFT(CRCP_y1,4)+7)&"-"&TEXT(MID(CRCP_y1,3,2)+8,"00"),VALUE(LEFT(CRCP_y1,4)+7)) -> 2022-23 | F40: =IF(dms_RPT="financial",VALUE(LEFT(CRCP_y1,4)+8)&"-"&TEXT(MID(CRCP_y1,3,2)+9,"00"),VALUE(LEFT(CRCP_y1,4)+8)) -> 2023-24 | G40: =IF(dms_RPT="financial",VALUE(LEFT(CRCP_y1,4)+9)&"-"&TEXT(MID(CRCP_y1,3,2)+10,"00"),VALUE(LEFT(CRCP_y1,4)+9)) -> 2024-25
C41: =IF(dms_RPT="financial",VALUE(LEFT(CRCP_y1,4)+10)&"-"&TEXT(MID(CRCP_y1,3,2)+11,"00"),VALUE(LEFT(CRCP_y1,4)+10)) -> 2025-26 | D41: =IF(dms_RPT="financial",VALUE(LEFT(CRCP_y1,4)+11)&"-"&TEXT(MID(CRCP_y1,3,2)+12,"00"),VALUE(LEFT(CRCP_y1,4)+11)) -> 2026-27 | E41: =IF(dms_RPT="financial",VALUE(LEFT(CRCP_y1,4)+12)&"-"&TEXT(MID(CRCP_y1,3,2)+13,"00"),VALUE(LEFT(CRCP_y1,4)+12)) -> 2027-28 | F41: =IF(dms_RPT="financial",VALUE(LEFT(CRCP_y1,4)+13)&"-"&TEXT(MID(CRCP_y1,3,2)+14,"00"),VALUE(LEFT(CRCP_y1,4)+13)) -> 2028-29 | G41: =IF(dms_RPT="financial",VALUE(LEFT(CRCP_y1,4)+14)&"-"&TEXT(MID(CRCP_y1,3,2)+15,"00"),VALUE(LEFT(CRCP_y1,4)+14)) -> 2029-30
B44: Previous regulatory control period | C44: =IF(dms_RPT="financial",VALUE(LEFT(PRCP_y2,4)-1)&"-"&TEXT(VALUE(MID(PRCP_y2,3,2)),"00"),VALUE(LEFT(PRCP_y2,4)-1)) -> 2010-11 | D44: =IF(dms_RPT="financial",VALUE(LEFT(PRCP_y3,4)-1)&"-"&TEXT(VALUE(MID(PRCP_y3,3,2)),"00"),VALUE(LEFT(PRCP_y3,4)-1)) -> 2011-12 | E44: =IF(dms_RPT="financial",VALUE(LEFT(PRCP_y4,4)-1)&"-"&TEXT(VALUE(MID(PRCP_y4,3,2)),"00"),VALUE(LEFT(PRCP_y4,4)-1)) -> 2012-13 | F44: =IF(dms_RPT="financial",VALUE(LEFT(PRCP_y5,4)-1)&"-"&TEXT(VALUE(RIGHT(PRCP_y5,2)-1),"00"),VALUE(LEFT(PRCP_y5,4)-1)) -> 2013-14 | G44: =IF(dms_RPT="financial",VALUE(LEFT(CRCP_y1,4)-1)&"-"&TEXT(VALUE(RIGHT(CRCP_y1,2)-1),"00"),VALUE(LEFT(CRCP_y1,4)-1)) -> 2014-15
B48: Commencing regulatory year | C48: 2017-18 | D48: CRY
B50: Last completed regulatory year | C50: 2017-18 | D50: dms_FinalYear
C54: IF THIS IS AN ABC RIN - make sure the the named range CRY is applied and the named range dms_dollar_nom_UOM is applied
C55: IF THIS IS A RESET RIN - make sure the named ranges CRY and dms_dollar_nom_UOM are NOT present in the workbook
C56: FOR ABC RINS THAT SPAN MULTIPLE YEARS - make sure MultiYear Flag is set and final year entered as required
B58: Source | C58: Reporting | E58: Please select the correct submission type from the dropdown list.
B59: Data quality (actual, estimate, public, consolidated) | C59: Consolidated | E59: Use Consolidated for Consolidated Confidential version Use Public for Consolidated Public version
B60: Amended RIN submission - amendment reason | C60: .
B61: Submission Date | C61: 31/10/18 | D61: dms_SubmissionDate | E61: Please enter date this file submitted to AER (dd/mm/yyyy)
B62: EBSS - First application of scheme in forthcoming period? | C62: No
B63: Sector | C63: =INDEX(dms_Sector_List,MATCH(dms_TradingName,dms_TradingName_List)) -> Electricity | D63: dms_Sector | E63: =INDEX(dms_Sector_List,MATCH(dms_TradingName,dms_TradingName_List))
B64: Segment | C64: =INDEX(dms_Segment_List,MATCH(dms_TradingName,dms_TradingName_List)) -> Transmission | D64: dms_Segment | E64: =INDEX(dms_Segment_List,MATCH(dms_TradingName,dms_TradingName_List))
B65: Regulatory Year Ending | C65: =IF(dms_MultiYear_Flag=1,LEFT(dms_Specified_FinalYear,2)&RIGHT(dms_Specified_FinalYear,2),INDEX(dms_RYE_Formula_Result,MATCH(dms_Model,dms_Model_List))) -> 2018 | D65: dms_RYE | E65: =IF(dms_MultiYear_Flag=1,LEFT(dms_Specified_FinalYear,2)&RIGHT(dms_Specified_FinalYear,2),INDEX(dms_RYE_Formula_Result,MATCH(dms_Model,dms_Model_List)))
B66: Reporting Period Type | C66: =INDEX(dms_RPT_List,MATCH(dms_TradingName,dms_TradingName_List)) -> Financial | D66: dms_RPT | E66: =INDEX(dms_RPT_List,MATCH(dms_TradingName,dms_TradingName_List))
B67: Model or RIN Type | C67: CA | D67: dms_Model | E67: Drop down selection
B68: EB/CA Unit of Measure for Monetary Values | C68: $0s | D68: dms_dollar_nom_UOM | E68: If the cover sheet is attached to an ABC RIN make the NAMED RANGE on this field is set
B69: Security Classification | C69: Public | D69: dms_Classification | E69: Always Public
B70: Jurisdiction | C70: =INDEX(dms_JurisdictionList,MATCH(dms_TradingName,dms_TradingName_List)) -> SA | D70: dms_Jurisdiction | E70: =INDEX(dms_JurisdictionList,MATCH(dms_TradingName,dms_TradingName_List))
B71: FOR RESET RINS
B72: CRY-1 | C72: =VALUE(LEFT(CRY,4)-1) -> 2016 | D72: dms_Left_CRY_minus1 | E72: =VALUE(LEFT(CRY,4)-1) | G72: Not used in Reset RINS but may be useful in other cases
B73: Dollar $ real month | C73: =INDEX(dms_RPTMonth_List,MATCH(dms_TradingName,dms_TradingName_List)) -> June | D73: dms_RPTMonth | E73: =INDEX(dms_RPTMonth_List,MATCH(dms_TradingName,dms_TradingName_List))
B74: Dollar $ real (the last month before the FRCP_y1) | C74: =IF(SUM(dms_SingleYear_Model)>0,CONCATENATE(dms_RPTMonth)&" "&VALUE((LEFT(CRY,2))&RIGHT(CRY,2)),CONCATENATE(dms_RPTMonth)&" "&VALUE((LEFT(dms_CRCP_FinalYear_Result,2)&RIGHT(dms_CRCP_FinalYear_Result,2)))) -> June 2018 | D74: dms_DollarReal | E74: =IF(SUM(dms_SingleYear_Model)>0,CONCATENATE(dms_RPTMonth)&" "&VALUE((LEFT(CRY,2))&RIGHT(CRY,2)),CONCATENATE(dms_RPTMonth)&" "&VALUE((LEFT(dms_CRCP_FinalYear_Result,2)&RIGHT(dms_CRCP_FinalYear_Result,2))))
B75: Dollar $ real previous year (PRCP_y5) | C75: =IF(SUM(dms_SingleYear_Model)>0,CONCATENATE(dms_RPTMonth)&" "&VALUE(((LEFT(CRY,2))&RIGHT(CRY,2))-1),CONCATENATE(dms_RPTMonth)&" "&VALUE(((LEFT(dms_CRCP_FirstYear_Result,2)&RIGHT(dms_CRCP_FirstYear_Result,2))))-1) -> June 2017 | D75: dms_DollarReal_Prev | E75: =IF(SUM(dms_SingleYear_Model)>0,CONCATENATE(dms_RPTMonth)&" "&VALUE(((LEFT(CRY,2))&RIGHT(CRY,2))-1),CONCATENATE(dms_RPTMonth)&" "&VALUE(((LEFT(dms_CRCP_FirstYear_Result,2)&RIGHT(dms_CRCP_FirstYear_Result,2))))-1)
B76: FOR PTRM/ RFMs
B77: Form of control | C77: =INDEX(dms_FormControl_List,MATCH(dms_TradingName,dms_TradingName_List)) -> Revenue cap | D77: dms_FormControl | E77: =INDEX(dms_FormControl_List,MATCH(dms_TradingName,dms_TradingName_List))
B78: FOR EB RINS
B79: Calendar Year for table 3.6 data | C79: =VALUE(dms_RYE)-1 -> 2017 | D79: dms_0306_Year | E79: =VALUE(dms_RYE)-1
B80: FOR ABC RINS THAT SPAN MULTIPLE YEARS
B81: Is this a multi year ABC RIN? | C81: No
B82: Backcast Multiyear EB, CA or ARR? | C82: =IF(dms_MultiYear_ResponseFlag="No",0,1) -> 0 | D82: dms_MultiYear_Flag | E82: This is set from the answer provided above
C83: =IF(dms_MultiYear_Flag=1,"Specify Final Reg Year here eg 2016 or 2015-16","not a Multi Reg Year submission") -> not a Multi Reg Year submission | D83: dms_Specified_FinalYear | E83: The result here is returned to dms_CRCP_FinalYear_Result if response to Q in C73 is "yes" and dms_MultiYear_Flag is set to 1
B84: This block works out the various RYE's for ALL RIN types and MODELS
B85: Single Year Model T/F | C85: =IF(dms_Model="EB",1,0) -> 0 | D85: dms_EB
C86: =IF(dms_Model="CA",1,0) -> 1 | D86: dms_CA | E86: =dms_SingleYear_Model
C87: =IF(dms_Model="ARR",1,0) -> 0 | D87: dms_ARR
B88: Single Year Final Year Reference | C88: CRY | D88: dms_SingleYear_FinalYear_Ref | E88: This is the reference for EB, CA & ARR RINs
B89: Single Year Final Year Result | C89: =IFERROR(IF(SUM(dms_SingleYear_Model)<>0,(INDIRECT(dms_SingleYear_FinalYear_Ref)),"not a single year RIN"),"CRY not present") -> 2017-18 | D89: dms_SingleYear_FinalYear_Result | E89: =IFERROR(IF(SUM(dms_SingleYear_Model)<>0,(INDIRECT(dms_SingleYear_FinalYear_Ref)),"not a single year RIN"),"CRY not present")
B90: FRCP length in years | C90: =INDEX(dms_FRCPlength_List,MATCH(dms_TradingName,dms_TradingName_List)) -> 5 | D90: dms_FRCPlength_Num | E90: =INDEX(dms_FRCPlength_List,MATCH(dms_TradingName,dms_TradingName_List))
B91: Multi Year Final Year Reference | C91: =INDEX(dms_FinalYear_List,MATCH(dms_FRCPlength_Num,dms_FRCPlength_Num_List)) -> dms_FRCP_y5 | D91: dms_MultiYear_FinalYear_Ref | E91: =INDEX(dms_FinalYear_List,MATCH(dms_FRCPlength_Num,dms_FRCPlength_Num_List))
B92: Multi Year Final Year Result | C92: =IF(dms_MultiYear_Flag=0,INDIRECT(dms_MultiYear_FinalYear_Ref),dms_Specified_FinalYear) -> 2024-25 | D92: dms_MultiYear_FinalYear_Result | E92: =IF(dms_MultiYear_Flag=0,INDIRECT(dms_MultiYear_FinalYear_Ref),dms_Specified_FinalYear) | I92: Formula errors OK
B93: CRCP length in years | C93: =INDEX(dms_CRCPlength_List,MATCH(dms_TradingName,dms_TradingName_List)) -> 5 | D93: dms_CRCPlength_Num | E93: =INDEX(dms_CRCPlength_List,MATCH(dms_TradingName,dms_TradingName_List))
B94: CRCP Final Year Reference | C94: =INDEX(dms_CFinalYear_List,MATCH(dms_CRCPlength_Num,dms_CRCPlength_Num_List)) -> CRCP_y5 | D94: dms_CRCP_FinalYear_Ref | E94: =INDEX(dms_CFinalYear_List,MATCH(dms_CRCPlength_Num,dms_CRCPlength_Num_List))
B95: CRCP First Year Result | C95: =INDEX(dms_CRCP_years,MATCH(dms_CRCPlength_Num,dms_CRCP_index)) -> 2015-16 | D95: dms_CRCP_FirstYear_Result | E95: =INDEX(dms_CRCP_years,MATCH(dms_CRCPlength_Num,dms_CRCP_index))
B96: CRCP Final Year Result | C96: =IF(dms_MultiYear_Flag=0,(IF(SUM(dms_SingleYear_Model)>0,CRY,dms_CRCP_yZ)),dms_Specified_FinalYear) -> 2017-18 | D96: dms_CRCP_FinalYear_Result | E96: =IF(dms_MultiYear_Flag=0,(IF(SUM(dms_SingleYear_Model)>0,CRY,dms_CRCP_yZ)),dms_Specified_FinalYear)
B97: FOR CATEGORY ANALYSIS FILES
B98: How many rows in tables 6.3 sustained interruptions? | C98: =IF(dms_Model<>"CA","not a CA","Is a CA") -> Is a CA | D98: dms_060301_MaxRows only returns a valid value when cover sheet is attached to a CA file
B99: Table 6.3.1 - last row reference | C99: =IFERROR(IF(dms_Model="CA", LOOKUP(2,1/(dms_060301_Avg_Duration_Sustained_Int_Values<>""), (ROW(dms_060301_Avg_Duration_Sustained_Int_Values))), "not a CA"),"no data in 6.3 or 6.3 not present") -> no data in 6.3 or 6.3 not present | D99: dms_060301_LastRow | E99: =IFERROR(IF(dms_Model="CA",LOOKUP(2,1/(dms_060301_Avg_Duration_Sustained_Int_Values<>""),(ROW(dms_060301_Avg_Duration_Sustained_Int_Values))),"not a CA"),"6.3 not present")
B100: Table 6.3.1 - max number rows | C100: =IFERROR(IF(dms_Model="CA",(dms_060301_LastRow-15),"not a CA"),"no data in 6.3 or 6.3 not present") -> no data in 6.3 or 6.3 not present | D100: dms_060301_MaxRows | E100: =IFERROR(IF(dms_Model="CA",(dms_060301_LastRow-15),"not a CA"),"6.3 not present")
B101: Table 6.6.3 - Public lighting repair - no. business days | C101: =INDEX(dms_663_List,MATCH(dms_TradingName,dms_TradingName_List)) -> 5 | D101: dms_663 | E101: =INDEX(dms_663_List,MATCH(dms_TradingName,dms_TradingName_List))
B102: FOR ARR or RESET RINS
B103: How many rows in tables 6.1 or 6.7? (leap year?) | C103: insert dms_LeapYear NR if required | D103: dms_LeapYear is used to determine dms_060701_Max_Rows BUT it is only found on worksheet 6.1 or 6.7 and the date value in the cell is used to determine whether it is a leap year
B104: Is dms_LeapYear named range present? | C104: =IFERROR(IF(dms_LeapYear,"yes"),"no") -> no
B105: Table 6.7.1 - includes a leap year? | C105: =IFERROR(IF(MONTH(DATE(YEAR(dms_LeapYear),2,29))=2,"is a leap year","not a leap year"), "dms_LeapYear not present") -> dms_LeapYear not present | D105: dms_LeapYear_Result | E105: =IFERROR(IF(MONTH(DATE(YEAR(dms_LeapYear),2,29))=2,"is a leap year","not a leap year"),"dms_LeapYear not present")
B106: Table 6.7.1 - Last row (leap year/ non leap year) | C106: =IFERROR(IF(dms_Model="ARR", IF(dms_LeapYear_Result="is a leap year",366,365), (IF(dms_Model="Reset", (IF(dms_LeapYear_Result="is a leap year",1827,1826)), "not a relevant RIN type"))), "dms_LeapYear in either 6.1 or 6.7 not present") -> not a relevant RIN type | D106: dms_060701_MaxRows | E106: =IFERROR(IF(dms_Model="ARR",IF(dms_LeapYear_Result="is a leap year",366,365),(IF(dms_Model="Reset",(IF(dms_LeapYear_Result="is a leap year",1827,1826)),"not a relevant RIN type"))),"dms_LeapYear in either 6.1 or 6.7 not present")
B107: How many columns in 6.7? (4 or 5 feeder categories) | C107: =IF(dms_FifthFeeder_flag_NSP="NO","This NSP has only 4 feeder categories","This NSP has 5 feeder categories") -> This NSP has 5 feeder categories
B108: Table 6.7.1 - Last column (# of feeder categories > 4) | C108: =IF(dms_FifthFeeder_flag_NSP="NO",10,12) -> 12 | D108: dms_060701_MaxCols | E108: =IF(dms_FifthFeeder_flag_NSP="NO",8,10)
B109: Table 6.7.1 - Number of offset rows | C109: =IF(dms_Model="ARR",15,9) -> 9 | D109: dms_060701_OffsetRows | E109: =IF(dms_Model="ARR",15,9)
B110: Start date for telephone answering in 6.1 or 6.7? | E110: Using 060701 as naming standard not 060101
B111: Table 6.1.1 and 6.7.1 - Start Date as Text | C111: =IF(SUM(dms_SingleYear_Model)>0,(CONCATENATE(IF(LEN(CRY)=4,"1-Jan-","1-Jul-"),LEFT(CRY,4))),(CONCATENATE(IF(LEN(CRCP_y4)=4,"1-Jan-","1-Jul-"),LEFT(CRCP_y4,4)))) -> 1-Jul-2017 | D111: dms_060701_StartDateTxt | E111: =IF(SUM(dms_SingleYear_Model)>1,(CONCATENATE(IF(LEN(CRY)=4,"1-Jan-","1-Jul-"),LEFT(CRY,4))),(CONCATENATE(IF(LEN(CRCP_y4)=4,"1-Jan-","1-Jul-"),LEFT(CRCP_y4,4))))
B112: Table 6.1.1 and 6.7.1 - Start Date as Date Value | C112: =DATEVALUE(dms_060701_StartDateTxt) -> 42917 | D112: dms_060701_StartDateVal | E112: =DATEVALUE(dms_060701_StartDateTxt)
B113: FOR ARRs
B114: How many rows in table 6.8? | C114: insert dms_060801_StartCell NR if required | D114: dms_060801_StartCell is only found on worksheet 6.8 and is used to determine the starting date for the date range
B115: Table 6.8 - Number of offset rows | C115: =IFERROR(IF(dms_Model="ARR",(ROW(dms_060801_StartCell)-1),"not an ARR"),"6.8 not present") -> not an ARR | D115: dms_0608_OffsetRows | E115: =IFERROR(IF(dms_Model="ARR",(ROW(dms_060801_StartCell)-1),"not an ARR"),"6.8 not present")
B116: Table 6.8 - Last row | C116: =IFERROR(IF(dms_060801_StartCell<>"",IF(dms_Model="ARR",(LOOKUP(2,1/(dms_060801_01_Values<>""),(ROW(dms_060801_01_Values)))),"not an ARR"),0),"6.8 not present") -> 6.8 not present | D116: dms_0608_LastRow | E116: =IFERROR(IF(dms_060801_StartCell<>"",IF(dms_Model="ARR",(LOOKUP(2,1/(dms_060801_01_Values<>""),(ROW(dms_060801_01_Values)))),"not an ARR"),0),"6.8 not present")
B117: Table 6.8 - MaxRows | C117: =IFERROR(IF(dms_Model="ARR",(MAX(0,dms_0608_LastRow-dms_0608_OffsetRows)),"not an ARR"),"6.8 not present") -> not an ARR | D117: dms_060801_MaxRows | E117: =IFERROR(IF(dms_Model="ARR",(MAX(0,dms_0608_LastRow-dms_0608_OffsetRows)),"not an ARR"),"6.8 not present")
B118: FOR TNSP RESET RINS
B119: Table 7.9.4 only appears in TNSPs Reset RIN
B120: Table 7.9.4 - first year | C120: =LEFT(PRCP_y3,4) -> 2012 | D120: dms_070904_Start_Year | E120: =LEFT(PRCP_y3,4)
B121: FOR SUBSET FILES
B122: Is this Submission File a Subset File | C122: NO | D122: dms_Partial
B123: MISC
B124: Distribution Determination Reference | C124: =INDEX(dms_DeterminationRef_List,MATCH(dms_TradingName,dms_TradingName_List)) -> transmission determination | D124: dms_DeterminationRef
B125: CBD Feeder for this business | C125: =INDEX(dms_CBD_flag,MATCH(dms_TradingName,dms_TradingName_List)) -> n/a | D125: dms_CBD_flag_NSP
B126: Urban Feeder for this business | C126: =INDEX(dms_Urban_flag,MATCH(dms_TradingName,dms_TradingName_List)) -> n/a | D126: dms_Urban_flag_NSP
B127: Short rural Feeder for this business | C127: =INDEX(dms_ShortRural_flag,MATCH(dms_TradingName,dms_TradingName_List)) -> n/a | D127: dms_ShortRural_flag_NSP
B128: Long rural Feeder for this business | C128: =INDEX(dms_LongRural_flag,MATCH(dms_TradingName,dms_TradingName_List)) -> n/a | D128: dms_LongRural_flag_NSP
B129: Fifth Feeder Category (eg. TasNetworks (D)) | C129: =INDEX(dms_FeederType_5_flag,MATCH(dms_TradingName,dms_TradingName_List)) -> n/a | D129: dms_FifthFeeder_flag_NSP | E129: =INDEX(dms_FeederType_5_flag,MATCH(dms_TradingName,dms_TradingName_List))
B131: DISCARD FILES
B132: discard this record? | C132: NO | D132: dms_DISCARD | E132: If record is to be discarded from DB set this flag to YES
B134: USES NAMED RANGES FLAG | C134: yes | D134: dms_Defined_Names_Used
B136: REGULATORY YEARS FOR MULTI RYE SUBMISSIONS
B137: Multiple RYE flag | C137: NO | D137: dms_Multi_RYE_flag
C138: Manually specify RYE | D138: Named ranges to apply
C139: 2013 | D139: dms_RYE_01
C140: 2014 | D140: dms_RYE_02
C141: 2015 | D141: dms_RYE_03
C142: 2016 | D142: dms_RYE_04
C143: 2017 | D143: dms_RYE_05

Sheet 2.1 Expenditure summary
B1: REGULATORY REPORTING STATEMENT
B2: =INDEX(dms_TradingNameFull_List,MATCH(dms_TradingName,dms_TradingName_List)) -> ElectraNet
B3: =CONCATENATE((LOOKUP(dms_Model,dms_Model_List,dms_Worksheet_List))&" "&CRY) -> CATEGORY ANALYSIS 2017-18
B4: 2.1 EXPENDITURE SUMMARY AND RECONCILIATION
B6: There are TWO tables on this worksheet. Each has been grouped for ease of navigation. See the Instructions sheet on how to group or ungroup tables.
B8: 2.1.1 - PRESCRIBED TRANSMISSION SERVICES CAPEX (as incurred)
C9: Actual ($0's)
C10: =CRY -> 2017-18
B11: Replacement expenditure | C11: 126874712.7
B12: Connections | C12: 293091.6973
B13: Augmentation Expenditure | C13: 22030858.3
B14: Non-network | C14: 28256225.66
B15: Capitalised network overheads | C15: 13939467.97
B16: Capitalised corporate overheads | C16: 222559.8382
B32: balancing item | C32: 2.607703209e-08
B33: TOTAL CAPEX | C33: =+SUM(C11:C32) -> 191616916.2
B35: 2.1.2 - PRESCRIBED TRANSMISSION SERVICE OPEX
C36: Actual ($0's)
C37: =CRY -> 2017-18
B38: Vegetation management | C38: 2179458.033
B39: Maintenance | C39: 42958448.9
B40: Non-network | C40: 10099957.99
B41: Network overheads | C41: 26158908.44
B42: Corporate overheads | C42: 29403709.6
B58: balancing item | C58: -17673060.95
B59: TOTAL OPEX | C59: =SUM(C38:C58) -> 93127422

Sheet 2.2 Repex
B1: REGULATORY REPORTING STATEMENT
B2: =INDEX(dms_TradingNameFull_List,MATCH(dms_TradingName,dms_TradingName_List)) -> ElectraNet
B3: =CONCATENATE((LOOKUP(dms_Model,dms_Model_List,dms_Worksheet_List))&" "&CRY) -> CATEGORY ANALYSIS 2017-18
B4: 2.2 REPEX
B6: There are TWO tables (with three sub-tables each) on this worksheet. Each table has been grouped (and sub-grouped) for ease of navigation. See the Instructions sheet on how to group or ungroup data.
B8: 2.2.1 - REPLACEMENT EXPENDITURE, VOLUMES AND ASSET FAILURES BY ASSET CATEGORY
D9: EXPENDITURE ($0's) | E9: ASSET REPLACEMENTS | F9: ASSET FAILURES
B10: ASSET GROUP | C10: ASSET CATEGORY | D10: =CRY -> 2017-18 | E10: =CRY -> 2017-18 | F10: =CRY -> 2017-18
B11: TRANSMISSION TOWERS Highest operating voltage; Circuit configuration | C11: < = 33 kV ; Single Circuit | D11: 0 | E11: 0 | F11: 0
C12: > 33 kV & < = 66 kV ; Single Circuit | D12: 0 | E12: 0 | F12: 0
C13: > 66 kV & < = 132 kV ; Single Circuit | D13: 0 | E13: 0 | F13: 0
C14: > 132 kV & < = 275 kV ; Single Circuit | D14: 0 | E14: 0 | F14: 0
C15: > 275 kV & < = 330 kV ; Single Circuit | D15: 0 | E15: 0 | F15: 0
C16: > 330 kV & < = 500 kV ; Single Circuit | D16: 0 | E16: 0 | F16: 0
C17: > 500 kV ; Single Circuit | D17: 0 | E17: 0 | F17: 0
C18: < = 33 kV ; Multiple Circuit | D18: 0 | E18: 0 | F18: 0
C19: > 33 kV & < = 66 kV ; Multiple Circuit | D19: 0 | E19: 0 | F19: 0
C20: > 66 kV & < = 132 kV ; Multiple Circuit | D20: 0 | E20: 0 | F20: 0
C21: > 132 kV & < = 275 kV ; Multiple Circuit | D21: 2650113.3 | E21: 5 | F21: 5
C22: > 275 kV & < = 330 kV ; Multiple Circuit | D22: 0 | E22: 0 | F22: 0
C23: > 330 kV & < = 500 kV ; Multiple Circuit | D23: 0 | E23: 0 | F23: 0
C24: > 500 kV ; Multiple Circuit | D24: 0 | E24: 0 | F24: 0
C25: Other | D25: 0 | E25: 0 | F25: 0
B26: TRANSMISSION TOWER SUPPORT STRUCTURES BY: Highest operating voltage; Circuit configuration | C26: < = 33 kV ; Single Circuit | D26: 0 | E26: 0 | F26: 0
C27: > 33 kV & < = 66 kV ; Single Circuit | D27: 0 | E27: 0 | F27: 0
C28: > 66 kV & < = 132 kV ; Single Circuit | D28: 0 | E28: 0 | F28: 0
C29: > 132 kV & < = 275 kV ; Single Circuit | D29: 0 | E29: 0 | F29: 0
C30: > 275 kV & < = 330 kV ; Single Circuit | D30: 0 | E30: 0 | F30: 0
C31: > 330 kV & < = 500 kV ; Single Circuit | D31: 0 | E31: 0 | F31: 0
C32: > 500 kV ; Single Circuit | D32: 0 | E32: 0 | F32: 0
C33: < = 33 kV ; Multiple Circuit | D33: 0 | E33: 0 | F33: 0
C34: > 33 kV & < = 66 kV ; Multiple Circuit | D34: 0 | E34: 0 | F34: 0
C35: > 66 kV & < = 132 kV ; Multiple Circuit | D35: 0 | E35: 0 | F35: 0
C36: > 132 kV & < = 275 kV ; Multiple Circuit | D36: 1135737.71 | E36: 42 | F36: 42
C37: > 275 kV & < = 330 kV ; Multiple Circuit | D37: 0 | E37: 0 | F37: 0
C38: > 330 kV & < = 500 kV ; Multiple Circuit | D38: 0 | E38: 0 | F38: 0
C39: > 500 kV ; Multiple Circuit | D39: 0 | E39: 0 | F39: 0
C40: Other | D40: 0 | E40: 0 | F40: 0
B41: CONDUCTORS BY: Voltage; Maximum continuous rating | C41: < = 33 kV ; < = 100 MVA | D41: 0 | E41: 0 | F41: 0
C42: < = 33 kV ; > 100 MVA & < = 400 MVA | D42: 0 | E42: 0 | F42: 0
C43: < = 33 kV ; > 400 MVA | D43: 0 | E43: 0 | F43: 0
C44: > 33 kV & < = 66 kV ; < = 100 MVA | D44: 0 | E44: 0 | F44: 0
C45: > 33 kV & < = 66 kV ; > 100 MVA & < = 400 MVA | D45: 0 | E45: 0 | F45: 0
C46: > 33 kV & < = 66 kV ; > 400 MVA | D46: 0 | E46: 0 | F46: 0
C47: > 66 kV & < = 132 kV ; < = 100 MVA | D47: 0 | E47: 0 | F47: 0
C48: > 66 kV & < = 132 kV ; > 100 MVA & < = 400 MVA | D48: 0 | E48: 0 | F48: 0
C49: > 66 kV & < = 132 kV ; > 400 MVA | D49: 0 | E49: 0 | F49: 0
C50: > 132 kV & < = 275 kV ; < = 200 MVA | D50: 0 | E50: 0 | F50: 0
C51: > 132 kV & < = 275 kV ; > 200 MVA & < = 600 MVA | D51: 0 | E51: 0 | F51: 0
C52: > 132 kV & < = 275 kV ; > 600 MVA | D52: 0 | E52: 0 | F52: 0
C53: > 275 kV & < = 330 kV ; < = 800 MVA | D53: 0 | E53: 0 | F53: 0
C54: > 275 kV & < = 330 kV ; > 800 MVA & < = 1200 MVA | D54: 0 | E54: 0 | F54: 0
C55: > 275 kV & < = 330 kV ; > 1200 MVA | D55: 0 | E55: 0 | F55: 0
C56: > 330 kV & < = 500 kV ; < = 1000 MVA | D56: 0 | E56: 0 | F56: 0
C57: > 330 kV & < = 500 kV ; > 1000 MVA & < = 1500 MVA | D57: 0 | E57: 0 | F57: 0
C58: > 330 kV & < = 500 kV ; > 1500 MVA | D58: 0 | E58: 0 | F58: 0
C59: > 500 kV ; < = 2000 MVA | D59: 0 | E59: 0 | F59: 0
C60: > 500 kV ; > 2000 MVA & < = 3000 MVA | D60: 0 | E60: 0 | F60: 0
C61: > 500 kV ; > 3000 MVA | D61: 0 | E61: 0 | F61: 0
C62: Other | D62: 0 | E62: 0 | F62: 0
B63: TRANSMISSION CABLES BY: Highest operating voltage; Insulation type | C63: < = 33 kV ; Oil Filled | D63: 0 | E63: 0 | F63: 0
C64: > 33 kV & < = 66 kV ; Oil Filled | D64: 0 | E64: 0 | F64: 0
C65: > 66 kV & < = 132 kV ; Oil Filled | D65: 0 | E65: 0 | F65: 0
C66: > 132 kV & < = 275 kV ; Oil Filled | D66: 0 | E66: 0 | F66: 0
C67: > 275 kV & < = 330 kV ; Oil Filled | D67: 0 | E67: 0 | F67: 0
C68: > 330 kV & < = 500 kV ; Oil Filled | D68: 0 | E68: 0 | F68: 0
C69: > 500 kV ; Oil Filled | D69: 0 | E69: 0 | F69: 0
C70: < = 33 kV ; XLPE Insulated | D70: 0 | E70: 0 | F70: 0
C71: > 33 kV & < = 66 kV ; XLPE Insulated | D71: 0 | E71: 0 | F71: 0
C72: > 66 kV & < = 132 kV ; XLPE Insulated | D72: 0 | E72: 0 | F72: 0
C73: > 132 kV & < = 275 kV ; XLPE Insulated | D73: 0 | E73: 0 | F73: 0
C74: > 275 kV & < = 330 kV ; XLPE Insulated | D74: 0 | E74: 0 | F74: 0
C75: > 330 kV & < = 500 kV ; XLPE Insulated | D75: 0 | E75: 0 | F75: 0
C76: > 500 kV ; XLPE Insulated | D76: 0 | E76: 0 | F76: 0
C77: < = 33 kV ; Other Insulated | D77: 0 | E77: 0 | F77: 0
C78: > 33 kV & < = 66 kV ; Other Insulated | D78: 0 | E78: 0 | F78: 0
C79: > 66 kV & < = 132 kV ; Other Insulated | D79: 0 | E79: 0 | F79: 0
C80: > 132 kV & < = 275 kV ; Other Insulated | D80: 0 | E80: 0 | F80: 0
C81: > 275 kV & < = 330 kV ; Other Insulated | D81: 0 | E81: 0 | F81: 0
C82: > 330 kV & < = 500 kV ; Other Insulated | D82: 0 | E82: 0 | F82: 0
C83: > 500 kV ; Other Insulated | D83: 0 | E83: 0 | F83: 0
C84: Other | D84: 0 | E84: 0 | F84: 0
B85: SUBSTATION SWITCHBAYS BY: Highest operating voltage; Switch type | C85: < = 33 kV ; Air Insulated circuit Breaker | D85: 0 | E85: 0 | F85: 0
C86: > 33 kV & < = 66 kV ; Air Insulated circuit Breaker | D86: 0 | E86: 0 | F86: 0
C87: > 66 kV & < = 132 kV ; Air Insulated circuit Breaker | D87: 0 | E87: 0 | F87: 0
C88: > 132 kV & < = 275 kV ; Air Insulated circuit Breaker | D88: 2885235.8 | E88: 4 | F88: 0
C89: > 275 kV & < = 330 kV ; Air Insulated circuit Breaker | D89: 0 | E89: 0 | F89: 0
C90: > 330 kV & < = 500 kV ; Air Insulated circuit Breaker | D90: 0 | E90: 0 | F90: 0
C91: > 500 kV ; Air Insulated circuit Breaker | D91: 0 | E91: 0 | F91: 0
C92: < = 33 kV ; Air Insulated Isolators / Earth Switch | D92: 0 | E92: 0 | F92: 0
C93: > 33 kV & < = 66 kV ; Air Insulated Isolators / Earth Switch | D93: 0 | E93: 0 | F93: 0
C94: > 66 kV & < = 132 kV ; Air Insulated Isolators / Earth Switch | D94: 0 | E94: 0 | F94: 0
C95: > 132 kV & < = 275 kV ; Air Insulated Isolators / Earth Switch | D95: 406290.74 | E95: 2 | F95: 0
C96: > 275 kV & < = 330 kV ; Air Insulated Isolators / Earth Switch | D96: 0 | E96: 0 | F96: 0
C97: > 330 kV & < = 500 kV ; Air Insulated Isolators / Earth Switch | D97: 0 | E97: 0 | F97: 0
C98: > 500 kV ; Air Insulated Isolators / Earth Switch | D98: 0 | E98: 0 | F98: 0
C99: < = 33 kV ; VT | D99: 0 | E99: 0 | F99: 0
C100: > 33 kV & < = 66 kV ; VT | D100: 0 | E100: 0 | F100: 0
C101: > 66 kV & < = 132 kV ; VT | D101: 234134.52 | E101: 1 | F101: 0
C102: > 132 kV & < = 275 kV ; VT | D102: 194510 | E102: 0.6666666667 | F102: 0
C103: > 275 kV & < = 330 kV ; VT | D103: 0 | E103: 0 | F103: 0
C104: > 330 kV & < = 500 kV ; VT | D104: 0 | E104: 0 | F104: 0
C105: > 500 kV ; VT | D105: 0 | E105: 0 | F105: 0
C106: < = 33 kV ; CT | D106: 0 | E106: 0 | F106: 0
C107: > 33 kV & < = 66 kV ; CT | D107: 1039064.16 | E107: 3 | F107: 0
C108: > 66 kV & < = 132 kV ; CT | D108: 0 | E108: 0 | F108: 0
C109: > 132 kV & < = 275 kV ; CT | D109: 475978.92 | E109: 1 | F109: 0
C110: > 275 kV & < = 330 kV ; CT | D110: 0 | E110: 0 | F110: 0
C111: > 330 kV & < = 500 kV ; CT | D111: 0 | E111: 0 | F111: 0
C112: > 500 kV ; CT | D112: 0 | E112: 0 | F112: 0
C113: < = 33 kV ; GIS Module | D113: 0 | E113: 0 | F113: 0
C114: > 33 kV & < = 66 kV ; GIS Module | D114: 0 | E114: 0 | F114: 0
C115: > 66 kV & < = 132 kV ; GIS Module | D115: 0 | E115: 0 | F115: 0
C116: > 132 kV & < = 275 kV ; GIS Module | D116: 0 | E116: 0 | F116: 0
C117: > 275 kV & < = 330 kV ; GIS Module | D117: 0 | E117: 0 | F117: 0
C118: > 330 kV & < = 500 kV ; GIS Module | D118: 0 | E118: 0 | F118: 0
C119: > 500 kV ; GIS Module | D119: 0 | E119: 0 | F119: 0
C120: Other | D120: 0 | E120: 0 | F120: 0
B121: SUBSTATION POWER TRANSFORMERS BY: Highest operating voltage; Ampere rating | C121: < = 33 kV ; < = 10 MVA | D121: 0 | E121: 0 | F121: 0
C122: < = 33 kV ; > 10 MVA & < = 30 MVA | D122: 0 | E122: 0 | F122: 0
C123: < = 33 kV ; > 30 MVA | D123: 0 | E123: 0 | F123: 0
C124: > 33 kV & < = 66 kV ; < = 10 MVA | D124: 0 | E124: 0 | F124: 0
C125: > 33 kV & < = 66 kV ; > 10 MVA & < = 30 MVA | D125: 0 | E125: 0 | F125: 0
C126: > 33 kV & < = 66 kV ; > 30 MVA | D126: 0 | E126: 0 | F126: 0
C127: > 66 kV & < = 132 kV ; < = 30 MVA | D127: 0 | E127: 0 | F127: 0
C128: > 66 kV & < = 132 kV ; > 30 MVA & < = 60 MVA | D128: 0 | E128: 0 | F128: 0
C129: > 66 kV & < = 132 kV ; > 60 MVA | D129: 0 | E129: 0 | F129: 0
C130: > 132 kV & < = 220 kV ; < = 50 MVA | D130: 0 | E130: 0 | F130: 0
C131: > 132 kV & < = 220 kV ; > 50 MVA & < = 100 MVA | D131: 0 | E131: 0 | F131: 0
C132: > 132 kV & < = 220 kV ; > 100 MVA | D132: 0 | E132: 0 | F132: 0
C133: > 220 kV & < = 275 kV ; < = 50 MVA | D133: 0 | E133: 0 | F133: 0
C134: > 220 kV & < = 275 kV ; > 50 MVA & < = 100 MVA | D134: 0 | E134: 0 | F134: 0
C135: > 220 kV & < = 275 kV ; > 100 MVA | D135: 3425800.37 | E135: 1 | F135: 0
C136: > 275 kV & < = 330 kV ; < = 100 MVA | D136: 0 | E136: 0 | F136: 0
C137: > 275 kV & < = 330 kV ; > 100 MVA & < = 250 MVA | D137: 0 | E137: 0 | F137: 0
C138: > 275 kV & < = 330 kV ; > 250 MVA | D138: 0 | E138: 0 | F138: 0
C139: > 330 kV & < = 500 kV ; < = 150 MVA | D139: 0 | E139: 0 | F139: 0
C140: > 330 kV & < = 500 kV ; > 150 MVA & < = 300 MVA | D140: 0 | E140: 0 | F140: 0
C141: > 330 kV & < = 500 kV ; > 300 MVA | D141: 0 | E141: 0 | F141: 0
C142: > 500 kV ; < = 1000 MVA | D142: 0 | E142: 0 | F142: 0
C143: > 500 kV ; > 1000 MVA & < = 1500 MVA | D143: 0 | E143: 0 | F143: 0
C144: > 500 kV ; > 1500 MVA | D144: 0 | E144: 0 | F144: 0
C145: Other | D145: 0 | E145: 0 | F145: 0
B146: SUBSTATION REACTIVE PLANT BY: Highest operating voltage; Function | C146: < = 33 kV ; SVCS | D146: 0 | E146: 0 | F146: 0
C147: > 33 kV & < = 66 kV ; SVCS | D147: 0 | E147: 0 | F147: 0
C148: > 66 kV & < = 132 kV ; SVCS | D148: 0 | E148: 0 | F148: 0
C149: > 132 kV & < = 275 kV ; SVCS | D149: 0 | E149: 0 | F149: 0
C150: > 275 kV & < = 330 kV ; SVCS | D150: 0 | E150: 0 | F150: 0
C151: > 330 kV & < = 500 kV ; SVCS | D151: 0 | E151: 0 | F151: 0
C152: > 500 kV ; SVCS | D152: 0 | E152: 0 | F152: 0
C153: < = 33 kV ; Capacitors | D153: 0 | E153: 0 | F153: 0
C154: > 33 kV & < = 66 kV ; Capacitors | D154: 0 | E154: 0 | F154: 0
C155: > 66 kV & < = 132 kV ; Capacitors | D155: 0 | E155: 0 | F155: 0
C156: > 132 kV & < = 275 kV ; Capacitors | D156: 0 | E156: 0 | F156: 0
C157: > 275 kV & < = 330 kV ; Capacitors | D157: 0 | E157: 0 | F157: 0
C158: > 330 kV & < = 500 kV ; Capacitors | D158: 0 | E158: 0 | F158: 0
C159: > 500 kV ; Capacitors | D159: 0 | E159: 0 | F159: 0
C160: < = 33 kV ; Oil Filled Reactors | D160: 0 | E160: 0 | F160: 0
C161: > 33 kV & < = 66 kV ; Oil Filled Reactors | D161: 0 | E161: 0 | F161: 0
C162: > 66 kV & < = 132 kV ; Oil Filled Reactors | D162: 0 | E162: 0 | F162: 0
C163: > 132 kV & < = 275 kV ; Oil Filled Reactors | D163: 0 | E163: 0 | F163: 0
C164: > 275 kV & < = 330 kV ; Oil Filled Reactors | D164: 0 | E164: 0 | F164: 0
C165: > 330 kV & < = 500 kV ; Oil Filled Reactors | D165: 0 | E165: 0 | F165: 0
C166: > 500 kV ; Oil Filled Reactors | D166: 0 | E166: 0 | F166: 0
C167: Other | D167: 0 | E167: 0 | F167: 0
B168: SCADA, NETWORK CONTROL AND PROTECTION SYSTEMS BY: Function | C168: Communications Network Assets | D168: 0 | E168: 0 | F168: 0
C169: Master Station Assets | D169: 0 | E169: 0 | F169: 0
C170: Control equipment / systems | D170: 0 | E170: 0 | F170: 0
C171: Infrastructure: protection and control | D171: 0 | E171: 0 | F171: 0
C172: Metering systems | D172: 0 | E172: 0 | F172: 0
C173: OPGW | D173: 0 | E173: 0 | F173: 0
C174: Protection schemes / systems | D174: 0 | E174: 0 | F174: 0
C175: Site establishment | D175: 18846770.86 | E175: 1 | F175: 0
C176: Station SCADA and control systems | D176: 0 | E176: 0 | F176: 0
C177: Telecommunications Network / Systems | D177: 0 | E177: 0 | F177: 0
C178: Total secondary systems | D178: 23003841.87 | E178: 1 | F178: 0
C179: Other | D179: 1226776.022 | E179: 1 | F179: 0
B180: OTHER BY: TNSP defined
B181: SCADA, NETWORK CONTROL AND PROTECTION SYSTEMS BY: Function | C181: Telecommunications | D181: 4747976.393 | E181: 1 | F181: 0
B182: SCADA, NETWORK CONTROL AND PROTECTION SYSTEMS BY: Function | F182: 0
B183: SCADA, NETWORK CONTROL AND PROTECTION SYSTEMS BY: Function
B211: 2.2.2 - SELECTED ASSET CHARACTERISTICS
D212: ASSET VOLUMES CURRENTLY IN COMMISSION | E212: ASSET REPLACEMENTS
B213: ASSET GROUP | C213: ASSET CATEGORY | D213: =CRY -> 2017-18 | E213: =CRY -> 2017-18
B214: CONDUCTORS BY: CONDUCTOR LENGTH MATERIAL TYPE | C214: AAAC | D214: 46.982602
C215: AAC | D215: 0.423
C216: ACAR | D216: 0
C217: ACSR | D217: 5404.130639
C218: HD Cu | D218: 36.689
C219: Unknown | D219: 6.7836
B247: SUBSTATION REACTIVE PLANT BY: REACTIVE CAPACITY | C247: Total MVAr by SVCs | D247: 320
C248: Total MVAr by Capacitors | D248: 1110.6
C249: Total MVAr by Oil Filled Reactors | D249: 364.8

Sheet 2.3 Augex
B1: REGULATORY REPORTING STATEMENT
B2: =INDEX(dms_TradingNameFull_List,MATCH(dms_TradingName,dms_TradingName_List)) -> ElectraNet
B3: =CONCATENATE((LOOKUP(dms_Model,dms_Model_List,dms_Worksheet_List))&" "&CRY) -> CATEGORY ANALYSIS 2017-18
B4: 2.3 AUGEX PROJECTS
B6: There are THREE tables on this worksheet - each has been 'grouped' for easy navigation. Both ROWS and COLUMNS have been grouped. See the Instructions sheet on how to group or ungroup tables.
B8: 2.3.1 - AUGEX ASSET DATA - SUBSTATIONS
B9: NOTE: TNSP MUST PROVIDE EXPENDITURE INFORMATION ON A PROJECT CLOSE BASIS.
B10: SUBSTATION AND PROJECT SUMMARY | L10: PLANT AND EQUIPMENT EXPENDITURE AND VOLUME | Z10: OTHER EXPENDITURE | AB10: TOTAL DIRECT EXPENDITURE ($0's) | AC10: YEARS INCURRED | AD10: RELATED PARTY CONTRACTS | AG10: LAND AND EASEMENTS
B11: SUBSTATION ID | C11: SUBSTATION TYPE | D11: PROJECT ID | E11: PROJECT TYPE | F11: PROJECT TRIGGER | G11: VOLTAGE (KV) | H11: SUBSTATION RATING NORMAL CYCLIC (MVA) | J11: SUBSTATION RATING N-1 EMERGENCY (MVA) | L11: TRANSFORMERS | P11: SWITCHGEAR | S11: REACTIVE PLANT | W11: OTHER PLANT ITEM | X11: INSTALLATION (LABOUR) | Z11: CIVIL WORKS | AA11: OTHER DIRECT | AD11: RELATED PARTY MARGINS | AE11: TOTAL | AF11: ALL NON RELATED PARTYCONTRACTS | AG11: LAND PURCHASES | AH11: EASEMENTS | AI11: Comments
H12: PRE | I12: POST | J12: PRE | K12: POST | L12: Units Added | M12: MVA Added | N12: OLTC INCLUDED? | O12: Expenditure ($0's) | P12: Insulation | Q12: Units Added | R12: Expenditure ($0's) | S12: Plant Type | T12: Units Added | U12: Expenditure ($0's) | W12: Expenditure ($0's) | X12: Volume | Y12: Expenditure ($0's) | Z12: Expenditure ($0's) | AD12: Expenditure ($0's) | AG12: Expenditure ($0's)
B13: Cultana H512 | C13: Transmission substation | D13: 11101 | E13: Capacity upgrade | F13: Voltage issues | G13: 275 | H13: 160 | I13: 400 | J13: 0 | K13: 200 | L13: 2 | M13: 400 | N13: Yes | O13: 3511000 | P13: Air | Q13: 8 132kV Circuit Breakers | R13: 474268 | W13: 356814 | Y13: 816141 | Z13: 2558777 | AA13: 40759703.23 | AC13: 2008, 2010, 2011, 2012, 2013, 2014, 2015, 2016, 2017, 2018
P14: Air | Q14: 11 132kV Disconnectors with ES | R14: 184682 | W14: 172620
P15: Air | Q15: 5 275kV Circuit Breakers | R15: 324275 | W15: 30842
P16: Air | Q16: 13 275kV Disconnectors with ES | R16: 352587 | W16: 277371
W17: 84340
W18: 43893
B20: Project Totals | L20: =SUM(L13:L19) -> 2 | M20: =SUM(M13:M19) -> 400 | O20: =SUM(O13:O19) -> 3511000 | Q20: =SUM(Q13:Q19) -> 0 | R20: =SUM(R13:R19) -> 1335812 | T20: =SUM(T13:T19) -> 0 | U20: =SUM(U13:U19) -> 0 | W20: =SUM(W13:W19) -> 965880 | X20: =SUM(X13:X19) -> 0 | Y20: =SUM(Y13:Y19) -> 816141 | Z20: =SUM(Z13) -> 2558777 | AA20: =SUM(AA13) -> 40759703.23 | AB20: =O20+R20+U20+W20+SUM(Y20:AA20) -> 49947313.23 | AD20: =SUM(AD13) -> 0 | AE20: =SUM(AE13) -> 0 | AF20: =SUM(AF13) -> 0 | AG20: =SUM(AG13) -> 0 | AH20: =SUM(AH13) -> 0
B21: <Enter substation ID>
B28: Project Totals | L28: =SUM(L21:L27) -> 0 | M28: =SUM(M21:M27) -> 0 | O28: =SUM(O21:O27) -> 0 | Q28: =SUM(Q21:Q27) -> 0 | R28: =SUM(R21:R27) -> 0 | T28: =SUM(T21:T27) -> 0 | U28: =SUM(U21:U27) -> 0 | W28: =SUM(W21:W27) -> 0 | X28: =SUM(X21:X27) -> 0 | Y28: =SUM(Y21:Y27) -> 0 | Z28: =SUM(Z21) -> 0 | AA28: =SUM(AA21) -> 0 | AB28: =O28+R28+U28+W28+SUM(Y28:AA28) -> 0 | AD28: =SUM(AD21) -> 0 | AE28: =SUM(AE21) -> 0 | AF28: =SUM(AF21) -> 0 | AG28: =SUM(AG21) -> 0 | AH28: =SUM(AH21) -> 0
B29: <Enter substation ID>
B36: Project Totals | L36: =SUM(L29:L35) -> 0 | M36: =SUM(M29:M35) -> 0 | O36: =SUM(O29:O35) -> 0 | Q36: =SUM(Q29:Q35) -> 0 | R36: =SUM(R29:R35) -> 0 | T36: =SUM(T29:T35) -> 0 | U36: =SUM(U29:U35) -> 0 | W36: =SUM(W29:W35) -> 0 | X36: =SUM(X29:X35) -> 0 | Y36: =SUM(Y29:Y35) -> 0 | Z36: =SUM(Z29) -> 0 | AA36: =SUM(AA29) -> 0 | AB36: =O36+R36+U36+W36+SUM(Y36:AA36) -> 0 | AD36: =SUM(AD29) -> 0 | AE36: =SUM(AE29) -> 0 | AF36: =SUM(AF29) -> 0 | AG36: =SUM(AG29) -> 0 | AH36: =SUM(AH29) -> 0
B37: <Enter substation ID>
B44: Project Totals | L44: =SUM(L37:L43) -> 0 | M44: =SUM(M37:M43) -> 0 | O44: =SUM(O37:O43) -> 0 | Q44: =SUM(Q37:Q43) -> 0 | R44: =SUM(R37:R43) -> 0 | T44: =SUM(T37:T43) -> 0 | U44: =SUM(U37:U43) -> 0 | W44: =SUM(W37:W43) -> 0 | X44: =SUM(X37:X43) -> 0 | Y44: =SUM(Y37:Y43) -> 0 | Z44: =SUM(Z37) -> 0 | AA44: =SUM(AA37) -> 0 | AB44: =O44+R44+U44+W44+SUM(Y44:AA44) -> 0 | AD44: =SUM(AD37) -> 0 | AE44: =SUM(AE37) -> 0 | AF44: =SUM(AF37) -> 0 | AG44: =SUM(AG37) -> 0 | AH44: =SUM(AH37) -> 0
B45: <Enter substation ID>
B52: Project Totals | L52: =SUM(L45:L51) -> 0 | M52: =SUM(M45:M51) -> 0 | O52: =SUM(O45:O51) -> 0 | Q52: =SUM(Q45:Q51) -> 0 | R52: =SUM(R45:R51) -> 0 | T52: =SUM(T45:T51) -> 0 | U52: =SUM(U45:U51) -> 0 | W52: =SUM(W45:W51) -> 0 | X52: =SUM(X45:X51) -> 0 | Y52: =SUM(Y45:Y51) -> 0 | Z52: =SUM(Z45) -> 0 | AA52: =SUM(AA45) -> 0 | AB52: =O52+R52+U52+W52+SUM(Y52:AA52) -> 0 | AD52: =SUM(AD45) -> 0 | AE52: =SUM(AE45) -> 0 | AF52: =SUM(AF45) -> 0 | AG52: =SUM(AG45) -> 0 | AH52: =SUM(AH45) -> 0
B53: <Enter substation ID>
B60: Project Totals | L60: =SUM(L53:L59) -> 0 | M60: =SUM(M53:M59) -> 0 | O60: =SUM(O53:O59) -> 0 | Q60: =SUM(Q53:Q59) -> 0 | R60: =SUM(R53:R59) -> 0 | T60: =SUM(T53:T59) -> 0 | U60: =SUM(U53:U59) -> 0 | W60: =SUM(W53:W59) -> 0 | X60: =SUM(X53:X59) -> 0 | Y60: =SUM(Y53:Y59) -> 0 | Z60: =SUM(Z53) -> 0 | AA60: =SUM(AA53) -> 0 | AB60: =O60+R60+U60+W60+SUM(Y60:AA60) -> 0 | AD60: =SUM(AD53) -> 0 | AE60: =SUM(AE53) -> 0 | AF60: =SUM(AF53) -> 0 | AG60: =SUM(AG53) -> 0 | AH60: =SUM(AH53) -> 0
B61: <Enter substation ID>
B68: Project Totals | L68: =SUM(L61:L67) -> 0 | M68: =SUM(M61:M67) -> 0 | O68: =SUM(O61:O67) -> 0 | Q68: =SUM(Q61:Q67) -> 0 | R68: =SUM(R61:R67) -> 0 | T68: =SUM(T61:T67) -> 0 | U68: =SUM(U61:U67) -> 0 | W68: =SUM(W61:W67) -> 0 | X68: =SUM(X61:X67) -> 0 | Y68: =SUM(Y61:Y67) -> 0 | Z68: =SUM(Z61) -> 0 | AA68: =SUM(AA61) -> 0 | AB68: =O68+R68+U68+W68+SUM(Y68:AA68) -> 0 | AD68: =SUM(AD61) -> 0 | AE68: =SUM(AE61) -> 0 | AF68: =SUM(AF61) -> 0 | AG68: =SUM(AG61) -> 0 | AH68: =SUM(AH61) -> 0
B69: <Enter substation ID>
B76: Project Totals | L76: =SUM(L69:L75) -> 0 | M76: =SUM(M69:M75) -> 0 | O76: =SUM(O69:O75) -> 0 | Q76: =SUM(Q69:Q75) -> 0 | R76: =SUM(R69:R75) -> 0 | T76: =SUM(T69:T75) -> 0 | U76: =SUM(U69:U75) -> 0 | W76: =SUM(W69:W75) -> 0 | X76: =SUM(X69:X75) -> 0 | Y76: =SUM(Y69:Y75) -> 0 | Z76: =SUM(Z69) -> 0 | AA76: =SUM(AA69) -> 0 | AB76: =O76+R76+U76+W76+SUM(Y76:AA76) -> 0 | AD76: =SUM(AD69) -> 0 | AE76: =SUM(AE69) -> 0 | AF76: =SUM(AF69) -> 0 | AG76: =SUM(AG69) -> 0 | AH76: =SUM(AH69) -> 0
B77: <Enter substation ID>
B84: Project Totals | L84: =SUM(L77:L83) -> 0 | M84: =SUM(M77:M83) -> 0 | O84: =SUM(O77:O83) -> 0 | Q84: =SUM(Q77:Q83) -> 0 | R84: =SUM(R77:R83) -> 0 | T84: =SUM(T77:T83) -> 0 | U84: =SUM(U77:U83) -> 0 | W84: =SUM(W77:W83) -> 0 | X84: =SUM(X77:X83) -> 0 | Y84: =SUM(Y77:Y83) -> 0 | Z84: =SUM(Z77) -> 0 | AA84: =SUM(AA77) -> 0 | AB84: =O84+R84+U84+W84+SUM(Y84:AA84) -> 0 | AD84: =SUM(AD77) -> 0 | AE84: =SUM(AE77) -> 0 | AF84: =SUM(AF77) -> 0 | AG84: =SUM(AG77) -> 0 | AH84: =SUM(AH77) -> 0
B85: <Enter substation ID>
B92: Project Totals | L92: =SUM(L85:L91) -> 0 | M92: =SUM(M85:M91) -> 0 | O92: =SUM(O85:O91) -> 0 | Q92: =SUM(Q85:Q91) -> 0 | R92: =SUM(R85:R91) -> 0 | T92: =SUM(T85:T91) -> 0 | U92: =SUM(U85:U91) -> 0 | W92: =SUM(W85:W91) -> 0 | X92: =SUM(X85:X91) -> 0 | Y92: =SUM(Y85:Y91) -> 0 | Z92: =SUM(Z85) -> 0 | AA92: =SUM(AA85) -> 0 | AB92: =O92+R92+U92+W92+SUM(Y92:AA92) -> 0 | AD92: =SUM(AD85) -> 0 | AE92: =SUM(AE85) -> 0 | AF92: =SUM(AF85) -> 0 | AG92: =SUM(AG85) -> 0 | AH92: =SUM(AH85) -> 0
B93: <Enter substation ID>
B100: Project Totals | L100: =SUM(L93:L99) -> 0 | M100: =SUM(M93:M99) -> 0 | O100: =SUM(O93:O99) -> 0 | Q100: =SUM(Q93:Q99) -> 0 | R100: =SUM(R93:R99) -> 0 | T100: =SUM(T93:T99) -> 0 | U100: =SUM(U93:U99) -> 0 | W100: =SUM(W93:W99) -> 0 | X100: =SUM(X93:X99) -> 0 | Y100: =SUM(Y93:Y99) -> 0 | Z100: =SUM(Z93) -> 0 | AA100: =SUM(AA93) -> 0 | AB100: =O100+R100+U100+W100+SUM(Y100:AA100) -> 0 | AD100: =SUM(AD93) -> 0 | AE100: =SUM(AE93) -> 0 | AF100: =SUM(AF93) -> 0 | AG100: =SUM(AG93) -> 0 | AH100: =SUM(AH93) -> 0
B101: <Enter substation ID>
B108: Project Totals | L108: =SUM(L101:L107) -> 0 | M108: =SUM(M101:M107) -> 0 | O108: =SUM(O101:O107) -> 0 | Q108: =SUM(Q101:Q107) -> 0 | R108: =SUM(R101:R107) -> 0 | T108: =SUM(T101:T107) -> 0 | U108: =SUM(U101:U107) -> 0 | W108: =SUM(W101:W107) -> 0 | X108: =SUM(X101:X107) -> 0 | Y108: =SUM(Y101:Y107) -> 0 | Z108: =SUM(Z101) -> 0 | AA108: =SUM(AA101) -> 0 | AB108: =O108+R108+U108+W108+SUM(Y108:AA108) -> 0 | AD108: =SUM(AD101) -> 0 | AE108: =SUM(AE101) -> 0 | AF108: =SUM(AF101) -> 0 | AG108: =SUM(AG101) -> 0 | AH108: =SUM(AH101) -> 0
B109: <Enter substation ID>
B116: Project Totals | L116: =SUM(L109:L115) -> 0 | M116: =SUM(M109:M115) -> 0 | O116: =SUM(O109:O115) -> 0 | Q116: =SUM(Q109:Q115) -> 0 | R116: =SUM(R109:R115) -> 0 | T116: =SUM(T109:T115) -> 0 | U116: =SUM(U109:U115) -> 0 | W116: =SUM(W109:W115) -> 0 | X116: =SUM(X109:X115) -> 0 | Y116: =SUM(Y109:Y115) -> 0 | Z116: =SUM(Z109) -> 0 | AA116: =SUM(AA109) -> 0 | AB116: =O116+R116+U116+W116+SUM(Y116:AA116) -> 0 | AD116: =SUM(AD109) -> 0 | AE116: =SUM(AE109) -> 0 | AF116: =SUM(AF109) -> 0 | AG116: =SUM(AG109) -> 0 | AH116: =SUM(AH109) -> 0
B117: <Enter substation ID>
B124: Project Totals | L124: =SUM(L117:L123) -> 0 | M124: =SUM(M117:M123) -> 0 | O124: =SUM(O117:O123) -> 0 | Q124: =SUM(Q117:Q123) -> 0 | R124: =SUM(R117:R123) -> 0 | T124: =SUM(T117:T123) -> 0 | U124: =SUM(U117:U123) -> 0 | W124: =SUM(W117:W123) -> 0 | X124: =SUM(X117:X123) -> 0 | Y124: =SUM(Y117:Y123) -> 0 | Z124: =SUM(Z117) -> 0 | AA124: =SUM(AA117) -> 0 | AB124: =O124+R124+U124+W124+SUM(Y124:AA124) -> 0 | AD124: =SUM(AD117) -> 0 | AE124: =SUM(AE117) -> 0 | AF124: =SUM(AF117) -> 0 | AG124: =SUM(AG117) -> 0 | AH124: =SUM(AH117) -> 0
B125: <Enter substation ID>
B132: Project Totals | L132: =SUM(L125:L131) -> 0 | M132: =SUM(M125:M131) -> 0 | O132: =SUM(O125:O131) -> 0 | Q132: =SUM(Q125:Q131) -> 0 | R132: =SUM(R125:R131) -> 0 | T132: =SUM(T125:T131) -> 0 | U132: =SUM(U125:U131) -> 0 | W132: =SUM(W125:W131) -> 0 | X132: =SUM(X125:X131) -> 0 | Y132: =SUM(Y125:Y131) -> 0 | Z132: =SUM(Z125) -> 0 | AA132: =SUM(AA125) -> 0 | AB132: =O132+R132+U132+W132+SUM(Y132:AA132) -> 0 | AD132: =SUM(AD125) -> 0 | AE132: =SUM(AE125) -> 0 | AF132: =SUM(AF125) -> 0 | AG132: =SUM(AG125) -> 0 | AH132: =SUM(AH125) -> 0
D133: Non material projects | AB133: 0
D134: Non material projects | AB134: 0
B137: 2.3.2 - AUGEX ASSET DATA - LINES
B138: NOTE: TNSP MUST PROVIDE EXPENDITURE INFORMATION ON A PROJECT CLOSE BASIS.
B139: LINE AND PROJECT SUMMARY | L139: PLANT AND EQUIPMENT EXPENDITURE AND VOLUME | Z139: OTHER EXPENDITURE | AB139: TOTAL DIRECT EXPENDITURE ($0's) | AC139: YEARS INCURRED | AD139: ALL RELATED PARTY CONTRACTS | AG139: LAND AND EASEMENTS
B140: LINE ID | D140: PROJECT ID | E140: PROJECT TYPE | F140: PROJECT TRIGGER | G140: VOLTAGE (KV) | H140: ROUTE LINE LENGTH ADDED | L140: TOWERS/POLES (INCLUDING STRUCTURES, AND CIVIL WORKS) | P140: LINES AND CABLES | W140: OTHER PLANT ITEM | X140: INSTALLATION (LABOUR) | Z140: CIVIL WORKS | AA140: OTHER DIRECT | AD140: RELATED PARTY MARGINS | AE140: TOTAL | AF140: ALL NON RELATED PARTYCONTRACTS | AG140: LAND PURCHASES | AH140: EASEMENTS
P141: Type | Q141: Rating (MVA) | S141: N-1 Emergency Rating (MVA) | U141: Circuit KM Added | V141: Expenditure ($0's)
H142: KM ADDED | L142: Configuration | M142: Towers/Poles Added | N142: Towers/Poles Upgraded | O142: Expenditure ($0's) | Q142: PRE | R142: POST | S142: PRE | T142: POST | W142: Expenditure ($0's) | X142: Volume | Y142: Expenditure ($0's) | Z142: Expenditure ($0's) | AD142: Expenditure ($0's) | AG142: Expenditure ($0's)
C143: F1810 CULTANA - YADNARIE | D143: 11101 | E143: Line rebuild over existing route - single circuit | F143: Voltage issues | G143: 132 | H143: 1.8 | L143: Single circuit steel tower | M143: 6 | N143: 5 | O143: 768362 | P143: Overhead line | Q143: 0 | R143: 96 | S143: 0 | T143: 96 | U143: 1.8 | V143: 483418 | Y143: 100698 | AA143: 13446964.63 | AC143: 2010, 2011, 2012, 2013, 2014, 2015, 2016, 2017, 2018
C144: F1935 DAVENPORT - CULTANA No1 | G144: 275 | H144: 0.5 | L144: Multiple circuit steel tower | M144: 1 | N144: 6 | O144: 1039061 | P144: Overhead line | Q144: 0 | R144: 457 | S144: 0 | T144: 457 | U144: 0.5 | V144: 284849 | Y144: 41554
B150: Project Totals | M150: =SUM(M143:M149) -> 7 | N150: =SUM(N143:N149) -> 11 | O150: =SUM(O143:O149) -> 1807423 | U150: =SUM(U143:U149) -> 2.3 | V150: 768267 | W150: 0 | X150: 0 | Y150: 142252 | Z150: 0 | AA150: 13446964.63 | AB150: =O150+R150+V150+W150+SUM(Y150:AA150) -> 16164906.63 | AD150: =SUM(AD143:AD149) -> 0 | AE150: =SUM(AE143:AE149) -> 0 | AF150: =SUM(AF143:AF149) -> 0 | AG150: =SUM(AG143:AG149) -> 0 | AH150: =SUM(AH143:AH149) -> 0
B151: <Enter line ID>
B158: Project Totals | M158: =SUM(M151:M157) -> 0 | N158: =SUM(N151:N157) -> 0 | O158: =SUM(O151:O157) -> 0 | U158: =SUM(U151:U157) -> 0 | V158: =SUM(V151:V157) -> 0 | W158: =SUM(W151:W157) -> 0 | X158: 0 | Y158: 0 | Z158: 0 | AA158: 0 | AB158: =O158+R158+U158+W158+SUM(Y158:AA158) -> 0 | AD158: =SUM(AD151:AD157) -> 0 | AE158: =SUM(AE151:AE157) -> 0 | AF158: =SUM(AF151:AF157) -> 0 | AG158: =SUM(AG151:AG157) -> 0 | AH158: =SUM(AH151:AH157) -> 0
B159: <Enter line ID>
B166: Project Totals | M166: =SUM(M159:M165) -> 0 | N166: =SUM(N159:N165) -> 0 | O166: =SUM(O159:O165) -> 0 | U166: =SUM(U159:U165) -> 0 | V166: =SUM(V159:V165) -> 0 | W166: =SUM(W159:W165) -> 0 | X166: 0 | Y166: 0 | Z166: 0 | AA166: 0 | AB166: =O166+R166+U166+W166+SUM(Y166:AA166) -> 0 | AD166: =SUM(AD159:AD165) -> 0 | AE166: =SUM(AE159:AE165) -> 0 | AF166: =SUM(AF159:AF165) -> 0 | AG166: =SUM(AG159:AG165) -> 0 | AH166: =SUM(AH159:AH165) -> 0
B167: <Enter line ID>
B174: Project Totals | M174: =SUM(M167:M173) -> 0 | N174: =SUM(N167:N173) -> 0 | O174: =SUM(O167:O173) -> 0 | U174: =SUM(U167:U173) -> 0 | V174: =SUM(V167:V173) -> 0 | W174: =SUM(W167:W173) -> 0 | X174: 0 | Y174: 0 | Z174: 0 | AA174: 0 | AB174: =O174+R174+U174+W174+SUM(Y174:AA174) -> 0 | AD174: =SUM(AD167:AD173) -> 0 | AE174: =SUM(AE167:AE173) -> 0 | AF174: =SUM(AF167:AF173) -> 0 | AG174: =SUM(AG167:AG173) -> 0 | AH174: =SUM(AH167:AH173) -> 0
B175: <Enter line ID>
B182: Project Totals | M182: =SUM(M175:M181) -> 0 | N182: =SUM(N175:N181) -> 0 | O182: =SUM(O175:O181) -> 0 | U182: =SUM(U175:U181) -> 0 | V182: =SUM(V175:V181) -> 0 | W182: =SUM(W175:W181) -> 0 | X182: 0 | Y182: 0 | Z182: 0 | AA182: 0 | AB182: =O182+R182+U182+W182+SUM(Y182:AA182) -> 0 | AD182: =SUM(AD175:AD181) -> 0 | AE182: =SUM(AE175:AE181) -> 0 | AF182: =SUM(AF175:AF181) -> 0 | AG182: =SUM(AG175:AG181) -> 0 | AH182: =SUM(AH175:AH181) -> 0
B183: <Enter line ID>
B190: Project Totals | M190: =SUM(M183:M189) -> 0 | N190: =SUM(N183:N189) -> 0 | O190: =SUM(O183:O189) -> 0 | U190: =SUM(U183:U189) -> 0 | V190: =SUM(V183:V189) -> 0 | W190: =SUM(W183:W189) -> 0 | X190: 0 | Y190: 0 | Z190: 0 | AA190: 0 | AB190: =O190+R190+U190+W190+SUM(Y190:AA190) -> 0 | AD190: =SUM(AD183:AD189) -> 0 | AE190: =SUM(AE183:AE189) -> 0 | AF190: =SUM(AF183:AF189) -> 0 | AG190: =SUM(AG183:AG189) -> 0 | AH190: =SUM(AH183:AH189) -> 0
B191: <Enter line ID>
B198: Project Totals | M198: =SUM(M191:M197) -> 0 | N198: =SUM(N191:N197) -> 0 | O198: =SUM(O191:O197) -> 0 | U198: =SUM(U191:U197) -> 0 | V198: =SUM(V191:V197) -> 0 | W198: =SUM(W191:W197) -> 0 | X198: 0 | Y198: 0 | Z198: 0 | AA198: 0 | AB198: =O198+R198+U198+W198+SUM(Y198:AA198) -> 0 | AD198: =SUM(AD191:AD197) -> 0 | AE198: =SUM(AE191:AE197) -> 0 | AF198: =SUM(AF191:AF197) -> 0 | AG198: =SUM(AG191:AG197) -> 0 | AH198: =SUM(AH191:AH197) -> 0
D199: Non material projects | AB199: 9927.621171 | AC199: 2013
D200: Non material projects | AB200: 73734.67509 | AC200: 2014
D201: Non material projects | AB201: 3603454.807 | AC201: 2015
D202: Non material projects | AB202: 3357679.629 | AC202: 2016
D203: Non material projects | AB203: 1826664.741 | AC203: 2017
D204: Non material projects | AB204: 719441.7789 | AC204: 2018
B208: 2.3.4 - AUGEX - TOTAL EXPENDITURE
C210: EXPENDITURE ($0's)
B211: AUGMENTATION CAPEX (as incurred) | C211: =CRY -> 2017-18
B212: Substations | C212: 16310033.06
B213: Lines | C213: 2379609.274
B214: Other assets | C214: 3244470.309
B215: Total augmentation capex | C215: =SUM(C212:C214) -> 21934112.65

Sheet 2.5 Connections
B1: REGULATORY REPORTING STATEMENT
B2: =INDEX(dms_TradingNameFull_List,MATCH(dms_TradingName,dms_TradingName_List)) -> ElectraNet
B3: =CONCATENATE((LOOKUP(dms_Model,dms_Model_List,dms_Worksheet_List))&" "&CRY) -> CATEGORY ANALYSIS 2017-18
B4: 2.5 CONNECTIONS EXPENDITURE
B6: There are TWO tables on this worksheet. Each has been grouped (or sub-grouped). See the Instructions sheet on how to group or ungroup data.
B8: 2.5.1 - EXPENDITURE ON CONNECTION PROJECTS
C9: EXPENDITURE ($0's)
B10: CONNECTION PROJECT | C10: =CRY -> 2017-18
B11: DIRECT MATERIALS EXPENDITURE
B12: EC.11826 Dalrymple Substation Upgrade | C12: 985181.06
B37: DIRECT LABOUR EXPENDITURE
B38: =IF(ISBLANK(B12),"",B12) -> EC.11826 Dalrymple Substation Upgrade | C38: 1611447.333
B66: 2.5.2 - DESCRIPTION OF CONNECTION PROJECTS
C67: CONNECTION RATING (MVA) | D67: CONNECTION VOLTAGE (KV) | E67: UNDERGROUND / OVERHEAD | F67: YEAR CONNECTION PROJECT COMPLETED
B68: =IF(ISBLANK(B12),"",B12) -> EC.11826 Dalrymple Substation Upgrade | C68: 25 | D68: 132 | E68: Overhead | F68: 2018

Sheet 2.6 Non-network
B1: REGULATORY REPORTING STATEMENT
B2: =INDEX(dms_TradingNameFull_List,MATCH(dms_TradingName,dms_TradingName_List)) -> ElectraNet
B3: =CONCATENATE((LOOKUP(dms_Model,dms_Model_List,dms_Worksheet_List))&" "&CRY) -> CATEGORY ANALYSIS 2017-18
B4: 2.6 NON NETWORK EXPENDITURE
B6: There are THREE tables on this worksheet - each has been 'grouped' (and sub-grouped) for easy navigation. See the Instructions sheet on how to group or ungroup tables.
B8: 2.6.1 - NON-NETWORK EXPENDITURE
E9: EXPENDITURE ($0's)
B10: SERVICE SUBCATEGORY | C10: ASSET CATEGORY | E10: =CRY -> 2017-18
B11: OPEX
B12: IT & COMMUNICATIONS | C12: Client device expenditure | E12: 174447.65
C13: Recurrent expenditure | E13: 7472034.03
C14: Non-recurrent expenditure | E14: 0
B15: MOTOR VEHICLES | C15: Car | E15: 73337.68
C16: Light commercial vehicle
C17: Elevated work platform (LCV)
C18: Elevated work platform (HCV)
C19: Heavy commercial vehicle
B20: BUILDINGS AND PROPERTY | C20: Total buildings and property expenditure | E20: 2380138.626
B21: OTHER | C21: Other expenditure
B22: OTHER - TNSP nominated
B33: CAPEX
B34: IT & COMMUNICATIONS | C34: Client device expenditure | E34: 0
C35: Recurrent expenditure | E35: 1066869.98
C36: Non-recurrent expenditure | E36: 0
B37: MOTOR VEHICLES | C37: Car | E37: 3373.092
C38: Light commercial vehicle
C39: Elevated work platform (LCV)
C40: Elevated work platform (HCV)
C41: Heavy commercial vehicle
B42: BUILDINGS AND PROPERTY | C42: Total buildings and property expenditure | E42: 630478.744
B43: OTHER | C43: Other expenditure
B44: OTHER - TNSP nominated | C44: Plant and equipment | E44: 124350.314
B58: 2.6.2 - ANNUAL DESCRIPTOR METRICS - IT & COMMUNICATIONS EXPENDITURE
E59: VOLUMES (0's)
B60: NON-NETWORK CATEGORY | C60: DESCRIPTOR METRIC | E60: =CRY -> 2017-18
B61: IT & COMMUNICATIONS | C61: Employee numbers | E61: 305.09
C62: User numbers | E62: 372.09
C63: Number of devices | E63: 650.922
B66: 2.6.3 - ANNUAL DESCRIPTOR METRICS - MOTOR VEHICLES
E67: VOLUMES / %
B68: ASSET CATEGORY | C68: DESCRIPTOR METRIC | D68: UNITS | E68: =CRY -> 2017-18
B69: CAR | C69: Average kilometres travelled | D69: 0's | E69: 25.7834629
C70: Number purchased | D70: 0's | E70: 16
C71: Number leased | D71: 0's | E71: 7.583333333
C72: Number in fleet | D72: 0's | E72: 23.58333333
C73: Proportion of total fleet expenditure allocated as regulatory expenditure | D73: (per cent) | E73: 0.8795246318
B74: LIGHT COMMERCIAL VEHICLE | C74: Average kilometres travelled | D74: 0's
C75: Number purchased | D75: 0's
C76: Number leased | D76: 0's
C77: Number in fleet | D77: 0's
C78: Proportion of total fleet expenditure allocated as regulatory expenditure | D78: (per cent)
B79: ELEVATED WORK PLATFORM (LCV) | C79: Average kilometres travelled | D79: 0's
C80: Number purchased | D80: 0's
C81: Number leased | D81: 0's
C82: Number in fleet | D82: 0's
C83: Proportion of total fleet expenditure allocated as regulatory expenditure | D83: (per cent)
B84: ELEVATED WORK PLATFORM (HCV) | C84: Average kilometres travelled | D84: 0's
C85: Number purchased | D85: 0's
C86: Number leased | D86: 0's
C87: Number in fleet | D87: 0's
C88: Proportion of total fleet expenditure allocated as regulatory expenditure | D88: (per cent)
B89: HEAVY COMMERCIAL VEHICLE | C89: Average kilometres travelled | D89: 0's
C90: Number purchased | D90: 0's
C91: Number leased | D91: 0's
C92: Number in fleet | D92: 0's
C93: Proportion of total fleet expenditure allocated as regulatory expenditure | D93: (per cent)

Sheet 2.7 Vegetation management
B1: REGULATORY REPORTING STATEMENT
B2: =INDEX(dms_TradingNameFull_List,MATCH(dms_TradingName,dms_TradingName_List)) -> ElectraNet
B3: =CONCATENATE((LOOKUP(dms_Model,dms_Model_List,dms_Worksheet_List))&" "&CRY) -> CATEGORY ANALYSIS 2017-18
B4: 2.7 VEGETATION MANAGEMENT
B6: There are THREE tables on this worksheet. Each has been 'grouped' for easy navigation. See the Instructions sheet on how to group or ungroup data.
B8: 2.7.1 - DESCRIPTOR METRICS BY ZONE
E9: VOLUMES
B10: ZONES | C10: ASSET / ENVIRONMENTAL FACTOR | D10: UNITS | E10: =CRY -> 2017-18
B11: HBFRA (High Bushfire Risk Area) | C11: Route line length within zone | D11: km | E11: 1015.7
C12: Number of maintenance spans | D12: 0's | E12: 366
C13: Total length of maintenance spans | D13: km | E13: 126.9
C14: Average number of trees per maintenance span | D14: 0's | E14: 37.2
C15: Length of vegetation corridors | D15: km | E15: 1015.7
C16: Average width of vegetation corridors | D16: metres | E16: 93.14772727
C17: Average frequency of cutting cycle | D17: years | E17: 1
B18: BFRA (Bushfire Risk Area) | C18: Route line length within zone | D18: km | E18: 2630.3
C19: Number of maintenance spans | D19: 0's | E19: 648
C20: Total length of maintenance spans | D20: km | E20: 218.3
C21: Average number of trees per maintenance span | D21: 0's | E21: 8.6
C22: Length of vegetation corridors | D22: km | E22: 2630.3
C23: Average width of vegetation corridors | D23: metres | E23: 91.19959857
C24: Average frequency of cutting cycle | D24: years | E24: 1
B25: NBFRA (Non Bushfire Risk Area) | C25: Route line length within zone | D25: km | E25: 891.3
C26: Number of maintenance spans | D26: 0's | E26: 25
C27: Total length of maintenance spans | D27: km | E27: 8.5
C28: Average number of trees per maintenance span | D28: 0's | E28: 7.3
C29: Length of vegetation corridors | D29: km | E29: 891.3
C30: Average width of vegetation corridors | D30: metres | E30: 30.34261658
C31: Average frequency of cutting cycle | D31: years | E31: 3
B32: ZONE 4 | C32: Route line length within zone | D32: km
C33: Number of maintenance spans | D33: 0's
C34: Total length of maintenance spans | D34: km
C35: Average number of trees per maintenance span | D35: 0's
C36: Length of vegetation corridors | D36: km
C37: Average width of vegetation corridors | D37: metres
C38: Average frequency of cutting cycle | D38: years
B39: ZONE 5 | C39: Route line length within zone | D39: km
C40: Number of maintenance spans | D40: 0's
C41: Total length of maintenance spans | D41: km
C42: Average number of trees per maintenance span | D42: 0's
C43: Length of vegetation corridors | D43: km
C44: Average width of vegetation corridors | D44: metres
C45: Average frequency of cutting cycle | D45: years
B46: ZONE 6 | C46: Route line length within zone | D46: km
C47: Number of maintenance spans | D47: 0's
C48: Total length of maintenance spans | D48: km
C49: Average number of trees per maintenance span | D49: 0's
C50: Length of vegetation corridors | D50: km
C51: Average width of vegetation corridors | D51: metres
C52: Average frequency of cutting cycle | D52: years
B53: ZONE 7 | C53: Route line length within zone | D53: km
C54: Number of maintenance spans | D54: 0's
C55: Total length of maintenance spans | D55: km
C56: Average number of trees per maintenance span | D56: 0's
C57: Length of vegetation corridors | D57: km
C58: Average width of vegetation corridors | D58: metres
C59: Average frequency of cutting cycle | D59: years
B60: ZONE 8 | C60: Route line length within zone | D60: km
C61: Number of maintenance spans | D61: 0's
C62: Total length of maintenance spans | D62: km
C63: Average number of trees per maintenance span | D63: 0's
C64: Length of vegetation corridors | D64: km
C65: Average width of vegetation corridors | D65: metres
C66: Average frequency of cutting cycle | D66: years
B67: ZONE 9 | C67: Route line length within zone | D67: km
C68: Number of maintenance spans | D68: 0's
C69: Total length of maintenance spans | D69: km
C70: Average number of trees per maintenance span | D70: 0's
C71: Length of vegetation corridors | D71: km
C72: Average width of vegetation corridors | D72: metres
C73: Average frequency of cutting cycle | D73: years
B74: ZONE 10 | C74: Route line length within zone | D74: km
C75: Number of maintenance spans | D75: 0's
C76: Total length of maintenance spans | D76: km
C77: Average number of trees per maintenance span | D77: 0's
C78: Length of vegetation corridors | D78: km
C79: Average width of vegetation corridors | D79: metres
C80: Average frequency of cutting cycle | D80: years
B83: 2.7.2 - EXPENDITURE METRICS BY ZONE
E84: EXPENDITURE ($0's)
B85: ZONES | C85: SERVICE SUBCATEGORY | E85: =CRY -> 2017-18
B86: =B11 -> HBFRA (High Bushfire Risk Area) | C86: Tree trimming
C87: Vegetation corridor clearance
C88: Inspection
C89: Audit
C90: Contractor liaison expenditure
C91: Other vegetation management expenditure
B92: =B18 -> BFRA (Bushfire Risk Area) | C92: Tree trimming
C93: Vegetation corridor clearance
C94: Inspection
C95: Audit
C96: Contractor liaison expenditure
C97: Other vegetation management expenditure
B98: =B25 -> NBFRA (Non Bushfire Risk Area) | C98: Tree trimming
C99: Vegetation corridor clearance
C100: Inspection
C101: Audit
C102: Contractor liaison expenditure
C103: Other vegetation management expenditure
B104: =B32 -> ZONE 4 | C104: Tree trimming
C105: Vegetation corridor clearance
C106: Inspection
C107: Audit
C108: Contractor liaison expenditure
C109: Other vegetation management expenditure
B110: =B39 -> ZONE 5 | C110: Tree trimming
C111: Vegetation corridor clearance
C112: Inspection
C113: Audit
C114: Contractor liaison expenditure
C115: Other vegetation management expenditure
B116: =B46 -> ZONE 6 | C116: Tree trimming
C117: Vegetation corridor clearance
C118: Inspection
C119: Audit
C120: Contractor liaison expenditure
C121: Other vegetation management expenditure
B122: =B53 -> ZONE 7 | C122: Tree trimming
C123: Vegetation corridor clearance
C124: Inspection
C125: Audit
C126: Contractor liaison expenditure
C127: Other vegetation management expenditure
B128: =B60 -> ZONE 8 | C128: Tree trimming
C129: Vegetation corridor clearance
C130: Inspection
C131: Audit
C132: Contractor liaison expenditure
C133: Other vegetation management expenditure
B134: =B67 -> ZONE 9 | C134: Tree trimming
C135: Vegetation corridor clearance
C136: Inspection
C137: Audit
C138: Contractor liaison expenditure
C139: Other vegetation management expenditure
B140: =B74 -> ZONE 10 | C140: Tree trimming
C141: Vegetation corridor clearance
C142: Inspection
C143: Audit
C144: Contractor liaison expenditure
C145: Other vegetation management expenditure
B148: 2.7.3 - DESCRIPTOR METRICS ACROSS ALL ZONES - UNPLANNED VEGETATION EVENTS
E149: VOLUMES (0's)
B150: DESCRIPTOR METRIC | E150: =CRY -> 2017-18
B151: Number of fire starts caused by vegetation grow-ins (NSP responsibility) | E151: 0
B152: Number of fire starts caused by vegetation blow-ins and fall-ins (NSP responsibility) | E152: 0
B153: Number of outages caused by vegetation grow-ins (NSP responsibility) | E153: 0
B154: Number of outages caused by vegetation blow-ins and fall-ins (NSP responsibility) | E154: 0
B155: Number of fire starts caused by vegetation grow-ins (other party responsibility) | E155: 0
B156: Number of fire starts caused by vegetation blow-ins and fall-ins (other party responsibility) | E156: 0
B157: Number of outages caused by vegetation grow-ins (other party responsibility) | E157: 0
B158: Number of outages caused by vegetation blow-ins and fall-ins (other party responsibility) | E158: 0

Sheet 2.8 Maintenance
B1: REGULATORY REPORTING STATEMENT
B2: =INDEX(dms_TradingNameFull_List,MATCH(dms_TradingName,dms_TradingName_List)) -> ElectraNet
B3: =CONCATENATE((LOOKUP(dms_Model,dms_Model_List,dms_Worksheet_List))&" "&CRY) -> CATEGORY ANALYSIS 2017-18
B4: 2.8 MAINTENANCE
B6: There are TWO tables on this worksheet. Each has been 'grouped' for easy navigation. See the Instructions sheet on how to group or ungroup data.
B8: 2.8.1 - DESCRIPTOR METRICS FOR ROUTINE AND NON-ROUTINE MAINTENANCE
F9: ASSET QUANTITY | H9: AVERAGE AGE OF ASSET GROUP | I9: INSPECTION CYCLE (YEARS) | J9: MAINTENANCE CYCLE (YEARS)
B10: MAINTENANCE ACTIVITY | C10: MAINTENANCE ASSET CATEGORY | D10: MEASURE / ASSET QUANTITY | E10: UNITS | F10: AT YEAR END | G10: INSPECTED/ MAINTAINED
F11: =CRY -> 2017-18 | G11: =CRY -> 2017-18 | H11: =CRY -> 2017-18
B12: Transmission lines maintenance | C12: Transmission towers | D12: Number of towers | E12: 0's | F12: 13290 | G12: 13290 | H12: 46.1 | I12: 0.5 | J12: Nil. Cond mon.&corr mtce
C13: Transmission tower support structures | D13: Number of towers | E13: 0's | F13: 62202 | G13: 62202 | H13: 42.97 | I13: 0.5 | J13: Nil. Cond mon.&corr mtce
C14: Conductors | D14: Route length | E14: km | F14: 5494.97 | G14: 5494.97 | H14: 44.7 | I14: 0.5 | J14: Nil. Cond mon.&corr mtce
C15: Transmission cables | D15: Route length | E15: km | F15: 27 | G15: 27 | H15: 14.2 | I15: 0.02 | J15: Nil. Cond mon.&corr mtce
B16: Substations equipment & property maintenance | C16: Substation switchbays (incl. Reactive plant) | D16: Number of switchbays | E16: 0's | F16: 1604 | G16: 1604 | H16: 26.4 | I16: 0.25 | J16: 6
C17: Substation power transformers | D17: Number of transformers | E17: 0's | F17: 138 | G17: 138 | H17: 27.3 | I17: 0.25 | J17: 6
C18: Substation property | D18: Number of substation properties maintained | E18: 0's | F18: 78 | G18: 78 | H18: 38.9 | I18: 0.25 | J18: 0.5
B19: SCADA & network control maintenance | C19: SCADA & network control maintenance | D19: Number of Comms Sites | E19: 0's | F19: 119 | G19: 119 | H19: 28.9 | I19: 0.5 | J19: Nil. Cond mon.&corr mtce
B20: Protection systems maintenance | C20: Protection systems maintenance | D20: Number of Protection Systems | E20: 0's | F20: 1437 | G20: 1437 | H20: 13.2 | I20: 0.25 | J20: 4
B21: Other maintenance activity | D21: <NSP to enter measure>
B22: Right of way (Row) Maintenance | C22: Row Maintenance | D22: Length (Route KM) | E22: km | F22: 4537 | G22: 4537 | H22: 46.1 | I22: 0.5 | J22: 3
B46: 2.8.2 - COST METRICS FOR ROUTINE AND NON-ROUTINE MAINTENANCE
F47: DIRECT EXPENDITURE ($0's)
B48: ASSET CATEGORIES | C48: ASSET SUBCATEGORIES | F48: ROUTINE MAINTENANCE | G48: NON-ROUTINE MAINTENANCE
F49: =CRY -> 2017-18 | G49: =CRY -> 2017-18
B50: Transmission lines maintenance | C50: Transmission towers | F50: 2515164.372 | G50: 5874736.414
C51: Transmission tower support structures | F51: 1649465.697 | G51: 2271658.247
C52: Conductors | F52: 626458.6093 | G52: 1302510.388
C53: Transmission cables | F53: 235938.3218 | G53: 199164.2612
B54: Substations equipment & property maintenance | C54: Substation switchbays (incl. Reactive plant) | F54: 2225441.713 | G54: 5400925.205
C55: Substation power transformers | F55: 1043835.101 | G55: 2813243.165
C56: Substation property | F56: 4309324.585 | G56: 3834776.61
B57: SCADA & network control maintenance | C57: SCADA & network control maintenance | F57: 2215616.06 | G57: 663537.91
B58: Protection systems maintenance | C58: Protection systems maintenance | F58: 2344982.17 | G58: 1429107.9
B59: Other maintenance activity | C59: =IF(ISBLANK(C21),"",C21) ->  | D59: =IF(ISBLANK(D21),"",D21) -> <NSP to enter measure>
C60: =IF(ISBLANK(C22),"",C22) -> Row Maintenance | F60: 1868309.06 | G60: 134253.11

Sheet 2.10 Overheads
B1: REGULATORY REPORTING STATEMENT
B2: =INDEX(dms_TradingNameFull_List,MATCH(dms_TradingName,dms_TradingName_List)) -> ElectraNet
B3: =CONCATENATE((LOOKUP(dms_Model,dms_Model_List,dms_Worksheet_List))&" "&CRY) -> CATEGORY ANALYSIS 2017-18
B4: 2.10 OVERHEADS
B7: There are TWO tables on this worksheet. Each has been 'grouped' (and sub-grouped) for easy navigation. See the Instructions sheet on how to group or ungroup data.
B9: Instructions
B10: Enter each expenditure category currently reported under annual Information Guidelines.
B12: 2.10.1 - NETWORK OVERHEADS EXPENDITURE
D13: EXPENDITURE ($0's)
D14: =CRY -> 2017-18
B15: MAINTENANCE SUPPORT
B16: Prescribed Services | C16: Total Overhead Expenditure - Prescribed Services | D16: 7939689.592
B41: Negotiated Services | C41: Total | D41: 61944.46945
B42: Unregulated Services | C42: Total | D42: 184244.2272
B43: NETWORK MONITORING AND CONTROL
B44: Prescribed Services | C44: Total Overhead Expenditure - Prescribed Services | D44: 6726095.11
B65: Negotiated Services | C65: Total | D65: -0.6105204921
B66: Unregulated Services | C66: Total | D66: 180973.8759
B67: ASEET MANAGEMENT SUPPORT
B68: Prescribed Services | C68: Total Overhead Expenditure - Prescribed Services | D68: 11493123.73
B94: Negotiated Services | C94: Total | D94: 13.60041421
B95: Unregulated Services | C95: Total | D95: 1972208.464
B99: 2.10.2 - CORPORATE OVERHEADS EXPENDITURE
D100: EXPENDITURE ($0's)
D101: =CRY -> 2017-18
B102: CORPORATE OVERHEADS
B103: Prescribed Services | C103: Total Overhead Expenditure - Prescribed Services | D103: 29403709.6
B128: Negotiated Services | C128: Total | D128: -0.006770505908
B129: Unregulated Services | C129: Total | D129: 57596.71963

Sheet 2.11 Labour
B1: REGULATORY REPORTING STATEMENT
B2: =INDEX(dms_TradingNameFull_List,MATCH(dms_TradingName,dms_TradingName_List)) -> ElectraNet
B3: =CONCATENATE((LOOKUP(dms_Model,dms_Model_List,dms_Worksheet_List))&" "&CRY) -> CATEGORY ANALYSIS 2017-18
B4: 2.11 LABOUR
B6: There are TWO tables on this worksheet. Each table has been 'grouped' (and sub-grouped) for easy navigation. See the Instructions sheet on how to group or ungroup data.
B8: 2.11.1 - COST METRICS PER ANNUM
D9: ASL (0's) | E9: TOTAL LABOUR EXPENDITURE ($0's) | F9: AVERAGE PRODUCTIVE WORK HOURS PER ASL (0's) | G9: STAND-DOWN OCCURENCES PER ASL (0's)
D11: =CRY -> 2017-18 | E11: =CRY -> 2017-18 | F11: =CRY -> 2017-18 | G11: =CRY -> 2017-18
B12: CORPORATE OVERHEADS | C12: Executive manager | D12: 8.298083333 | E12: 3246232.1 | F12: 1742.419233 | G12: 0
C13: Senior manager | D13: 14.33683333 | E13: 3708187.047 | F13: 1902.502145 | G13: 0
C14: Manager | D14: 12.76983333 | E14: 2199909.583 | F14: 1606.468279 | G14: 0
C15: Professional | D15: 54.19259428 | E15: 9109957.513 | F15: 1661.83323 | G15: 0
C16: Semi professional | D16: 10.25248671 | E16: 1255604.769 | F16: 1682.396718 | G16: 0
C17: Support staff | D17: 13.36673987 | E17: 1549414.496 | F17: 1717.094836 | G17: 0
C18: Intern, junior staff, apprentice | D18: 0 | E18: 0 | F18: 0 | G18: 0
B19: NETWORK OVERHEADS | C19: Executive manager | D19: 0 | E19: 0 | F19: 0 | G19: 0
C20: Senior manager | D20: 6.993333333 | E20: 1677239.341 | F20: 1845.972355 | G20: 0
C21: Manager | D21: 16.0435 | E21: 3264705.657 | F21: 1594.412389 | G21: 0
C22: Professional | D22: 169.9326033 | E22: 32843143.43 | F22: 1635.700514 | G22: 0
C23: Semi professional | D23: 4.754623403 | E23: 709830.6147 | F23: 1603.754778 | G23: 0
C24: Support staff | D24: 5.911298544 | E24: 645567.3562 | F24: 1466.809693 | G24: 0
C25: Intern, junior staff, apprentice | D25: 0.34225 | E25: 38968.09138 | F25: 1924.03214 | G25: 0
B26: TOTAL DIRECT NETWORK LABOUR | C26: Skilled electrical worker
C27: Skilled non electical worker
C28: Apprentice
C29: Unskilled worker
B32: 2.11.2 - DESCRIPTOR METRICS
B33: AVERAGE PRODUCTIVE WORK HOURS PER ASL
D34: ORDINARY TIME (0's) | F34: OVERTIME (0's)
D35: PER ASL | E35: HOURLY RATE PER ASL | F35: PER ASL | G35: HOURLY RATE PER ASL
D36: =CRY -> 2017-18 | E36: =CRY -> 2017-18 | F36: =CRY -> 2017-18 | G36: =CRY -> 2017-18
B37: CORPORATE OVERHEADS | C37: Executive manager | D37: 1742.419233 | E37: 224.5169427 | F37: 0 | G37: 0
C38: Senior manager | D38: 1902.502145 | E38: 135.9512612 | F38: 0 | G38: 0
C39: Manager | D39: 1606.468279 | E39: 107.2376894 | F39: 0 | G39: 0
C40: Professional | D40: 1661.694834 | E40: 101.157443 | F40: 0.1383952937 | G40: 76.34382048
C41: Semi professional | D41: 1670.009479 | E41: 72.49423418 | F41: 12.38723868 | G41: 113.2016946
C42: Support staff | D42: 1712.269426 | E42: 67.57587856 | F42: 4.825409984 | G42: 43.0120661
C43: Intern, junior staff, apprentice | D43: 0 | E43: 0 | F43: 0 | G43: 0
B44: NETWORK OVERHEADS | C44: Executive manager | D44: 0 | E44: 0 | F44: 0 | G44: 0
C45: Senior manager | D45: 1845.972355 | E45: 129.922874 | F45: 0 | G45: 0
C46: Manager | D46: 1594.412389 | E46: 127.6274972 | F46: 0 | G46: 0
C47: Professional | D47: 1624.125572 | E47: 117.9741104 | F47: 11.57494184 | G47: 144.0019744
C48: Semi professional | D48: 1561.848199 | E48: 92.23374457 | F48: 41.90657873 | G48: 124.9828228
C49: Support staff | D49: 1462.749671 | E49: 74.53215549 | F49: 4.060021639 | G49: 46.10169479
C50: Intern, junior staff, apprentice | D50: 1924.03214 | E50: 59.17705601 | F50: 0 | G50: 0
B51: TOTAL DIRECT NETWORK LABOUR | C51: Skilled electrical worker
C52: Skilled non electical worker
C53: Apprentice
C54: Unskilled worker

Sheet 2.12 Input tables
B1: REGULATORY REPORTING STATEMENT
B2: =INDEX(dms_TradingNameFull_List,MATCH(dms_TradingName,dms_TradingName_List)) -> ElectraNet
B3: =CONCATENATE((LOOKUP(dms_Model,dms_Model_List,dms_Worksheet_List))&" "&CRY) -> CATEGORY ANALYSIS 2017-18
B4: 2.12 INPUT TABLES
B7: 2.12 INPUT TABLES
D8: DIRECT MATERIAL EXPENDITURE ($0's) | E8: DIRECT LABOUR EXPENDITURE ($0's) | F8: CONTRACT EXPENDITURE ($0's) | G8: OTHER EXPENDITURE ($0's) | H8: RELATED PARTY CONTRACT EXPENDITURE ($0's) | I8: RELATED PARTY CONTRACT MARGIN
D9: =CRY -> 2017-18 | E9: 2017-18 | F9: 2017-18 | G9: 2017-18 | H9: 2017-18 | I9: 2017-18
B10: VEGETATION MANAGEMENT | C10: ='2.7 Vegetation management'!B11 -> HBFRA (High Bushfire Risk Area) | E10: 41202.8034 | F10: 446681.0757
C11: ='2.7 Vegetation management'!B18 -> BFRA (Bushfire Risk Area) | E11: 106700.5354 | F11: 1156744.347
C12: ='2.7 Vegetation management'!B25 -> NBFRA (Non Bushfire Risk Area) | E12: 36156.40314 | F12: 391972.8687
C13: ='2.7 Vegetation management'!B32 -> ZONE 4
C14: ='2.7 Vegetation management'!B39 -> ZONE 5
C15: ='2.7 Vegetation management'!B46 -> ZONE 6
C16: ='2.7 Vegetation management'!B53 -> ZONE 7
C17: ='2.7 Vegetation management'!B60 -> ZONE 8
C18: ='2.7 Vegetation management'!B67 -> ZONE 9
C19: ='2.7 Vegetation management'!B74 -> ZONE 10
B30: ROUTINE MAINTENANCE | C30: Transmission Lines Maintenance | E30: 17717.78355 | F30: 5009309.216
C31: Substations Equipment & Propoerty Maintenance | E31: 26710.82117 | F31: 7551890.579
C32: SCADA & Network Control Maintenance | E32: 7808.950653 | F32: 2207807.109
C33: Protection Systems Maintenance | E33: 8264.9022 | F33: 2336717.268
B48: NON-ROUTINE MAINTENANCE | C48: Transmission Lines Maintenance | E48: 34004.67188 | F48: 9614064.638
C49: Substations Equipment & Propoerty Maintenance | E49: 42466.57102 | F49: 12006478.41
C50: Scada & Network Control Maintenance | E50: 2338.642913 | F50: 661199.2671
C51: Protection Systems Maintenance | E51: 5036.898437 | F51: 1424071.002
B64: OVERHEADS | C64: Network Overheads | E64: 18313510.94 | G64: 7845397.494
C65: Corporate Overheads | E65: 13078486.56 | G65: 16325223.04 | H65: 815000
B66: AUGMENTATION | C66: Subtransmission Substations, Switching Stations , Zone Substations | D66: 2075102.006 | E66: 2173164.934 | F66: 11875223.58 | G66: 148035.561
C67: Subtransmission Lines | D67: 673561.3013 | E67: 550598.1991 | F67: 1144251.37 | G67: -46688.88604
C68: HV Feeders | D68: 0 | E68: 0
C69: Other Assets | D69: 1892475.73 | E69: 218568.0726 | F69: 1310233.166 | G69: 16333.259
B70: CONNECTIONS | C70: All New Customer Connections | D70: 29972.75 | E70: 216847.6131 | F70: 37995.39337 | G70: 8275.940848
B71: REPLACEMENT | C71: Transmission Towers | D71: 1276783.463 | E71: 242447.3679 | F71: 1109727.683
C72: Transmission Tower Support Structures | D72: 9856703.55 | E72: 1871681.378 | F72: 8567041.404
C73: Conductors | D73: 236065.1738 | E73: 44826.22284 | F73: 205178.1417
C74: Transmission Cables | D74: 57026.04567 | E74: 10828.62919 | F74: 49564.6939
C75: Substation Switchbays | D75: 10669763.27 | E75: 2121545.794 | F75: 9273719.479
C76: Substation Power Transformers | D76: 1344580.576 | E76: 264525.4416 | F76: 1168654.146
C77: Substation Reactive Plant | D77: 207071.0051 | E77: 43922.88797 | F77: 179977.6025
C78: SCADA network control and protection systems | D78: 13008761.24 | E78: 2577053.705 | F78: 11306680.33
C79: Other | D79: 24682933.6 | E79: 5044258.993 | F79: 21453390.89
B80: NON-NETWORK EXPENDITURE | C80: IT and communications | E80: 7207565.243 | G80: 22641553.75
C81: Motor Vehicles | E81: 16682.85289 | G81: 213369.1322
C82: Buildings And Property | E82: 560545.3118 | G82: 7922556.912
C83: Other | E83: 0 | G83: 0

Sheet 5.2 Asset Age Profile
B1: REGULATORY REPORTING STATEMENT
B2: =INDEX(dms_TradingNameFull_List,MATCH(dms_TradingName,dms_TradingName_List)) -> ElectraNet
B3: =CONCATENATE((LOOKUP(dms_Model,dms_Model_List,dms_Worksheet_List))&" "&CRY) -> CATEGORY ANALYSIS 2017-18
B4: 5.2 ASSET AGE PROFILE
B5: .
B6: There is ONE table on this worksheet. Both ROWS and COLUMNS have been 'grouped' for easy navigation. See the Instructions sheet on how to group or ungroup data.
B8: TABLE 5.2.1 - ASSET AGE PROFILE
D9: ECONOMIC LIFE (YEARS) | F9: INSTALLED ASSETS -˃ QUANTITY CURRENTLY IN COMMISSION BY YEAR
B10: ASSET GROUP | C10: ASSET CATEGORY | D10: MEAN | E10: STANDARD DEVIATION | F10: =CRY -> 2017-18 | G10: =IF(dms_RPT="financial",(VALUE(LEFT(F10,4)-1)&"-"&MID(F10,3,2)),VALUE(LEFT(F10,4)-1)) -> 2016-17 | H10: =IF(dms_RPT="financial",(VALUE(LEFT(G10,4)-1)&"-"&MID(G10,3,2)),VALUE(LEFT(G10,4)-1)) -> 2015-16 | I10: 2014-15 | J10: 2013-14 | K10: 2012-13 | L10: 2011-12 | M10: 2010-11 | N10: 2009-10 | O10: 2008-09 | P10: 2007-08 | Q10: 2006-07 | R10: 2005-06 | S10: 2004-05 | T10: 2003-04 | U10: 2002-03 | V10: 2001-02 | W10: 2000-01 | X10: 1999-00 | Y10: 1998-99 | Z10: 1997-98 | AA10: 1996-97 | AB10: 1995-96 | AC10: 1994-95 | AD10: 1993-94 | AE10: 1992-93 | AF10: 1991-92 | AG10: 1990-91 | AH10: 1989-90 | AI10: 1988-89 | AJ10: 1987-88 | AK10: 1986-87 | AL10: 1985-86 | AM10: =IF(dms_RPT="financial",(VALUE(LEFT(AL10,4)-1)&"-"&MID(AL10,3,2)),VALUE(LEFT(AL10,4)-1)) -> 1984-85 | AN10: 1983-84 | AO10: 1982-83 | AP10: 1981-82 | AQ10: 1980-81 | AR10: 1979-80 | AS10: 1978-79 | AT10: 1977-78 | AU10: 1976-77 | AV10: 1975-76 | AW10: 1974-75 | AX10: 1973-74 | AY10: 1972-73 | AZ10: 1971-72 | BA10: 1970-71 | BB10: 1969-70 | BC10: 1968-69 | BD10: 1967-68 | BE10: 1966-67 | BF10: 1965-66 | BG10: 1964-65 | BH10: 1963-64 | BI10: 1962-63 | BJ10: 1961-62 | BK10: 1960-61 | BL10: 1959-60 | BM10: 1958-59 | BN10: 1957-58 | BO10: 1956-57 | BP10: 1955-56 | BQ10: 1954-55 | BR10: 1953-54 | BS10: =IF(dms_RPT="financial",(VALUE(LEFT(BR10,4)-1)&"-"&MID(BR10,3,2)),VALUE(LEFT(BR10,4)-1)) -> 1952-53 | BT10: 1951-52 | BU10: 1950-51 | BV10: 1949-50 | BW10: 1948-49 | BX10: 1947-48 | BY10: 1946-47 | BZ10: 1945-46 | CA10: 1944-45 | CB10: 1943-44 | CC10: 1942-43 | CD10: 1941-42 | CE10: 1940-41 | CF10: 1939-40 | CG10: 1938-39 | CH10: 1937-38 | CI10: 1936-37 | CJ10: 1935-36 | CK10: 1934-35 | CL10: 1933-34 | CM10: 1932-33 | CN10: 1931-32 | CO10: 1930-31 | CP10: 1929-30 | CQ10: 1928-29 | CR10: 1927-28 | CS10: 1926-27 | CT10: 1925-26 | CU10: 1924-25 | CV10: 1923-24 | CW10: 1922-23 | CX10: 1921-22 | CY10: =IF(dms_RPT="financial",(VALUE(LEFT(CX10,4)-1)&"-"&MID(CX10,3,2)),VALUE(LEFT(CX10,4)-1)) -> 1920-21 | CZ10: 1919-20 | DA10: 1918-19 | DB10: =IF(dms_RPT="financial",(VALUE(LEFT(DA10,4)-1)&"-"&MID(DA10,3,2)),VALUE(LEFT(DA10,4)-1)) -> 1917-18 | DC10: =IF(dms_RPT="financial",(VALUE(LEFT(DB10,4)-1)&"-"&MID(DB10,3,2)),VALUE(LEFT(DB10,4)-1)) -> 1916-17 | DD10: =IF(dms_RPT="financial",(VALUE(LEFT(DC10,4)-1)&"-"&MID(DC10,3,2)),VALUE(LEFT(DC10,4)-1)) -> 1915-16 | DE10: =IF(dms_RPT="financial",(VALUE(LEFT(DD10,4)-1)&"-"&MID(DD10,3,2)),VALUE(LEFT(DD10,4)-1)) -> 1914-15 | DF10: =IF(dms_RPT="financial",(VALUE(LEFT(DE10,4)-1)&"-"&MID(DE10,3,2)),VALUE(LEFT(DE10,4)-1)) -> 1913-14 | DG10: =IF(dms_RPT="financial",(VALUE(LEFT(DF10,4)-1)&"-"&MID(DF10,3,2)),VALUE(LEFT(DF10,4)-1)) -> 1912-13 | DH10: =IF(dms_RPT="financial",(VALUE(LEFT(DG10,4)-1)&"-"&MID(DG10,3,2)),VALUE(LEFT(DG10,4)-1)) -> 1911-12 | DI10: =IF(dms_RPT="financial",(VALUE(LEFT(DH10,4)-1)&"-"&MID(DH10,3,2)),VALUE(LEFT(DH10,4)-1)) -> 1910-11 | DJ10: =IF(dms_RPT="financial",(VALUE(LEFT(DI10,4)-1)&"-"&MID(DI10,3,2)),VALUE(LEFT(DI10,4)-1)) -> 1909-10
B11: TRANSMISSION TOWERS Highest operating voltage; Circuit configuration | C11: < = 33 kV; Single Circuit
C12: > 33 kV & < = 66 kV ; Single Circuit | D12: 55 | E12: 7.416198487 | F12: 0 | G12: 0 | H12: 0 | I12: 0 | J12: 0 | K12: 0 | L12: 2 | M12: 0 | N12: 0 | O12: 0 | P12: 0 | Q12: 0 | R12: 2 | S12: 0 | T12: 0 | U12: 0 | V12: 0 | W12: 14 | X12: 0 | Y12: 2 | Z12: 0 | AA12: 3 | AB12: 4 | AC12: 0 | AD12: 0 | AE12: 0 | AF12: 0 | AG12: 0 | AH12: 0 | AI12: 0 | AJ12: 0 | AK12: 1 | AL12: 0 | AM12: 0 | AN12: 0 | AO12: 0 | AP12: 0 | AQ12: 0 | AR12: 0 | AS12: 0 | AT12: 0 | AU12: 0 | AV12: 0 | AW12: 0 | AX12: 0 | AY12: 0 | AZ12: 0 | BA12: 0 | BB12: 0 | BC12: 0 | BD12: 0 | BE12: 0 | BF12: 0 | BG12: 0 | BH12: 0 | BI12: 0 | BJ12: 0 | BK12: 0 | BL12: 0 | BM12: 0 | BN12: 0 | BO12: 0 | BP12: 0 | BQ12: 0 | BR12: 0 | BS12: 0 | BT12: 0 | BU12: 0 | BV12: 0 | BW12: 0 | BX12: 0 | BY12: 0 | BZ12: 0 | CA12: 0 | CB12: 0 | CC12: 0 | CD12: 0 | CE12: 0 | CF12: 0 | CG12: 0 | CH12: 0 | CI12: 0 | CJ12: 0 | CK12: 0 | CL12: 0 | CM12: 0 | CN12: 0 | CO12: 0 | CP12: 0 | CQ12: 0 | CR12: 0 | CS12: 0 | CT12: 0 | CU12: 0 | CV12: 0 | CW12: 0 | CX12: 0 | CY12: 0 | CZ12: 0 | DA12: 0 | DB12: 0 | DC12: 0 | DD12: 0 | DE12: 0 | DF12: 0 | DG12: 0 | DH12: 0 | DI12: 0 | DJ12: 0
C13: > 66 kV & < = 132 kV ; Single Circuit | D13: 55 | E13: 7.416198487 | F13: 1 | G13: 5 | H13: 0 | I13: 4 | J13: 6 | K13: 11 | L13: 9 | M13: 7 | N13: 3 | O13: 58 | P13: 254 | Q13: 1 | R13: 69 | S13: 7 | T13: 0 | U13: 13 | V13: 0 | W13: 61 | X13: 12 | Y13: 0 | Z13: 0 | AA13: 296 | AB13: 29 | AC13: 0 | AD13: 0 | AE13: 289 | AF13: 1 | AG13: 0 | AH13: 0 | AI13: 77 | AJ13: 0 | AK13: 174 | AL13: 0 | AM13: 2 | AN13: 0 | AO13: 783 | AP13: 102 | AQ13: 8 | AR13: 0 | AS13: 16 | AT13: 3 | AU13: 17 | AV13: 0 | AW13: 0 | AX13: 0 | AY13: 146 | AZ13: 0 | BA13: 19 | BB13: 833 | BC13: 102 | BD13: 220 | BE13: 791 | BF13: 0 | BG13: 0 | BH13: 0 | BI13: 287 | BJ13: 979 | BK13: 1082 | BL13: 5 | BM13: 0 | BN13: 0 | BO13: 0 | BP13: 0 | BQ13: 3 | BR13: 224 | BS13: 718 | BT13: 626 | BU13: 479 | BV13: 0 | BW13: 0 | BX13: 0 | BY13: 0 | BZ13: 0 | CA13: 0 | CB13: 0 | CC13: 0 | CD13: 0 | CE13: 0 | CF13: 0 | CG13: 0 | CH13: 0 | CI13: 0 | CJ13: 0 | CK13: 0 | CL13: 0 | CM13: 0 | CN13: 0 | CO13: 0 | CP13: 0 | CQ13: 0 | CR13: 0 | CS13: 0 | CT13: 0 | CU13: 0 | CV13: 0 | CW13: 0 | CX13: 0 | CY13: 0 | CZ13: 0 | DA13: 0 | DB13: 0 | DC13: 0 | DD13: 0 | DE13: 0 | DF13: 0 | DG13: 0 | DH13: 0 | DI13: 0 | DJ13: 0
C14: > 132 kV & < = 275 kV ; Single Circuit | D14: 55 | E14: 7.416198487 | F14: 0 | G14: 31 | H14: 4 | I14: 0 | J14: 1 | K14: 12 | L14: 0 | M14: 2 | N14: 3 | O14: 0 | P14: 2 | Q14: 3 | R14: 0 | S14: 0 | T14: 0 | U14: 0 | V14: 0 | W14: 0 | X14: 0 | Y14: 6 | Z14: 0 | AA14: 0 | AB14: 2 | AC14: 0 | AD14: 0 | AE14: 1 | AF14: 0 | AG14: 0 | AH14: 0 | AI14: 161 | AJ14: 0 | AK14: 3 | AL14: 0 | AM14: 13 | AN14: 6 | AO14: 0 | AP14: 0 | AQ14: 5 | AR14: 0 | AS14: 38 | AT14: 0 | AU14: 0 | AV14: 163 | AW14: 9 | AX14: 0 | AY14: 7 | AZ14: 0 | BA14: 0 | BB14: 0 | BC14: 40 | BD14: 134 | BE14: 4 | BF14: 0 | BG14: 6 | BH14: 0 | BI14: 1 | BJ14: 0 | BK14: 34 | BL14: 1364 | BM14: 52 | BN14: 0 | BO14: 0 | BP14: 0 | BQ14: 0 | BR14: 0 | BS14: 0 | BT14: 0 | BU14: 0 | BV14: 0 | BW14: 0 | BX14: 0 | BY14: 0 | BZ14: 0 | CA14: 0 | CB14: 0 | CC14: 0 | CD14: 0 | CE14: 0 | CF14: 0 | CG14: 0 | CH14: 0 | CI14: 0 | CJ14: 0 | CK14: 0 | CL14: 0 | CM14: 0 | CN14: 0 | CO14: 0 | CP14: 0 | CQ14: 0 | CR14: 0 | CS14: 0 | CT14: 0 | CU14: 0 | CV14: 0 | CW14: 0 | CX14: 0 | CY14: 0 | CZ14: 0 | DA14: 0 | DB14: 0 | DC14: 0 | DD14: 0 | DE14: 0 | DF14: 0 | DG14: 0 | DH14: 0 | DI14: 0 | DJ14: 0
C15: > 275 kV & < = 330 kV ; Single Circuit
C16: > 330 kV & < = 500 kV ; Single Circuit
C17: > 500 kV ; Single Circuit
C18: < = 33 kV; Multiple Circuit
C19: > 33 kV & < = 66 kV ; Multiple Circuit | D19: 55 | E19: 7.416198487 | F19: 0 | G19: 0 | H19: 0 | I19: 0 | J19: 0 | K19: 0 | L19: 0 | M19: 0 | N19: 0 | O19: 0 | P19: 0 | Q19: 0 | R19: 6 | S19: 0 | T19: 0 | U19: 0 | V19: 0 | W19: 0 | X19: 0 | Y19: 5 | Z19: 0 | AA19: 2 | AB19: 21 | AC19: 0 | AD19: 0 | AE19: 0 | AF19: 0 | AG19: 0 | AH19: 0 | AI19: 0 | AJ19: 0 | AK19: 14 | AL19: 0 | AM19: 0 | AN19: 0 | AO19: 0 | AP19: 0 | AQ19: 0 | AR19: 0 | AS19: 0 | AT19: 0 | AU19: 0 | AV19: 0 | AW19: 0 | AX19: 0 | AY19: 0 | AZ19: 0 | BA19: 0 | BB19: 0 | BC19: 0 | BD19: 0 | BE19: 0 | BF19: 0 | BG19: 0 | BH19: 0 | BI19: 0 | BJ19: 0 | BK19: 0 | BL19: 0 | BM19: 0 | BN19: 0 | BO19: 0 | BP19: 0 | BQ19: 0 | BR19: 0 | BS19: 0 | BT19: 0 | BU19: 0 | BV19: 0 | BW19: 0 | BX19: 0 | BY19: 0 | BZ19: 0 | CA19: 0 | CB19: 0 | CC19: 0 | CD19: 0 | CE19: 0 | CF19: 0 | CG19: 0 | CH19: 0 | CI19: 0 | CJ19: 0 | CK19: 0 | CL19: 0 | CM19: 0 | CN19: 0 | CO19: 0 | CP19: 0 | CQ19: 0 | CR19: 0 | CS19: 0 | CT19: 0 | CU19: 0 | CV19: 0 | CW19: 0 | CX19: 0 | CY19: 0 | CZ19: 0 | DA19: 0 | DB19: 0 | DC19: 0 | DD19: 0 | DE19: 0 | DF19: 0 | DG19: 0 | DH19: 0 | DI19: 0 | DJ19: 0
C20: > 66 kV & < = 132 kV ; Multiple Circuit | D20: 55 | E20: 7.416198487 | F20: 2 | G20: 0 | H20: 1 | I20: 0 | J20: 1 | K20: 0 | L20: 0 | M20: 8 | N20: 4 | O20: 0 | P20: 0 | Q20: 0 | R20: 28 | S20: 0 | T20: 0 | U20: 0 | V20: 0 | W20: 20 | X20: 23 | Y20: 0 | Z20: 0 | AA20: 0 | AB20: 0 | AC20: 0 | AD20: 0 | AE20: 0 | AF20: 0 | AG20: 0 | AH20: 0 | AI20: 0 | AJ20: 0 | AK20: 0 | AL20: 0 | AM20: 0 | AN20: 10 | AO20: 0 | AP20: 0 | AQ20: 0 | AR20: 16 | AS20: 0 | AT20: 0 | AU20: 0 | AV20: 0 | AW20: 0 | AX20: 0 | AY20: 7 | AZ20: 0 | BA20: 0 | BB20: 0 | BC20: 0 | BD20: 0 | BE20: 0 | BF20: 0 | BG20: 0 | BH20: 0 | BI20: 1 | BJ20: 0 | BK20: 0 | BL20: 0 | BM20: 0 | BN20: 0 | BO20: 0 | BP20: 0 | BQ20: 0 | BR20: 0 | BS20: 2 | BT20: 0 | BU20: 0 | BV20: 0 | BW20: 0 | BX20: 0 | BY20: 0 | BZ20: 0 | CA20: 0 | CB20: 0 | CC20: 0 | CD20: 0 | CE20: 0 | CF20: 0 | CG20: 0 | CH20: 0 | CI20: 0 | CJ20: 0 | CK20: 0 | CL20: 0 | CM20: 0 | CN20: 0 | CO20: 0 | CP20: 0 | CQ20: 0 | CR20: 0 | CS20: 0 | CT20: 0 | CU20: 0 | CV20: 0 | CW20: 0 | CX20: 0 | CY20: 0 | CZ20: 0 | DA20: 0 | DB20: 0 | DC20: 0 | DD20: 0 | DE20: 0 | DF20: 0 | DG20: 0 | DH20: 0 | DI20: 0 | DJ20: 0
C21: > 132 kV & < = 275 kV ; Multiple Circuit | D21: 55 | E21: 7.416198487 | F21: 0 | G21: 6 | H21: 1 | I21: 1 | J21: 1 | K21: 0 | L21: 0 | M21: 4 | N21: 0 | O21: 0 | P21: 2 | Q21: 3 | R21: 17 | S21: 0 | T21: 0 | U21: 0 | V21: 0 | W21: 0 | X21: 15 | Y21: 0 | Z21: 0 | AA21: 0 | AB21: 0 | AC21: 0 | AD21: 0 | AE21: 142 | AF21: 0 | AG21: 0 | AH21: 1 | AI21: 1050 | AJ21: 0 | AK21: 50 | AL21: 0 | AM21: 534 | AN21: 8 | AO21: 0 | AP21: 0 | AQ21: 34 | AR21: 0 | AS21: 0 | AT21: 0 | AU21: 0 | AV21: 90 | AW21: 0 | AX21: 0 | AY21: 6 | AZ21: 0 | BA21: 0 | BB21: 0 | BC21: 0 | BD21: 58 | BE21: 129 | BF21: 0 | BG21: 0 | BH21: 0 | BI21: 0 | BJ21: 0 | BK21: 0 | BL21: 0 | BM21: 0 | BN21: 0 | BO21: 0 | BP21: 0 | BQ21: 0 | BR21: 0 | BS21: 0 | BT21: 0 | BU21: 0 | BV21: 0 | BW21: 0 | BX21: 0 | BY21: 0 | BZ21: 0 | CA21: 0 | CB21: 0 | CC21: 0 | CD21: 0 | CE21: 0 | CF21: 0 | CG21: 0 | CH21: 0 | CI21: 0 | CJ21: 0 | CK21: 0 | CL21: 0 | CM21: 0 | CN21: 0 | CO21: 0 | CP21: 0 | CQ21: 0 | CR21: 0 | CS21: 0 | CT21: 0 | CU21: 0 | CV21: 0 | CW21: 0 | CX21: 0 | CY21: 0 | CZ21: 0 | DA21: 0 | DB21: 0 | DC21: 0 | DD21: 0 | DE21: 0 | DF21: 0 | DG21: 0 | DH21: 0 | DI21: 0 | DJ21: 0
C22: > 275 kV & < = 330 kV ; Multiple Circuit
C23: > 330 kV & < = 500 kV ; Multiple Circuit
C24: > 500 kV ; Multiple Circuit
C25: Other
B26: TRANSMISSION TOWER SUPPORT STRUCTURES BY: Highest operating voltage; Circuit configuration | C26: < = 33 kV; Single Circuit
C27: > 33 kV & < = 66 kV ; Single Circuit
C28: > 66 kV & < = 132 kV ; Single Circuit
C29: > 132 kV & < = 275 kV ; Single Circuit
C30: > 275 kV & < = 330 kV ; Single Circuit
C31: > 330 kV & < = 500 kV ; Single Circuit
C32: > 500 kV ; Single Circuit
C33: < = 33 kV; Multiple Circuit
C34: > 33 kV & < = 66 kV ; Multiple Circuit
C35: > 66 kV & < = 132 kV ; Multiple Circuit
C36: > 132 kV & < = 275 kV ; Multiple Circuit
C37: > 275 kV & < = 330 kV ; Multiple Circuit
C38: > 330 kV & < = 500 kV ; Multiple Circuit
C39: > 500 kV ; Multiple Circuit
C40: Other
B41: CONDUCTORS BY: Voltage; Maximum continuous rating | C41: < = 33 kV ; < = 100 MVA
C42: < = 33 kV ; > 100 MVA & < = 400 MVA
C43: < = 33 kV ; > 400 MVA
C44: > 33 kV & < = 66 kV ; < = 100 MVA | D44: 55 | E44: 7.416198487 | F44: 0 | G44: 0 | H44: 0 | I44: 0 | J44: 0 | K44: 0 | L44: 0 | M44: 0 | N44: 0 | O44: 0 | P44: 0 | Q44: 0 | R44: 0 | S44: 0 | T44: 0 | U44: 0 | V44: 0 | W44: 0 | X44: 0 | Y44: 0 | Z44: 0 | AA44: 0 | AB44: 0 | AC44: 0 | AD44: 0 | AE44: 0 | AF44: 0 | AG44: 0 | AH44: 0 | AI44: 0 | AJ44: 0 | AK44: 0 | AL44: 0 | AM44: 0 | AN44: 0 | AO44: 0 | AP44: 0 | AQ44: 0 | AR44: 0 | AS44: 0 | AT44: 0 | AU44: 0 | AV44: 0 | AW44: 0 | AX44: 0 | AY44: 0 | AZ44: 0 | BA44: 0 | BB44: 0 | BC44: 0 | BD44: 0 | BE44: 0 | BF44: 0 | BG44: 0 | BH44: 0 | BI44: 0 | BJ44: 0 | BK44: 0 | BL44: 0 | BM44: 0 | BN44: 0 | BO44: 0 | BP44: 0 | BQ44: 0 | BR44: 0 | BS44: 0 | BT44: 0 | BU44: 0 | BV44: 0 | BW44: 0 | BX44: 0 | BY44: 0 | BZ44: 0 | CA44: 0 | CB44: 0 | CC44: 0 | CD44: 0 | CE44: 0 | CF44: 0 | CG44: 0 | CH44: 0 | CI44: 0 | CJ44: 0 | CK44: 0 | CL44: 0 | CM44: 0 | CN44: 0 | CO44: 0 | CP44: 0 | CQ44: 0 | CR44: 0 | CS44: 0 | CT44: 0 | CU44: 0 | CV44: 0 | CW44: 0 | CX44: 0 | CY44: 0 | CZ44: 0 | DA44: 0 | DB44: 0 | DC44: 0 | DD44: 0 | DE44: 0 | DF44: 0 | DG44: 0 | DH44: 0 | DI44: 0 | DJ44: 0
C45: > 33 kV & < = 66 kV ; > 100 MVA & < = 400 MVA | D45: 55 | E45: 7.416198487 | F45: 0 | G45: 0 | H45: 0 | I45: 0 | J45: 0 | K45: 0 | L45: 0 | M45: 0 | N45: 0 | O45: 0 | P45: 0 | Q45: 1.126 | R45: 0 | S45: 0 | T45: 0 | U45: 0 | V45: 0 | W45: 2.641 | X45: 0 | Y45: 0 | Z45: 0 | AA45: 2.349 | AB45: 0 | AC45: 0 | AD45: 0 | AE45: 0 | AF45: 0 | AG45: 0 | AH45: 0 | AI45: 0 | AJ45: 0 | AK45: 3.4626 | AL45: 0 | AM45: 0 | AN45: 0 | AO45: 0 | AP45: 0 | AQ45: 0 | AR45: 0 | AS45: 0 | AT45: 0 | AU45: 0 | AV45: 0 | AW45: 0 | AX45: 0 | AY45: 0 | AZ45: 0 | BA45: 0 | BB45: 0 | BC45: 0 | BD45: 0 | BE45: 0 | BF45: 3.096 | BG45: 0 | BH45: 0 | BI45: 0 | BJ45: 0 | BK45: 0 | BL45: 0 | BM45: 0 | BN45: 0 | BO45: 0 | BP45: 0 | BQ45: 0 | BR45: 0 | BS45: 0 | BT45: 0 | BU45: 0 | BV45: 0 | BW45: 0 | BX45: 0 | BY45: 0 | BZ45: 0 | CA45: 0 | CB45: 0 | CC45: 0 | CD45: 0 | CE45: 0 | CF45: 0 | CG45: 0 | CH45: 0 | CI45: 0 | CJ45: 0 | CK45: 0 | CL45: 0 | CM45: 0 | CN45: 0 | CO45: 0 | CP45: 0 | CQ45: 0 | CR45: 0 | CS45: 0 | CT45: 0 | CU45: 0 | CV45: 0 | CW45: 0 | CX45: 0 | CY45: 0 | CZ45: 0 | DA45: 0 | DB45: 0 | DC45: 0 | DD45: 0 | DE45: 0 | DF45: 0 | DG45: 0 | DH45: 0 | DI45: 0 | DJ45: 0
C46: > 33 kV & < = 66 kV ; > 400 MVA
C47: > 66 kV & < = 132 kV ; < = 100 MVA | D47: 55 | E47: 7.416198487 | F47: 0 | G47: 0 | H47: 0 | I47: 0 | J47: 0 | K47: 0 | L47: 0 | M47: 0 | N47: 0 | O47: 0 | P47: 0 | Q47: 0 | R47: 0 | S47: 0 | T47: 0 | U47: 0 | V47: 0 | W47: 0 | X47: 0 | Y47: 0 | Z47: 0 | AA47: 0 | AB47: 0 | AC47: 0 | AD47: 0 | AE47: 0 | AF47: 0 | AG47: 0 | AH47: 0 | AI47: 0 | AJ47: 0 | AK47: 0 | AL47: 0 | AM47: 0.7271 | AN47: 5.246 | AO47: 0 | AP47: 0 | AQ47: 0 | AR47: 6.8 | AS47: 0 | AT47: 0 | AU47: 4.5962 | AV47: 0 | AW47: 0 | AX47: 0 | AY47: 0 | AZ47: 0 | BA47: 0 | BB47: 0 | BC47: 0 | BD47: 0 | BE47: 69.47289 | BF47: 0 | BG47: 0 | BH47: 0 | BI47: 0 | BJ47: 301.2775 | BK47: 232.564 | BL47: 0 | BM47: 0 | BN47: 0 | BO47: 0 | BP47: 0 | BQ47: 0 | BR47: 4.1557 | BS47: 16.4057 | BT47: 0 | BU47: 23.641 | BV47: 26.154 | BW47: 0 | BX47: 0 | BY47: 0 | BZ47: 0 | CA47: 0 | CB47: 0 | CC47: 0 | CD47: 0 | CE47: 0 | CF47: 0 | CG47: 0 | CH47: 0 | CI47: 0 | CJ47: 0 | CK47: 0 | CL47: 0 | CM47: 0 | CN47: 0 | CO47: 0 | CP47: 0 | CQ47: 0 | CR47: 0 | CS47: 0 | CT47: 0 | CU47: 0 | CV47: 0 | CW47: 0 | CX47: 0 | CY47: 0 | CZ47: 0 | DA47: 0 | DB47: 0 | DC47: 0 | DD47: 0 | DE47: 0 | DF47: 0 | DG47: 0 | DH47: 0 | DI47: 0 | DJ47: 0
C48: > 66 kV & < = 132 kV ; > 100 MVA & < = 400 MVA | D48: 55 | E48: 7.416198487 | F48: 0 | G48: 0 | H48: 0 | I48: 0 | J48: 0 | K48: 0 | L48: 0 | M48: 0.4957 | N48: 0 | O48: 0 | P48: 42.158112 | Q48: 24.146139 | R48: 0 | S48: 0.519 | T48: 0 | U48: 0 | V48: 0 | W48: 10.8239 | X48: 0 | Y48: 7.441 | Z48: 0 | AA48: 0 | AB48: 2.448 | AC48: 80.5854 | AD48: 0 | AE48: 90.5663 | AF48: 10.02723 | AG48: 0 | AH48: 0 | AI48: 21.06991 | AJ48: 0 | AK48: 37.275 | AL48: 0 | AM48: 0 | AN48: 1.534 | AO48: 213.2149 | AP48: 0 | AQ48: 0 | AR48: 13.036 | AS48: 0 | AT48: 0.854 | AU48: 0 | AV48: 0 | AW48: 0 | AX48: 0 | AY48: 47.3329 | AZ48: 0 | BA48: 10.123 | BB48: 351.3847 | BC48: 26.54392 | BD48: 88.04254 | BE48: 0 | BF48: 260.7436 | BG48: 0 | BH48: 0 | BI48: 116.402562 | BJ48: 47.3051 | BK48: 0 | BL48: 180.4235 | BM48: 5.5716 | BN48: 0 | BO48: 0 | BP48: 0 | BQ48: 0.336 | BR48: 0 | BS48: 92.93911 | BT48: 142.8324 | BU48: 245.1426 | BV48: 6.879 | BW48: 0 | BX48: 0 | BY48: 0 | BZ48: 0 | CA48: 0 | CB48: 0 | CC48: 0 | CD48: 0 | CE48: 0 | CF48: 0 | CG48: 0 | CH48: 0 | CI48: 0 | CJ48: 0 | CK48: 0 | CL48: 0 | CM48: 0 | CN48: 0 | CO48: 0 | CP48: 0 | CQ48: 0 | CR48: 0 | CS48: 0 | CT48: 0 | CU48: 0 | CV48: 0 | CW48: 0 | CX48: 0 | CY48: 0 | CZ48: 0 | DA48: 0 | DB48: 0 | DC48: 0 | DD48: 0 | DE48: 0 | DF48: 0 | DG48: 0 | DH48: 0 | DI48: 0 | DJ48: 0
C49: > 66 kV & < = 132 kV ; > 400 MVA
C50: > 132 kV & < = 275 kV ; < = 200 MVA
C51: > 132 kV & < = 275 kV ; > 200 MVA & < = 600 MVA | D51: 55 | E51: 7.416198487 | F51: 0 | G51: 0 | H51: 0 | I51: 0 | J51: 0 | K51: 0 | L51: 1.745665 | M51: 0 | N51: 0 | O51: 0 | P51: 0 | Q51: 0 | R51: 14.15256 | S51: 0 | T51: 0 | U51: 0 | V51: 0 | W51: 0 | X51: 8.003 | Y51: 0 | Z51: 0 | AA51: 0 | AB51: 0 | AC51: 0 | AD51: 0 | AE51: 0 | AF51: 0 | AG51: 0 | AH51: 0 | AI51: 0 | AJ51: 0 | AK51: 0 | AL51: 0 | AM51: 5.632 | AN51: 6.128 | AO51: 0 | AP51: 0 | AQ51: 0 | AR51: 0 | AS51: 9.876 | AT51: 0 | AU51: 0 | AV51: 0.8318 | AW51: 0 | AX51: 0 | AY51: 0 | AZ51: 0 | BA51: 0 | BB51: 0 | BC51: 153.7945 | BD51: 12.2776 | BE51: 0 | BF51: 0 | BG51: 0 | BH51: 0 | BI51: 0 | BJ51: 0 | BK51: 0 | BL51: 376.371528 | BM51: 0 | BN51: 0 | BO51: 0 | BP51: 0 | BQ51: 0 | BR51: 0 | BS51: 0 | BT51: 0 | BU51: 0 | BV51: 0 | BW51: 0 | BX51: 0 | BY51: 0 | BZ51: 0 | CA51: 0 | CB51: 0 | CC51: 0 | CD51: 0 | CE51: 0 | CF51: 0 | CG51: 0 | CH51: 0 | CI51: 0 | CJ51: 0 | CK51: 0 | CL51: 0 | CM51: 0 | CN51: 0 | CO51: 0 | CP51: 0 | CQ51: 0 | CR51: 0 | CS51: 0 | CT51: 0 | CU51: 0 | CV51: 0 | CW51: 0 | CX51: 0 | CY51: 0 | CZ51: 0 | DA51: 0 | DB51: 0 | DC51: 0 | DD51: 0 | DE51: 0 | DF51: 0 | DG51: 0 | DH51: 0 | DI51: 0 | DJ51: 0
C52: > 132 kV & < = 275 kV ; > 600 MVA | D52: 55 | E52: 7.416198487 | F52: 0 | G52: 0 | H52: 0 | I52: 0 | J52: 0 | K52: 0 | L52: 0 | M52: 0 | N52: 0 | O52: 0 | P52: 0 | Q52: 0 | R52: 0 | S52: 0 | T52: 0 | U52: 0 | V52: 0 | W52: 0 | X52: 0 | Y52: 10.993 | Z52: 0 | AA52: 0 | AB52: 0 | AC52: 0 | AD52: 0 | AE52: 122.69778 | AF52: 0 | AG52: 0 | AH52: 640.6857 | AI52: 200.79212 | AJ52: 0 | AK52: 32.094 | AL52: 0 | AM52: 641.2534 | AN52: 0.595 | AO52: 0 | AP52: 0 | AQ52: 23.54507 | AR52: 0 | AS52: 0 | AT52: 0 | AU52: 0 | AV52: 63.0862 | AW52: 0 | AX52: 0 | AY52: 21.798 | AZ52: 0 | BA52: 0 | BB52: 0 | BC52: 5.807645 | BD52: 128.99486 | BE52: 113.1116 | BF52: 0 | BG52: 0 | BH52: 0 | BI52: 0 | BJ52: 0 | BK52: 0 | BL52: 0 | BM52: 19.463 | BN52: 0 | BO52: 0 | BP52: 0 | BQ52: 0 | BR52: 0 | BS52: 0 | BT52: 0 | BU52: 0 | BV52: 0 | BW52: 0 | BX52: 0 | BY52: 0 | BZ52: 0 | CA52: 0 | CB52: 0 | CC52: 0 | CD52: 0 | CE52: 0 | CF52: 0 | CG52: 0 | CH52: 0 | CI52: 0 | CJ52: 0 | CK52: 0 | CL52: 0 | CM52: 0 | CN52: 0 | CO52: 0 | CP52: 0 | CQ52: 0 | CR52: 0 | CS52: 0 | CT52: 0 | CU52: 0 | CV52: 0 | CW52: 0 | CX52: 0 | CY52: 0 | CZ52: 0 | DA52: 0 | DB52: 0 | DC52: 0 | DD52: 0 | DE52: 0 | DF52: 0 | DG52: 0 | DH52: 0 | DI52: 0 | DJ52: 0
C53: > 275 kV & < = 330 kV ; < = 800 MVA
C54: > 275 kV & < = 330 kV ; > 800 MVA & < = 1200 MVA
C55: > 275 kV & < = 330 kV ; > 1200 MVA
C56: > 330 kV & < = 500 kV ; < = 1000 MVA
C57: > 330 kV & < = 500 kV ; > 1000 MVA & < = 1500 MVA
C58: > 330 kV & < = 500 kV ; > 1500 MVA
C59: > 500 kV ; < = 2000 MVA
C60: > 500 kV ; > 2000 MVA & < = 3000 MVA
C61: > 500 kV ; > 3000 MVA
C62: Other
B63: TRANSMISSION CABLES BY: Highest operating voltage; Insulation type | C63: < = 33 kV; Oil Filled
C64: > 33 kV & < = 66 kV ; Oil Filled
C65: > 66 kV & < = 132 kV ; Oil Filled
C66: > 132 kV & < = 275 kV ; Oil Filled | D66: 40 | E66: 6.32455532 | F66: 0 | G66: 0 | AN66: 7.9
C67: > 275 kV & < = 330 kV ; Oil Filled
C68: > 330 kV & < = 500 kV ; Oil Filled
C69: > 500 kV ; Oil Filled
C70: < = 33 kV; XLPE Insulated
C71: > 33 kV & < = 66 kV ; XLPE Insulated | D71: 40 | E71: 6.32455532 | F71: 0 | G71: 0 | K71: 0.3 | Q71: 0.6
C72: > 66 kV & < = 132 kV ; XLPE Insulated
C73: > 132 kV & < = 275 kV ; XLPE Insulated | D73: 40 | E73: 6.32455532 | F73: 0 | G73: 0 | L73: 18.4
C74: > 275 kV & < = 330 kV ; XLPE Insulated
C75: > 330 kV & < = 500 kV ; XLPE Insulated
C76: > 500 kV ; XLPE Insulated
C77: < = 33 kV; Other Insulated
C78: > 33 kV & < = 66 kV ; Other Insulated
C79: > 66 kV & < = 132 kV ; Other Insulated
C80: > 132 kV & < = 275 kV ; Other Insulated
C81: > 275 kV & < = 330 kV ; Other Insulated
C82: > 330 kV & < = 500 kV ; Other Insulated
C83: > 500 kV ; Other Insulated
C84: Other
B85: SUBSTATION SWITCHBAYS BY: Highest operating voltage; Switch type | C85: < = 33 kV; Air Insulated circuit Breaker | D85: 42 | E85: 6.480740698 | F85: 3 | G85: 6 | H85: 0 | I85: 0 | J85: 3 | K85: 7 | L85: 1 | M85: 6 | N85: 6 | O85: 2 | P85: 0 | Q85: 0 | R85: 6 | S85: 6 | T85: 4 | U85: 7 | V85: 2 | W85: 4 | X85: 0 | Y85: 2 | Z85: 0 | AA85: 0 | AB85: 0 | AC85: 0 | AD85: 0 | AE85: 0 | AF85: 1 | AG85: 2 | AH85: 0 | AI85: 0 | AJ85: 2 | AK85: 0 | AL85: 0 | AM85: 0 | AN85: 0 | AO85: 0 | AP85: 2 | AQ85: 0 | AR85: 0 | AS85: 0 | AT85: 0 | AU85: 0 | AV85: 0 | AW85: 0 | AX85: 0 | AY85: 0 | AZ85: 0 | BA85: 0 | BB85: 0 | BC85: 0 | BD85: 0 | BE85: 0 | BF85: 0 | BG85: 0 | BH85: 0 | BI85: 0 | BJ85: 0 | BK85: 0 | BL85: 0 | BM85: 0 | BN85: 0 | BO85: 0 | BP85: 0 | BQ85: 0 | BR85: 0 | BS85: 0 | BT85: 0 | BU85: 0 | BV85: 0 | BW85: 0 | BX85: 0 | BY85: 0 | BZ85: 0 | CA85: 0 | CB85: 0 | CC85: 0 | CD85: 0 | CE85: 0 | CF85: 0 | CG85: 0 | CH85: 0 | CI85: 0 | CJ85: 0 | CK85: 0 | CL85: 0 | CM85: 0 | CN85: 0 | CO85: 0 | CP85: 0 | CQ85: 0 | CR85: 0 | CS85: 0 | CT85: 0 | CU85: 0 | CV85: 0 | CW85: 0 | CX85: 0 | CY85: 0 | CZ85: 0 | DA85: 0 | DB85: 0 | DC85: 0 | DD85: 0 | DE85: 0 | DF85: 0 | DG85: 0 | DH85: 0 | DI85: 0 | DJ85: 0
C86: > 33 kV & < = 66 kV ; Air Insulated circuit Breaker | D86: 42 | E86: 6.480740698 | F86: 0 | G86: 0 | H86: 1 | I86: 0 | J86: 0 | K86: 1 | L86: 8 | M86: 2 | N86: 0 | O86: 0 | P86: 1 | Q86: 0 | R86: 2 | S86: 2 | T86: 0 | U86: 2 | V86: 3 | W86: 8 | X86: 2 | Y86: 0 | Z86: 23 | AA86: 0 | AB86: 0 | AC86: 0 | AD86: 0 | AE86: 1 | AF86: 0 | AG86: 0 | AH86: 0 | AI86: 2 | AJ86: 0 | AK86: 0 | AL86: 0 | AM86: 2 | AN86: 1 | AO86: 0 | AP86: 0 | AQ86: 0 | AR86: 0 | AS86: 0 | AT86: 0 | AU86: 0 | AV86: 0 | AW86: 0 | AX86: 0 | AY86: 0 | AZ86: 0 | BA86: 0 | BB86: 0 | BC86: 0 | BD86: 0 | BE86: 0 | BF86: 0 | BG86: 0 | BH86: 0 | BI86: 0 | BJ86: 0 | BK86: 0 | BL86: 0 | BM86: 0 | BN86: 0 | BO86: 0 | BP86: 0 | BQ86: 0 | BR86: 0 | BS86: 0 | BT86: 0 | BU86: 0 | BV86: 0 | BW86: 0 | BX86: 0 | BY86: 0 | BZ86: 0 | CA86: 0 | CB86: 0 | CC86: 0 | CD86: 0 | CE86: 0 | CF86: 0 | CG86: 0 | CH86: 0 | CI86: 0 | CJ86: 0 | CK86: 0 | CL86: 0 | CM86: 0 | CN86: 0 | CO86: 0 | CP86: 0 | CQ86: 0 | CR86: 0 | CS86: 0 | CT86: 0 | CU86: 0 | CV86: 0 | CW86: 0 | CX86: 0 | CY86: 0 | CZ86: 0 | DA86: 0 | DB86: 0 | DC86: 0 | DD86: 0 | DE86: 0 | DF86: 0 | DG86: 0 | DH86: 0 | DI86: 0 | DJ86: 0
C87: > 66 kV & < = 132 kV ; Air Insulated circuit Breaker | D87: 42 | E87: 6.480740698 | F87: 4 | G87: 11 | H87: 9 | I87: 1 | J87: 19 | K87: 13 | L87: 14 | M87: 4 | N87: 12 | O87: 2 | P87: 3 | Q87: 8 | R87: 11 | S87: 15 | T87: 2 | U87: 9 | V87: 8 | W87: 11 | X87: 8 | Y87: 5 | Z87: 0 | AA87: 0 | AB87: 0 | AC87: 0 | AD87: 0 | AE87: 1 | AF87: 1 | AG87: 4 | AH87: 3 | AI87: 0 | AJ87: 3 | AK87: 1 | AL87: 1 | AM87: 2 | AN87: 0 | AO87: 3 | AP87: 9 | AQ87: 0 | AR87: 0 | AS87: 0 | AT87: 0 | AU87: 0 | AV87: 0 | AW87: 0 | AX87: 0 | AY87: 0 | AZ87: 0 | BA87: 0 | BB87: 0 | BC87: 0 | BD87: 0 | BE87: 0 | BF87: 0 | BG87: 0 | BH87: 0 | BI87: 0 | BJ87: 0 | BK87: 0 | BL87: 0 | BM87: 0 | BN87: 0 | BO87: 0 | BP87: 0 | BQ87: 0 | BR87: 0 | BS87: 0 | BT87: 0 | BU87: 0 | BV87: 0 | BW87: 0 | BX87: 0 | BY87: 0 | BZ87: 0 | CA87: 0 | CB87: 0 | CC87: 0 | CD87: 0 | CE87: 0 | CF87: 0 | CG87: 0 | CH87: 0 | CI87: 0 | CJ87: 0 | CK87: 0 | CL87: 0 | CM87: 0 | CN87: 0 | CO87: 0 | CP87: 0 | CQ87: 0 | CR87: 0 | CS87: 0 | CT87: 0 | CU87: 0 | CV87: 0 | CW87: 0 | CX87: 0 | CY87: 0 | CZ87: 0 | DA87: 0 | DB87: 0 | DC87: 0 | DD87: 0 | DE87: 0 | DF87: 0 | DG87: 0 | DH87: 0 | DI87: 0 | DJ87: 0
C88: > 132 kV & < = 275 kV ; Air Insulated circuit Breaker | D88: 42 | E88: 6.480740698 | F88: 0 | G88: 5 | H88: 10 | I88: 0 | J88: 5 | K88: 4 | L88: 9 | M88: 4 | N88: 4 | O88: 1 | P88: 19 | Q88: 13 | R88: 10 | S88: 11 | T88: 6 | U88: 3 | V88: 4 | W88: 3 | X88: 9 | Y88: 1 | Z88: 0 | AA88: 0 | AB88: 0 | AC88: 3 | AD88: 0 | AE88: 3 | AF88: 1 | AG88: 0 | AH88: 0 | AI88: 0 | AJ88: 18 | AK88: 7 | AL88: 2 | AM88: 0 | AN88: 4 | AO88: 5 | AP88: 4 | AQ88: 6 | AR88: 0 | AS88: 3 | AT88: 5 | AU88: 0 | AV88: 0 | AW88: 0 | AX88: 0 | AY88: 0 | AZ88: 0 | BA88: 0 | BB88: 0 | BC88: 0 | BD88: 0 | BE88: 0 | BF88: 0 | BG88: 0 | BH88: 0 | BI88: 0 | BJ88: 0 | BK88: 0 | BL88: 0 | BM88: 0 | BN88: 0 | BO88: 0 | BP88: 0 | BQ88: 0 | BR88: 0 | BS88: 0 | BT88: 0 | BU88: 0 | BV88: 0 | BW88: 0 | BX88: 0 | BY88: 0 | BZ88: 0 | CA88: 0 | CB88: 0 | CC88: 0 | CD88: 0 | CE88: 0 | CF88: 0 | CG88: 0 | CH88: 0 | CI88: 0 | CJ88: 0 | CK88: 0 | CL88: 0 | CM88: 0 | CN88: 0 | CO88: 0 | CP88: 0 | CQ88: 0 | CR88: 0 | CS88: 0 | CT88: 0 | CU88: 0 | CV88: 0 | CW88: 0 | CX88: 0 | CY88: 0 | CZ88: 0 | DA88: 0 | DB88: 0 | DC88: 0 | DD88: 0 | DE88: 0 | DF88: 0 | DG88: 0 | DH88: 0 | DI88: 0 | DJ88: 0
C89: > 275 kV & < = 330 kV ; Air Insulated circuit Breaker
C90: > 330 kV & < = 500 kV ; Air Insulated circuit Breaker
C91: > 500 kV ; Air Insulated circuit Breaker
C92: < = 33 kV; Air Insulated Isolators / Earth Switch | D92: 44.8 | E92: 6.693280212 | F92: 7 | G92: 7 | H92: 10 | I92: 0 | J92: 3 | K92: 7 | L92: 1 | M92: 3 | N92: 3 | O92: 0 | P92: 0 | Q92: 0 | R92: 3 | S92: 0 | T92: 0 | U92: 0 | V92: 0 | W92: 0 | X92: 0 | Y92: 0 | Z92: 0 | AA92: 0 | AB92: 0 | AC92: 0 | AD92: 0 | AE92: 0 | AF92: 0 | AG92: 0 | AH92: 0 | AI92: 1 | AJ92: 1 | AK92: 0 | AL92: 0 | AM92: 2 | AN92: 0 | AO92: 0 | AP92: 4 | AQ92: 0 | AR92: 0 | AS92: 0 | AT92: 0 | AU92: 0 | AV92: 0 | AW92: 0 | AX92: 3 | AY92: 0 | AZ92: 9 | BA92: 4 | BB92: 3 | BC92: 1 | BD92: 0 | BE92: 2 | BF92: 0 | BG92: 3 | BH92: 2 | BI92: 0 | BJ92: 0 | BK92: 0 | BL92: 0 | BM92: 0 | BN92: 0 | BO92: 0 | BP92: 0 | BQ92: 0 | BR92: 0 | BS92: 0 | BT92: 0 | BU92: 0 | BV92: 0 | BW92: 0 | BX92: 0 | BY92: 0 | BZ92: 0 | CA92: 0 | CB92: 0 | CC92: 0 | CD92: 0 | CE92: 0 | CF92: 0 | CG92: 0 | CH92: 0 | CI92: 0 | CJ92: 0 | CK92: 0 | CL92: 0 | CM92: 0 | CN92: 0 | CO92: 0 | CP92: 0 | CQ92: 0 | CR92: 0 | CS92: 0 | CT92: 0 | CU92: 0 | CV92: 0 | CW92: 0 | CX92: 0 | CY92: 0 | CZ92: 0 | DA92: 0 | DB92: 0 | DC92: 0 | DD92: 0 | DE92: 0 | DF92: 0 | DG92: 0 | DH92: 0 | DI92: 0 | DJ92: 0
C93: > 33 kV & < = 66 kV ; Air Insulated Isolators / Earth Switch | D93: 44.8 | E93: 6.693280212 | F93: 0 | G93: 0 | H93: 0 | I93: 0 | J93: 0 | K93: 0 | L93: 2 | M93: 0 | N93: 0 | O93: 0 | P93: 1 | Q93: 0 | R93: 5 | S93: 1 | T93: 2 | U93: 0 | V93: 5 | W93: 0 | X93: 8 | Y93: 0 | Z93: 22 | AA93: 0 | AB93: 0 | AC93: 0 | AD93: 0 | AE93: 0 | AF93: 0 | AG93: 0 | AH93: 0 | AI93: 0 | AJ93: 0 | AK93: 0 | AL93: 8 | AM93: 0 | AN93: 0 | AO93: 1 | AP93: 0 | AQ93: 0 | AR93: 0 | AS93: 0 | AT93: 0 | AU93: 0 | AV93: 0 | AW93: 0 | AX93: 0 | AY93: 0 | AZ93: 3 | BA93: 17 | BB93: 0 | BC93: 12 | BD93: 3 | BE93: 0 | BF93: 13 | BG93: 0 | BH93: 0 | BI93: 0 | BJ93: 0 | BK93: 0 | BL93: 0 | BM93: 0 | BN93: 0 | BO93: 0 | BP93: 0 | BQ93: 0 | BR93: 0 | BS93: 0 | BT93: 0 | BU93: 0 | BV93: 0 | BW93: 0 | BX93: 0 | BY93: 0 | BZ93: 0 | CA93: 0 | CB93: 0 | CC93: 0 | CD93: 0 | CE93: 0 | CF93: 0 | CG93: 0 | CH93: 0 | CI93: 0 | CJ93: 0 | CK93: 0 | CL93: 0 | CM93: 0 | CN93: 0 | CO93: 0 | CP93: 0 | CQ93: 0 | CR93: 0 | CS93: 0 | CT93: 0 | CU93: 0 | CV93: 0 | CW93: 0 | CX93: 0 | CY93: 0 | CZ93: 0 | DA93: 0 | DB93: 0 | DC93: 0 | DD93: 0 | DE93: 0 | DF93: 0 | DG93: 0 | DH93: 0 | DI93: 0 | DJ93: 0
C94: > 66 kV & < = 132 kV ; Air Insulated Isolators / Earth Switch | D94: 44.8 | E94: 6.693280212 | F94: 8 | G94: 12 | H94: 10 | I94: 0 | J94: 33 | K94: 40 | L94: 14 | M94: 23 | N94: 29 | O94: 6 | P94: 7 | Q94: 1 | R94: 26 | S94: 48 | T94: 10 | U94: 9 | V94: 19 | W94: 0 | X94: 4 | Y94: 12 | Z94: 0 | AA94: 0 | AB94: 0 | AC94: 0 | AD94: 3 | AE94: 0 | AF94: 0 | AG94: 17 | AH94: 0 | AI94: 1 | AJ94: 7 | AK94: 8 | AL94: 17 | AM94: 3 | AN94: 1 | AO94: 14 | AP94: 11 | AQ94: 8 | AR94: 0 | AS94: 3 | AT94: 0 | AU94: 10 | AV94: 1 | AW94: 0 | AX94: 13 | AY94: 21 | AZ94: 18 | BA94: 32 | BB94: 30 | BC94: 13 | BD94: 2 | BE94: 4 | BF94: 9 | BG94: 14 | BH94: 2 | BI94: 12 | BJ94: 0 | BK94: 0 | BL94: 0 | BM94: 0 | BN94: 0 | BO94: 0 | BP94: 0 | BQ94: 0 | BR94: 1 | BS94: 0 | BT94: 0 | BU94: 0 | BV94: 0 | BW94: 0 | BX94: 0 | BY94: 0 | BZ94: 0 | CA94: 0 | CB94: 0 | CC94: 0 | CD94: 0 | CE94: 0 | CF94: 0 | CG94: 0 | CH94: 0 | CI94: 0 | CJ94: 0 | CK94: 0 | CL94: 0 | CM94: 0 | CN94: 0 | CO94: 0 | CP94: 0 | CQ94: 0 | CR94: 0 | CS94: 0 | CT94: 0 | CU94: 0 | CV94: 0 | CW94: 0 | CX94: 0 | CY94: 0 | CZ94: 0 | DA94: 0 | DB94: 0 | DC94: 0 | DD94: 0 | DE94: 0 | DF94: 0 | DG94: 0 | DH94: 0 | DI94: 0 | DJ94: 0
C95: > 132 kV & < = 275 kV ; Air Insulated Isolators / Earth Switch | D95: 44.8 | E95: 6.693280212 | F95: 0 | G95: 20 | H95: 10 | I95: 0 | J95: 20 | K95: 5 | L95: 24 | M95: 11 | N95: 3 | O95: 1 | P95: 42 | Q95: 0 | R95: 26 | S95: 9 | T95: 1 | U95: 0 | V95: 0 | W95: 2 | X95: 26 | Y95: 0 | Z95: 0 | AA95: 0 | AB95: 0 | AC95: 1 | AD95: 0 | AE95: 3 | AF95: 0 | AG95: 3 | AH95: 5 | AI95: 4 | AJ95: 38 | AK95: 25 | AL95: 0 | AM95: 0 | AN95: 13 | AO95: 20 | AP95: 0 | AQ95: 29 | AR95: 0 | AS95: 6 | AT95: 9 | AU95: 0 | AV95: 0 | AW95: 3 | AX95: 8 | AY95: 0 | AZ95: 16 | BA95: 0 | BB95: 0 | BC95: 2 | BD95: 27 | BE95: 16 | BF95: 53 | BG95: 0 | BH95: 0 | BI95: 0 | BJ95: 0 | BK95: 0 | BL95: 0 | BM95: 0 | BN95: 0 | BO95: 0 | BP95: 0 | BQ95: 0 | BR95: 0 | BS95: 14 | BT95: 0 | BU95: 0 | BV95: 0 | BW95: 0 | BX95: 0 | BY95: 0 | BZ95: 0 | CA95: 0 | CB95: 0 | CC95: 0 | CD95: 0 | CE95: 0 | CF95: 0 | CG95: 0 | CH95: 0 | CI95: 0 | CJ95: 0 | CK95: 0 | CL95: 0 | CM95: 0 | CN95: 0 | CO95: 0 | CP95: 0 | CQ95: 0 | CR95: 0 | CS95: 0 | CT95: 0 | CU95: 0 | CV95: 0 | CW95: 0 | CX95: 0 | CY95: 0 | CZ95: 0 | DA95: 0 | DB95: 0 | DC95: 0 | DD95: 0 | DE95: 0 | DF95: 0 | DG95: 0 | DH95: 0 | DI95: 0 | DJ95: 0
C96: > 275 kV & < = 330 kV ; Air Insulated Isolators / Earth Switch
C97: > 330 kV & < = 500 kV ; Air Insulated Isolators / Earth Switch
C98: > 500 kV ; Air Insulated Isolators / Earth Switch
C99: < = 33 kV; VT | D99: 39 | E99: 6.244997998 | F99: 4 | G99: 2 | H99: 2.666666667 | I99: 1.333333333 | J99: 3 | K99: 2 | L99: 4.666666667 | M99: 8.666666667 | N99: 0.6666666667 | O99: 1.666666667 | P99: 2 | Q99: 0.3333333333 | R99: 2 | S99: 3.666666667 | T99: 3.666666667 | U99: 3.333333333 | V99: 2.333333333 | W99: 0.6666666667 | X99: 1 | Y99: 0 | Z99: 0 | AA99: 0.3333333333 | AB99: 0.3333333333 | AC99: 0 | AD99: 0 | AE99: 0 | AF99: 0.6666666667 | AG99: 0 | AH99: 0 | AI99: 0 | AJ99: 0 | AK99: 0 | AL99: 0 | AM99: 0 | AN99: 0 | AO99: 1.666666667 | AP99: 0.6666666667 | AQ99: 0 | AR99: 0 | AS99: 0.3333333333 | AT99: 0 | AU99: 0 | AV99: 0 | AW99: 0 | AX99: 0 | AY99: 0 | AZ99: 1.333333333 | BA99: 0 | BB99: 0 | BC99: 0.3333333333 | BD99: 0 | BE99: 0 | BF99: 0 | BG99: 0 | BH99: 0 | BI99: 0 | BJ99: 0 | BK99: 0 | BL99: 0 | BM99: 0 | BN99: 0 | BO99: 0 | BP99: 0 | BQ99: 0 | BR99: 0 | BS99: 0 | BT99: 0 | BU99: 0 | BV99: 0 | BW99: 0 | BX99: 0 | BY99: 0 | BZ99: 0 | CA99: 0 | CB99: 0 | CC99: 0 | CD99: 0 | CE99: 0 | CF99: 0 | CG99: 0 | CH99: 0 | CI99: 0 | CJ99: 0 | CK99: 0 | CL99: 0 | CM99: 0 | CN99: 0 | CO99: 0 | CP99: 0 | CQ99: 0 | CR99: 0 | CS99: 0 | CT99: 0 | CU99: 0 | CV99: 0 | CW99: 0 | CX99: 0 | CY99: 0 | CZ99: 0 | DA99: 0 | DB99: 0 | DC99: 0 | DD99: 0 | DE99: 0 | DF99: 0 | DG99: 0 | DH99: 0 | DI99: 0 | DJ99: 0
C100: > 33 kV & < = 66 kV ; VT | D100: 39 | E100: 6.244997998 | F100: 0 | G100: 1 | H100: 3 | I100: 0 | J100: 8 | K100: 0 | L100: 1 | M100: 6 | N100: 1 | O100: 0 | P100: 1.666666667 | Q100: 0 | R100: 3 | S100: 1.666666667 | T100: 0 | U100: 0 | V100: 1.333333333 | W100: 0 | X100: 2 | Y100: 0 | Z100: 1.666666667 | AA100: 0 | AB100: 0 | AC100: 0 | AD100: 0 | AE100: 0.3333333333 | AF100: 0.6666666667 | AG100: 0 | AH100: 7.333333333 | AI100: 0 | AJ100: 1 | AK100: 0.6666666667 | AL100: 1 | AM100: 0 | AN100: 0 | AO100: 0 | AP100: 0 | AQ100: 0 | AR100: 0 | AS100: 0.6666666667 | AT100: 0 | AU100: 0 | AV100: 0 | AW100: 0 | AX100: 0 | AY100: 1 | AZ100: 0 | BA100: 0 | BB100: 0 | BC100: 0.3333333333 | BD100: 0 | BE100: 0 | BF100: 0 | BG100: 0 | BH100: 0 | BI100: 0 | BJ100: 0 | BK100: 0 | BL100: 0.3333333333 | BM100: 0 | BN100: 0 | BO100: 0 | BP100: 0 | BQ100: 0 | BR100: 0 | BS100: 0 | BT100: 0 | BU100: 0 | BV100: 0 | BW100: 0 | BX100: 0 | BY100: 0 | BZ100: 0 | CA100: 0 | CB100: 0 | CC100: 0 | CD100: 0 | CE100: 0 | CF100: 0 | CG100: 0 | CH100: 0 | CI100: 0 | CJ100: 0 | CK100: 0 | CL100: 0 | CM100: 0 | CN100: 0 | CO100: 0 | CP100: 0 | CQ100: 0 | CR100: 0 | CS100: 0 | CT100: 0 | CU100: 0 | CV100: 0 | CW100: 0 | CX100: 0 | CY100: 0 | CZ100: 0 | DA100: 0 | DB100: 0 | DC100: 0 | DD100: 0 | DE100: 0 | DF100: 0 | DG100: 0 | DH100: 0 | DI100: 0 | DJ100: 0
C101: > 66 kV & < = 132 kV ; VT | D101: 39 | E101: 6.244997998 | F101: 3 | G101: 5.333333333 | H101: 2.666666667 | I101: 2.333333333 | J101: 5.333333333 | K101: 9.666666667 | L101: 9 | M101: 6 | N101: 4 | O101: 4.333333333 | P101: 5 | Q101: 2 | R101: 10.33333333 | S101: 8.666666667 | T101: 2 | U101: 3.333333333 | V101: 13 | W101: 1.333333333 | X101: 5 | Y101: 3 | Z101: 3.666666667 | AA101: 1.666666667 | AB101: 0.3333333333 | AC101: 0 | AD101: 0 | AE101: 0 | AF101: 0 | AG101: 0 | AH101: 1.333333333 | AI101: 0 | AJ101: 1.333333333 | AK101: 1 | AL101: 0 | AM101: 2.666666667 | AN101: 1.333333333 | AO101: 1.666666667 | AP101: 0.3333333333 | AQ101: 0.6666666667 | AR101: 0 | AS101: 0 | AT101: 0 | AU101: 0.3333333333 | AV101: 0 | AW101: 0 | AX101: 0 | AY101: 1 | AZ101: 1.333333333 | BA101: 0.6666666667 | BB101: 0 | BC101: 0 | BD101: 0.6666666667 | BE101: 0.6666666667 | BF101: 0 | BG101: 0 | BH101: 0 | BI101: 0 | BJ101: 0 | BK101: 0 | BL101: 0 | BM101: 0 | BN101: 0 | BO101: 0 | BP101: 0 | BQ101: 0 | BR101: 0 | BS101: 0 | BT101: 0 | BU101: 0 | BV101: 0 | BW101: 0 | BX101: 0 | BY101: 0 | BZ101: 0 | CA101: 0 | CB101: 0 | CC101: 0 | CD101: 0 | CE101: 0 | CF101: 0 | CG101: 0 | CH101: 0 | CI101: 0 | CJ101: 0 | CK101: 0 | CL101: 0 | CM101: 0 | CN101: 0 | CO101: 0 | CP101: 0 | CQ101: 0 | CR101: 0 | CS101: 0 | CT101: 0 | CU101: 0 | CV101: 0 | CW101: 0 | CX101: 0 | CY101: 0 | CZ101: 0 | DA101: 0 | DB101: 0 | DC101: 0 | DD101: 0 | DE101: 0 | DF101: 0 | DG101: 0 | DH101: 0 | DI101: 0 | DJ101: 0
C102: > 132 kV & < = 275 kV ; VT | D102: 39 | E102: 6.244997998 | F102: 1 | G102: 3.666666667 | H102: 4 | I102: 6.666666667 | J102: 6.333333333 | K102: 0 | L102: 9.666666667 | M102: 3.333333333 | N102: 7 | O102: 1.333333333 | P102: 7.666666667 | Q102: 2.333333333 | R102: 11.33333333 | S102: 2.333333333 | T102: 0 | U102: 0 | V102: 1 | W102: 1 | X102: 5 | Y102: 4 | Z102: 1 | AA102: 2.666666667 | AB102: 0 | AC102: 0 | AD102: 0 | AE102: 0 | AF102: 1.333333333 | AG102: 0 | AH102: 1.666666667 | AI102: 0 | AJ102: 5.333333333 | AK102: 0.6666666667 | AL102: 2.666666667 | AM102: 0 | AN102: 1.666666667 | AO102: 1.333333333 | AP102: 4.666666667 | AQ102: 0 | AR102: 1.333333333 | AS102: 0.6666666667 | AT102: 1.333333333 | AU102: 0 | AV102: 0 | AW102: 0 | AX102: 0.6666666667 | AY102: 1 | AZ102: 0.3333333333 | BA102: 0.3333333333 | BB102: 0 | BC102: 1 | BD102: 0 | BE102: 0 | BF102: 0 | BG102: 0 | BH102: 0 | BI102: 0 | BJ102: 0 | BK102: 0 | BL102: 2 | BM102: 1 | BN102: 0.3333333333 | BO102: 0 | BP102: 0 | BQ102: 0 | BR102: 0 | BS102: 0 | BT102: 0 | BU102: 0 | BV102: 0 | BW102: 0 | BX102: 0 | BY102: 0 | BZ102: 0 | CA102: 0 | CB102: 0 | CC102: 0 | CD102: 0 | CE102: 0 | CF102: 0 | CG102: 0 | CH102: 0 | CI102: 0 | CJ102: 0 | CK102: 0 | CL102: 0 | CM102: 0 | CN102: 0 | CO102: 0 | CP102: 0 | CQ102: 0 | CR102: 0 | CS102: 0 | CT102: 0 | CU102: 0 | CV102: 0 | CW102: 0 | CX102: 0 | CY102: 0 | CZ102: 0 | DA102: 0 | DB102: 0 | DC102: 0 | DD102: 0 | DE102: 0 | DF102: 0 | DG102: 0 | DH102: 0 | DI102: 0 | DJ102: 0
C103: > 275 kV & < = 330 kV ; VT
C104: > 330 kV & < = 500 kV ; VT
C105: > 500 kV ; VT
C106: < = 33 kV; CT | D106: 39 | E106: 6.244997998 | F106: 9 | G106: 5.333333333 | H106: 0.6666666667 | I106: 0.6666666667 | J106: 6 | K106: 8 | L106: 11.66666667 | M106: 7 | N106: 0.6666666667 | O106: 1.333333333 | P106: 5 | Q106: 1 | R106: 2.666666667 | S106: 9.666666667 | T106: 2 | U106: 3 | V106: 6.333333333 | W106: 2 | X106: 1.333333333 | Y106: 2 | Z106: 0 | AA106: 3 | AB106: 0 | AC106: 0 | AD106: 0 | AE106: 0 | AF106: 3.333333333 | AG106: 0 | AH106: 0 | AI106: 1 | AJ106: 0 | AK106: 3 | AL106: 0.3333333333 | AM106: 0 | AN106: 0 | AO106: 2 | AP106: 0 | AQ106: 1.333333333 | AR106: 0 | AS106: 0 | AT106: 0.3333333333 | AU106: 1.333333333 | AV106: 0 | AW106: 0 | AX106: 0 | AY106: 0.3333333333 | AZ106: 3.333333333 | BA106: 0.6666666667 | BB106: 0 | BC106: 1.666666667 | BD106: 0 | BE106: 0 | BF106: 0 | BG106: 0 | BH106: 0 | BI106: 0 | BJ106: 0 | BK106: 0 | BL106: 0 | BM106: 0 | BN106: 0 | BO106: 0 | BP106: 0 | BQ106: 0 | BR106: 0 | BS106: 0 | BT106: 0 | BU106: 0 | BV106: 0 | BW106: 0 | BX106: 0 | BY106: 0 | BZ106: 0 | CA106: 0 | CB106: 0 | CC106: 0 | CD106: 0 | CE106: 0 | CF106: 0 | CG106: 0 | CH106: 0 | CI106: 0 | CJ106: 0 | CK106: 0 | CL106: 0 | CM106: 0 | CN106: 0 | CO106: 0 | CP106: 0 | CQ106: 0 | CR106: 0 | CS106: 0 | CT106: 0 | CU106: 0 | CV106: 0 | CW106: 0 | CX106: 0 | CY106: 0 | CZ106: 0 | DA106: 0 | DB106: 0 | DC106: 0 | DD106: 0 | DE106: 0 | DF106: 0 | DG106: 0 | DH106: 0 | DI106: 0 | DJ106: 0
C107: > 33 kV & < = 66 kV ; CT | D107: 39 | E107: 6.244997998 | F107: 1 | G107: 2.333333333 | H107: 7 | I107: 1.333333333 | J107: 16 | K107: 2 | L107: 3 | M107: 4.333333333 | N107: 5.333333333 | O107: 1.666666667 | P107: 1 | Q107: 1.333333333 | R107: 2.333333333 | S107: 3 | T107: 0.3333333333 | U107: 1.666666667 | V107: 1.666666667 | W107: 0 | X107: 1.333333333 | Y107: 0 | Z107: 4.666666667 | AA107: 0 | AB107: 1.666666667 | AC107: 0 | AD107: 0 | AE107: 0 | AF107: 0.6666666667 | AG107: 0 | AH107: 10.33333333 | AI107: 0 | AJ107: 1.666666667 | AK107: 2 | AL107: 2 | AM107: 0 | AN107: 0 | AO107: 1 | AP107: 0.3333333333 | AQ107: 0 | AR107: 0 | AS107: 1.333333333 | AT107: 0 | AU107: 0 | AV107: 0 | AW107: 0.6666666667 | AX107: 0 | AY107: 0 | AZ107: 0 | BA107: 0 | BB107: 0 | BC107: 0.6666666667 | BD107: 0 | BE107: 0 | BF107: 0 | BG107: 6 | BH107: 0 | BI107: 0 | BJ107: 0 | BK107: 0.3333333333 | BL107: 2.666666667 | BM107: 0 | BN107: 0 | BO107: 0 | BP107: 0 | BQ107: 0 | BR107: 0 | BS107: 0 | BT107: 0 | BU107: 0 | BV107: 0 | BW107: 0 | BX107: 0 | BY107: 0 | BZ107: 0 | CA107: 0 | CB107: 0 | CC107: 0 | CD107: 0 | CE107: 0 | CF107: 0 | CG107: 0 | CH107: 0 | CI107: 0 | CJ107: 0 | CK107: 0 | CL107: 0 | CM107: 0 | CN107: 0 | CO107: 0 | CP107: 0 | CQ107: 0 | CR107: 0 | CS107: 0 | CT107: 0 | CU107: 0 | CV107: 0 | CW107: 0 | CX107: 0 | CY107: 0 | CZ107: 0 | DA107: 0 | DB107: 0 | DC107: 0 | DD107: 0 | DE107: 0 | DF107: 0 | DG107: 0 | DH107: 0 | DI107: 0 | DJ107: 0
C108: > 66 kV & < = 132 kV ; CT | D108: 39 | E108: 6.244997998 | F108: 2 | G108: 3.333333333 | H108: 9.666666667 | I108: 4.333333333 | J108: 6 | K108: 14.66666667 | L108: 9.333333333 | M108: 7.666666667 | N108: 6.333333333 | O108: 6.333333333 | P108: 13.33333333 | Q108: 7 | R108: 14 | S108: 14 | T108: 4.333333333 | U108: 10 | V108: 16.33333333 | W108: 4.333333333 | X108: 5.333333333 | Y108: 4.666666667 | Z108: 11 | AA108: 1.333333333 | AB108: 1.333333333 | AC108: 0 | AD108: 0 | AE108: 0 | AF108: 1 | AG108: 2 | AH108: 1 | AI108: 0 | AJ108: 0 | AK108: 5.333333333 | AL108: 1 | AM108: 1 | AN108: 1.666666667 | AO108: 0 | AP108: 0 | AQ108: 0.3333333333 | AR108: 0.6666666667 | AS108: 0.3333333333 | AT108: 0.6666666667 | AU108: 1 | AV108: 1.333333333 | AW108: 0 | AX108: 0 | AY108: 1.333333333 | AZ108: 2.333333333 | BA108: 0.3333333333 | BB108: 0 | BC108: 1 | BD108: 3.333333333 | BE108: 2 | BF108: 0.3333333333 | BG108: 0 | BH108: 0 | BI108: 0 | BJ108: 0 | BK108: 0 | BL108: 0 | BM108: 0 | BN108: 0 | BO108: 0 | BP108: 0 | BQ108: 0 | BR108: 0 | BS108: 0 | BT108: 0 | BU108: 0 | BV108: 0 | BW108: 0 | BX108: 0 | BY108: 0 | BZ108: 0 | CA108: 0 | CB108: 0 | CC108: 0 | CD108: 0 | CE108: 0 | CF108: 0 | CG108: 0 | CH108: 0 | CI108: 0 | CJ108: 0 | CK108: 0 | CL108: 0 | CM108: 0 | CN108: 0 | CO108: 0 | CP108: 0 | CQ108: 0 | CR108: 0 | CS108: 0 | CT108: 0 | CU108: 0 | CV108: 0 | CW108: 0 | CX108: 0 | CY108: 0 | CZ108: 0 | DA108: 0 | DB108: 0 | DC108: 0 | DD108: 0 | DE108: 0 | DF108: 0 | DG108: 0 | DH108: 0 | DI108: 0 | DJ108: 0
C109: > 132 kV & < = 275 kV ; CT | D109: 39 | E109: 6.244997998 | F109: 4 | G109: 2.666666667 | H109: 17.33333333 | I109: 12.33333333 | J109: 13.66666667 | K109: 2 | L109: 18 | M109: 7 | N109: 14.66666667 | O109: 3.333333333 | P109: 30 | Q109: 20.33333333 | R109: 23.66666667 | S109: 6.333333333 | T109: 1.333333333 | U109: 1 | V109: 2.333333333 | W109: 1 | X109: 14.66666667 | Y109: 8 | Z109: 4 | AA109: 6.666666667 | AB109: 1 | AC109: 1 | AD109: 0 | AE109: 0 | AF109: 0.3333333333 | AG109: 1 | AH109: 7.333333333 | AI109: 0 | AJ109: 8.666666667 | AK109: 4.666666667 | AL109: 6.333333333 | AM109: 0 | AN109: 2.333333333 | AO109: 1.666666667 | AP109: 5.333333333 | AQ109: 0 | AR109: 1 | AS109: 0.6666666667 | AT109: 2.666666667 | AU109: 0 | AV109: 0 | AW109: 0 | AX109: 4 | AY109: 4 | AZ109: 1.666666667 | BA109: 0 | BB109: 0 | BC109: 1 | BD109: 0.3333333333 | BE109: 0 | BF109: 2 | BG109: 0 | BH109: 0 | BI109: 0 | BJ109: 0 | BK109: 0 | BL109: 6 | BM109: 1 | BN109: 0.6666666667 | BO109: 0 | BP109: 0 | BQ109: 0 | BR109: 0 | BS109: 0 | BT109: 0 | BU109: 0 | BV109: 0 | BW109: 0 | BX109: 0 | BY109: 0 | BZ109: 0 | CA109: 0 | CB109: 0 | CC109: 0 | CD109: 0 | CE109: 0 | CF109: 0 | CG109: 0 | CH109: 0 | CI109: 0 | CJ109: 0 | CK109: 0 | CL109: 0 | CM109: 0 | CN109: 0 | CO109: 0 | CP109: 0 | CQ109: 0 | CR109: 0 | CS109: 0 | CT109: 0 | CU109: 0 | CV109: 0 | CW109: 0 | CX109: 0 | CY109: 0 | CZ109: 0 | DA109: 0 | DB109: 0 | DC109: 0 | DD109: 0 | DE109: 0 | DF109: 0 | DG109: 0 | DH109: 0 | DI109: 0 | DJ109: 0
C110: > 275 kV & < = 330 kV ; CT
C111: > 330 kV & < = 500 kV ; CT
C112: > 500 kV ; CT
C113: < = 33 kV; GIS Module
C114: > 33 kV & < = 66 kV ; GIS Module
C115: > 66 kV & < = 132 kV ; GIS Module | D115: 44.8 | E115: 6.693280212 | J115: 0 | K115: 3 | L115: 0 | M115: 17 | N115: 0 | O115: 0 | P115: 0 | Q115: 0 | R115: 0 | S115: 0 | T115: 0 | U115: 0 | V115: 0 | W115: 0 | X115: 0 | Y115: 0 | Z115: 0 | AA115: 0 | AB115: 0 | AC115: 0 | AD115: 0 | AE115: 0 | AF115: 0 | AG115: 0 | AH115: 0 | AI115: 0 | AJ115: 0 | AK115: 0 | AL115: 0 | AM115: 0 | AN115: 0 | AO115: 0 | AP115: 0 | AQ115: 0 | AR115: 0 | AS115: 0 | AT115: 0 | AU115: 0 | AV115: 0 | AW115: 0 | AX115: 0 | AY115: 0 | AZ115: 0 | BA115: 0 | BB115: 0 | BC115: 0 | BD115: 0 | BE115: 0 | BF115: 0 | BG115: 0 | BH115: 0 | BI115: 0 | BJ115: 0 | BK115: 0 | BL115: 0 | BM115: 0 | BN115: 0 | BO115: 0 | BP115: 0 | BQ115: 0 | BR115: 0 | BS115: 0 | BT115: 0 | BU115: 0 | BV115: 0 | BW115: 0 | BX115: 0 | BY115: 0 | BZ115: 0 | CA115: 0 | CB115: 0 | CC115: 0 | CD115: 0 | CE115: 0 | CF115: 0 | CG115: 0 | CH115: 0 | CI115: 0 | CJ115: 0 | CK115: 0 | CL115: 0 | CM115: 0 | CN115: 0 | CO115: 0 | CP115: 0 | CQ115: 0 | CR115: 0 | CS115: 0 | CT115: 0 | CU115: 0 | CV115: 0 | CW115: 0 | CX115: 0 | CY115: 0 | CZ115: 0 | DA115: 0 | DB115: 0 | DC115: 0 | DD115: 0 | DE115: 0 | DF115: 0 | DG115: 0 | DH115: 0 | DI115: 0 | DJ115: 0
C116: > 132 kV & < = 275 kV ; GIS Module | D116: 44.8 | E116: 6.693280212 | J116: 0 | K116: 0 | L116: 17 | M116: 0 | N116: 0 | O116: 0 | P116: 0 | Q116: 0 | R116: 0 | S116: 0 | T116: 0 | U116: 0 | V116: 0 | W116: 0 | X116: 0 | Y116: 0 | Z116: 0 | AA116: 0 | AB116: 0 | AC116: 0 | AD116: 0 | AE116: 0 | AF116: 0 | AG116: 0 | AH116: 7 | AI116: 0 | AJ116: 1 | AK116: 10 | AL116: 0 | AM116: 0 | AN116: 0 | AO116: 3 | AP116: 0 | AQ116: 0 | AR116: 0 | AS116: 0 | AT116: 0 | AU116: 0 | AV116: 0 | AW116: 0 | AX116: 0 | AY116: 0 | AZ116: 0 | BA116: 0 | BB116: 0 | BC116: 0 | BD116: 0 | BE116: 0 | BF116: 0 | BG116: 0 | BH116: 0 | BI116: 0 | BJ116: 0 | BK116: 0 | BL116: 0 | BM116: 0 | BN116: 0 | BO116: 0 | BP116: 0 | BQ116: 0 | BR116: 0 | BS116: 0 | BT116: 0 | BU116: 0 | BV116: 0 | BW116: 0 | BX116: 0 | BY116: 0 | BZ116: 0 | CA116: 0 | CB116: 0 | CC116: 0 | CD116: 0 | CE116: 0 | CF116: 0 | CG116: 0 | CH116: 0 | CI116: 0 | CJ116: 0 | CK116: 0 | CL116: 0 | CM116: 0 | CN116: 0 | CO116: 0 | CP116: 0 | CQ116: 0 | CR116: 0 | CS116: 0 | CT116: 0 | CU116: 0 | CV116: 0 | CW116: 0 | CX116: 0 | CY116: 0 | CZ116: 0 | DA116: 0 | DB116: 0 | DC116: 0 | DD116: 0 | DE116: 0 | DF116: 0 | DG116: 0 | DH116: 0 | DI116: 0 | DJ116: 0
C117: > 275 kV & < = 330 kV ; GIS Module
C118: > 330 kV & < = 500 kV ; GIS Module
C119: > 500 kV ; GIS Module
C120: Other
B121: SUBSTATION POWER TRANSFORMERS BY: Highest operating voltage; Ampere rating | C121: < = 33 kV ; < = 10 MVA
C122: < = 33 kV ; > 10 MVA & < = 30 MVA
C123: < = 33 kV ; > 30 MVA
C124: > 33 kV & < = 66 kV ; < = 10 MVA
C125: > 33 kV & < = 66 kV ; > 10 MVA & < = 30 MVA
C126: > 33 kV & < = 66 kV ; > 30 MVA
C127: > 66 kV & < = 132 kV ; < = 30 MVA | D127: 44.8 | E127: 6.693280212 | F127: 5 | G127: 5 | H127: 5 | I127: 1 | J127: 2 | K127: 1 | L127: 1 | M127: 0 | N127: 1 | O127: 3 | P127: 1 | Q127: 0 | R127: 0 | S127: 2 | T127: 1 | U127: 0 | V127: 2 | W127: 0 | X127: 0 | Y127: 2 | Z127: 0 | AA127: 0 | AB127: 0 | AC127: 0 | AD127: 0 | AE127: 0 | AF127: 2 | AG127: 0 | AH127: 0 | AI127: 1 | AJ127: 0 | AK127: 0 | AL127: 1 | AM127: 1 | AN127: 0 | AO127: 3 | AP127: 0 | AQ127: 0 | AR127: 0 | AS127: 0 | AT127: 3 | AU127: 0 | AV127: 0 | AW127: 0 | AX127: 0 | AY127: 2 | AZ127: 0 | BA127: 1 | BB127: 6 | BC127: 0 | BD127: 0 | BE127: 1 | BF127: 5 | BG127: 0 | BH127: 0 | BI127: 3 | BJ127: 3 | BK127: 2 | BL127: 0 | BM127: 0 | BN127: 0 | BO127: 0 | BP127: 0 | BQ127: 0 | BR127: 1 | BS127: 1 | BT127: 0 | BU127: 0 | BV127: 0 | BW127: 0 | BX127: 0 | BY127: 0 | BZ127: 0 | CA127: 0 | CB127: 0 | CC127: 0 | CD127: 0 | CE127: 0 | CF127: 0 | CG127: 0 | CH127: 0 | CI127: 0 | CJ127: 0 | CK127: 0 | CL127: 0 | CM127: 0 | CN127: 0 | CO127: 0 | CP127: 0 | CQ127: 0 | CR127: 0 | CS127: 0 | CT127: 0 | CU127: 0 | CV127: 0 | CW127: 0 | CX127: 0 | CY127: 0 | CZ127: 0 | DA127: 0 | DB127: 0 | DC127: 0 | DD127: 0 | DE127: 0 | DF127: 0 | DG127: 0 | DH127: 0 | DI127: 0 | DJ127: 0
C128: > 66 kV & < = 132 kV ; > 30 MVA & < = 60 MVA | D128: 44.8 | E128: 6.693280212 | F128: 0 | G128: 0 | H128: 0 | I128: 0 | J128: 0 | K128: 0 | L128: 0 | M128: 4 | N128: 2 | O128: 0 | P128: 0 | Q128: 0 | R128: 2 | S128: 3 | T128: 2 | U128: 2 | V128: 1 | W128: 2 | X128: 1 | Y128: 1 | Z128: 0 | AA128: 0 | AB128: 0 | AC128: 0 | AD128: 0 | AE128: 0 | AF128: 0 | AG128: 0 | AH128: 0 | AI128: 0 | AJ128: 0 | AK128: 0 | AL128: 0 | AM128: 0 | AN128: 0 | AO128: 0 | AP128: 0 | AQ128: 1 | AR128: 0 | AS128: 0 | AT128: 0 | AU128: 0 | AV128: 0 | AW128: 0 | AX128: 0 | AY128: 0 | AZ128: 2 | BA128: 0 | BB128: 0 | BC128: 0 | BD128: 0 | BE128: 0 | BF128: 0 | BG128: 0 | BH128: 0 | BI128: 0 | BJ128: 0 | BK128: 0 | BL128: 0 | BM128: 0 | BN128: 0 | BO128: 0 | BP128: 0 | BQ128: 0 | BR128: 0 | BS128: 0 | BT128: 0 | BU128: 0 | BV128: 0 | BW128: 0 | BX128: 0 | BY128: 0 | BZ128: 0 | CA128: 0 | CB128: 0 | CC128: 0 | CD128: 0 | CE128: 0 | CF128: 0 | CG128: 0 | CH128: 0 | CI128: 0 | CJ128: 0 | CK128: 0 | CL128: 0 | CM128: 0 | CN128: 0 | CO128: 0 | CP128: 0 | CQ128: 0 | CR128: 0 | CS128: 0 | CT128: 0 | CU128: 0 | CV128: 0 | CW128: 0 | CX128: 0 | CY128: 0 | CZ128: 0 | DA128: 0 | DB128: 0 | DC128: 0 | DD128: 0 | DE128: 0 | DF128: 0 | DG128: 0 | DH128: 0 | DI128: 0 | DJ128: 0
C129: > 66 kV & < = 132 kV ; > 60 MVA | D129: 44.8 | E129: 6.693280212 | F129: 0 | G129: 0 | H129: 0 | I129: 0 | J129: 0 | K129: 2 | L129: 0 | M129: 0 | N129: 0 | O129: 0 | P129: 0 | Q129: 0 | R129: 0 | S129: 0 | T129: 0 | U129: 0 | V129: 0 | W129: 0 | X129: 0 | Y129: 0 | Z129: 0 | AA129: 0 | AB129: 0 | AC129: 0 | AD129: 0 | AE129: 0 | AF129: 0 | AG129: 0 | AH129: 0 | AI129: 0 | AJ129: 0 | AK129: 0 | AL129: 0 | AM129: 0 | AN129: 0 | AO129: 0 | AP129: 0 | AQ129: 0 | AR129: 0 | AS129: 0 | AT129: 0 | AU129: 0 | AV129: 0 | AW129: 0 | AX129: 0 | AY129: 0 | AZ129: 0 | BA129: 1 | BB129: 1 | BC129: 0 | BD129: 0 | BE129: 0 | BF129: 0 | BG129: 0 | BH129: 0 | BI129: 0 | BJ129: 0 | BK129: 0 | BL129: 0 | BM129: 0 | BN129: 0 | BO129: 0 | BP129: 0 | BQ129: 0 | BR129: 0 | BS129: 0 | BT129: 0 | BU129: 0 | BV129: 0 | BW129: 0 | BX129: 0 | BY129: 0 | BZ129: 0 | CA129: 0 | CB129: 0 | CC129: 0 | CD129: 0 | CE129: 0 | CF129: 0 | CG129: 0 | CH129: 0 | CI129: 0 | CJ129: 0 | CK129: 0 | CL129: 0 | CM129: 0 | CN129: 0 | CO129: 0 | CP129: 0 | CQ129: 0 | CR129: 0 | CS129: 0 | CT129: 0 | CU129: 0 | CV129: 0 | CW129: 0 | CX129: 0 | CY129: 0 | CZ129: 0 | DA129: 0 | DB129: 0 | DC129: 0 | DD129: 0 | DE129: 0 | DF129: 0 | DG129: 0 | DH129: 0 | DI129: 0 | DJ129: 0
C130: > 132 kV & < = 220 kV ; < = 50 MVA
C131: > 132 kV & < = 220 kV ; > 50 MVA & < = 100 MVA
C132: > 132 kV & < = 220 kV ; > 100 MVA
C133: > 220 kV & < = 275 kV ; < = 50 MVA | D133: 44.8 | E133: 6.693280212 | F133: 0 | G133: 0 | H133: 0 | I133: 0 | J133: 0
C134: > 220 kV & < = 275 kV ; > 50 MVA & < = 100 MVA | D134: 44.8 | E134: 6.693280212 | F134: 0 | G134: 0 | H134: 0 | I134: 0 | J134: 0 | K134: 0 | L134: 0 | M134: 0 | N134: 0 | O134: 0 | P134: 0 | Q134: 0 | R134: 0 | S134: 0 | T134: 0 | U134: 0 | V134: 0 | W134: 0 | X134: 0 | Y134: 0 | Z134: 0 | AA134: 0 | AB134: 0 | AC134: 0 | AD134: 0 | AE134: 0 | AF134: 0 | AG134: 0 | AH134: 0 | AI134: 2 | AJ134: 2 | AK134: 0 | AL134: 0 | AM134: 0 | AN134: 0 | AO134: 0 | AP134: 0 | AQ134: 0 | AR134: 0 | AS134: 0 | AT134: 0 | AU134: 0 | AV134: 0 | AW134: 0 | AX134: 0 | AY134: 0 | AZ134: 0 | BA134: 0 | BB134: 0 | BC134: 0 | BD134: 0 | BE134: 0 | BF134: 0 | BG134: 0 | BH134: 0 | BI134: 0 | BJ134: 0 | BK134: 0 | BL134: 0 | BM134: 0 | BN134: 0 | BO134: 0 | BP134: 0 | BQ134: 0 | BR134: 0 | BS134: 0 | BT134: 0 | BU134: 0 | BV134: 0 | BW134: 0 | BX134: 0 | BY134: 0 | BZ134: 0 | CA134: 0 | CB134: 0 | CC134: 0 | CD134: 0 | CE134: 0 | CF134: 0 | CG134: 0 | CH134: 0 | CI134: 0 | CJ134: 0 | CK134: 0 | CL134: 0 | CM134: 0 | CN134: 0 | CO134: 0 | CP134: 0 | CQ134: 0 | CR134: 0 | CS134: 0 | CT134: 0 | CU134: 0 | CV134: 0 | CW134: 0 | CX134: 0 | CY134: 0 | CZ134: 0 | DA134: 0 | DB134: 0 | DC134: 0 | DD134: 0 | DE134: 0 | DF134: 0 | DG134: 0 | DH134: 0 | DI134: 0 | DJ134: 0
C135: > 220 kV & < = 275 kV ; > 100 MVA | D135: 44.8 | E135: 6.693280212 | F135: 0 | G135: 0 | H135: 1 | I135: 0 | J135: 2 | K135: 0 | L135: 2 | M135: 1 | N135: 1 | O135: 0 | P135: 2 | Q135: 0 | R135: 0 | S135: 3 | T135: 2 | U135: 0 | V135: 1 | W135: 1 | X135: 1 | Y135: 0 | Z135: 0 | AA135: 0 | AB135: 0 | AC135: 1 | AD135: 1 | AE135: 0 | AF135: 0 | AG135: 1 | AH135: 0 | AI135: 0 | AJ135: 0 | AK135: 1 | AL135: 2 | AM135: 1 | AN135: 0 | AO135: 1 | AP135: 2 | AQ135: 1 | AR135: 1 | AS135: 0 | AT135: 1 | AU135: 0 | AV135: 0 | AW135: 0 | AX135: 0 | AY135: 1 | AZ135: 0 | BA135: 0 | BB135: 0 | BC135: 2 | BD135: 1 | BE135: 1 | BF135: 4 | BG135: 0 | BH135: 0 | BI135: 0 | BJ135: 0 | BK135: 0 | BL135: 0 | BM135: 0 | BN135: 0 | BO135: 0 | BP135: 0 | BQ135: 0 | BR135: 0 | BS135: 0 | BT135: 0 | BU135: 0 | BV135: 0 | BW135: 0 | BX135: 0 | BY135: 0 | BZ135: 0 | CA135: 0 | CB135: 0 | CC135: 0 | CD135: 0 | CE135: 0 | CF135: 0 | CG135: 0 | CH135: 0 | CI135: 0 | CJ135: 0 | CK135: 0 | CL135: 0 | CM135: 0 | CN135: 0 | CO135: 0 | CP135: 0 | CQ135: 0 | CR135: 0 | CS135: 0 | CT135: 0 | CU135: 0 | CV135: 0 | CW135: 0 | CX135: 0 | CY135: 0 | CZ135: 0 | DA135: 0 | DB135: 0 | DC135: 0 | DD135: 0 | DE135: 0 | DF135: 0 | DG135: 0 | DH135: 0 | DI135: 0 | DJ135: 0
C136: > 275 kV & < = 330 kV ; < = 100 MVA
C137: > 275 kV & < = 330 kV ; > 100 MVA & < = 250 MVA
C138: > 275 kV & < = 330 kV ; > 250 MVA
C139: > 330 kV & < = 500 kV ; < = 150 MVA
C140: > 330 kV & < = 500 kV ; > 150 MVA & < = 300 MVA
C141: > 330 kV & < = 500 kV ; > 300 MVA
C142: > 500 kV ; < = 1000 MVA
C143: > 500 kV ; > 1000 MVA & < = 1500 MVA
C144: > 500 kV ; > 1500 MVA
C145: Other
B146: SUBSTATION REACTIVE PLANT BY: Highest operating voltage; Function | C146: < = 33 kV; SVCS | D146: 44.8 | E146: 6.693280212
C147: > 33 kV & < = 66 kV ; SVCS | D147: 44.8 | E147: 6.693280212
C148: > 66 kV & < = 132 kV ; SVCS | D148: 44.8 | E148: 6.693280212
C149: > 132 kV & < = 275 kV ; SVCS | D149: 44.8 | E149: 6.693280212 | AI149: 2 | AJ149: 2
C150: > 275 kV & < = 330 kV ; SVCS
C151: > 330 kV & < = 500 kV ; SVCS
C152: > 500 kV ; SVCS
C153: < = 33 kV; Capacitors | D153: 44.8 | E153: 6.693280212 | F153: 0 | G153: 0 | J153: 0 | K153: 0 | L153: 0 | M153: 4 | N153: 0 | O153: 0 | P153: 0 | Q153: 0 | R153: 0 | S153: 0 | T153: 0 | U153: 0 | V153: 0 | W153: 0 | X153: 0 | Y153: 0 | Z153: 0 | AA153: 0 | AB153: 0 | AC153: 0 | AD153: 0 | AE153: 0 | AF153: 0 | AG153: 0 | AH153: 0 | AI153: 0 | AJ153: 4 | AK153: 1 | AL153: 0 | AM153: 0 | AN153: 1 | AO153: 0 | AP153: 0 | AQ153: 0 | AR153: 0 | AS153: 0 | AT153: 0 | AU153: 3 | AV153: 2 | AW153: 1 | AX153: 1 | AY153: 2 | AZ153: 0 | BA153: 2 | BB153: 1 | BC153: 0 | BD153: 0 | BE153: 0 | BF153: 0 | BG153: 0 | BH153: 0 | BI153: 0 | BJ153: 0 | BK153: 0 | BL153: 0 | BM153: 0 | BN153: 0 | BO153: 0 | BP153: 0 | BQ153: 0 | BR153: 0 | BS153: 0 | BT153: 0 | BU153: 0 | BV153: 0 | BW153: 0 | BX153: 0 | BY153: 0 | BZ153: 0 | CA153: 0 | CB153: 0 | CC153: 0 | CD153: 0 | CE153: 0 | CF153: 0 | CG153: 0 | CH153: 0 | CI153: 0 | CJ153: 0 | CK153: 0 | CL153: 0 | CM153: 0 | CN153: 0 | CO153: 0 | CP153: 0 | CQ153: 0 | CR153: 0 | CS153: 0 | CT153: 0 | CU153: 0 | CV153: 0 | CW153: 0 | CX153: 0 | CY153: 0 | CZ153: 0 | DA153: 0 | DB153: 0 | DC153: 0 | DD153: 0 | DE153: 0 | DF153: 0 | DG153: 0 | DH153: 0 | DI153: 0
C154: > 33 kV & < = 66 kV ; Capacitors | D154: 44.8 | E154: 6.693280212 | G154: 0 | J154: 0 | K154: 0 | L154: 0 | M154: 0 | N154: 0 | O154: 0 | P154: 0 | Q154: 0 | R154: 0 | S154: 0 | T154: 0 | U154: 0 | V154: 0 | W154: 0 | X154: 0 | Y154: 0 | Z154: 4 | AA154: 0 | AB154: 0 | AC154: 0 | AD154: 0 | AE154: 0 | AF154: 0 | AG154: 0 | AH154: 0 | AI154: 0 | AJ154: 0 | AK154: 0 | AL154: 0 | AM154: 0 | AN154: 0 | AO154: 0 | AP154: 2 | AQ154: 0 | AR154: 0 | AS154: 0 | AT154: 0 | AU154: 0 | AV154: 0 | AW154: 0 | AX154: 0 | AY154: 0 | AZ154: 0 | BA154: 0 | BB154: 0 | BC154: 0 | BD154: 0 | BE154: 0 | BF154: 0 | BG154: 0 | BH154: 0 | BI154: 0 | BJ154: 0 | BK154: 0 | BL154: 0 | BM154: 0 | BN154: 0 | BO154: 0 | BP154: 0 | BQ154: 0 | BR154: 0 | BS154: 0 | BT154: 0 | BU154: 0 | BV154: 0 | BW154: 0 | BX154: 0 | BY154: 0 | BZ154: 0 | CA154: 0 | CB154: 0 | CC154: 0 | CD154: 0 | CE154: 0 | CF154: 0 | CG154: 0 | CH154: 0 | CI154: 0 | CJ154: 0 | CK154: 0 | CL154: 0 | CM154: 0 | CN154: 0 | CO154: 0 | CP154: 0 | CQ154: 0 | CR154: 0 | CS154: 0 | CT154: 0 | CU154: 0 | CV154: 0 | CW154: 0 | CX154: 0 | CY154: 0 | CZ154: 0 | DA154: 0 | DB154: 0 | DC154: 0 | DD154: 0 | DE154: 0 | DF154: 0 | DG154: 0 | DH154: 0 | DI154: 0
C155: > 66 kV & < = 132 kV ; Capacitors | D155: 44.8 | E155: 6.693280212 | G155: 0 | J155: 1 | K155: 4 | L155: 0 | M155: 0 | N155: 0 | O155: 0 | P155: 0 | Q155: 0 | R155: 0 | S155: 0 | T155: 1 | U155: 0 | V155: 2 | W155: 0 | X155: 0 | Y155: 0 | Z155: 0 | AA155: 0 | AB155: 0 | AC155: 0 | AD155: 0 | AE155: 0 | AF155: 0 | AG155: 0 | AH155: 0 | AI155: 0 | AJ155: 0 | AK155: 0 | AL155: 0 | AM155: 0 | AN155: 0 | AO155: 0 | AP155: 0 | AQ155: 0 | AR155: 0 | AS155: 0 | AT155: 0 | AU155: 0 | AV155: 0 | AW155: 0 | AX155: 0 | AY155: 0 | AZ155: 0 | BA155: 0 | BB155: 0 | BC155: 0 | BD155: 0 | BE155: 0 | BF155: 0 | BG155: 0 | BH155: 0 | BI155: 0 | BJ155: 0 | BK155: 0 | BL155: 0 | BM155: 0 | BN155: 0 | BO155: 0 | BP155: 0 | BQ155: 0 | BR155: 0 | BS155: 0 | BT155: 0 | BU155: 0 | BV155: 0 | BW155: 0 | BX155: 0 | BY155: 0 | BZ155: 0 | CA155: 0 | CB155: 0 | CC155: 0 | CD155: 0 | CE155: 0 | CF155: 0 | CG155: 0 | CH155: 0 | CI155: 0 | CJ155: 0 | CK155: 0 | CL155: 0 | CM155: 0 | CN155: 0 | CO155: 0 | CP155: 0 | CQ155: 0 | CR155: 0 | CS155: 0 | CT155: 0 | CU155: 0 | CV155: 0 | CW155: 0 | CX155: 0 | CY155: 0 | CZ155: 0 | DA155: 0 | DB155: 0 | DC155: 0 | DD155: 0 | DE155: 0 | DF155: 0 | DG155: 0 | DH155: 0 | DI155: 0
C156: > 132 kV & < = 275 kV ; Capacitors | D156: 44.8 | E156: 6.693280212 | G156: 0 | J156: 0 | K156: 1 | L156: 0 | M156: 0 | N156: 0 | O156: 0 | P156: 0 | Q156: 0 | R156: 0 | S156: 1 | T156: 0 | U156: 0 | V156: 0 | W156: 1 | X156: 1 | Y156: 0 | Z156: 0 | AA156: 0 | AB156: 0 | AC156: 0 | AD156: 0 | AE156: 0 | AF156: 0 | AG156: 0 | AH156: 0 | AI156: 1 | AJ156: 2 | AK156: 0 | AL156: 0 | AM156: 0 | AN156: 0 | AO156: 0 | AP156: 0 | AQ156: 0 | AR156: 0 | AS156: 0 | AT156: 0 | AU156: 0 | AV156: 0 | AW156: 0 | AX156: 0 | AY156: 0 | AZ156: 0 | BA156: 0 | BB156: 0 | BC156: 0 | BD156: 0 | BE156: 0 | BF156: 0 | BG156: 0 | BH156: 0 | BI156: 0 | BJ156: 0 | BK156: 0 | BL156: 0 | BM156: 0 | BN156: 0 | BO156: 0 | BP156: 0 | BQ156: 0 | BR156: 0 | BS156: 0 | BT156: 0 | BU156: 0 | BV156: 0 | BW156: 0 | BX156: 0 | BY156: 0 | BZ156: 0 | CA156: 0 | CB156: 0 | CC156: 0 | CD156: 0 | CE156: 0 | CF156: 0 | CG156: 0 | CH156: 0 | CI156: 0 | CJ156: 0 | CK156: 0 | CL156: 0 | CM156: 0 | CN156: 0 | CO156: 0 | CP156: 0 | CQ156: 0 | CR156: 0 | CS156: 0 | CT156: 0 | CU156: 0 | CV156: 0 | CW156: 0 | CX156: 0 | CY156: 0 | CZ156: 0 | DA156: 0 | DB156: 0 | DC156: 0 | DD156: 0 | DE156: 0 | DF156: 0 | DG156: 0 | DH156: 0 | DI156: 0
C157: > 275 kV & < = 330 kV ; Capacitors
C158: > 330 kV & < = 500 kV ; Capacitors
C159: > 500 kV ; Capacitors
C160: < = 33 kV; Oil Filled Reactors | D160: 44.8 | E160: 6.693280212 | F160: 0 | G160: 0 | J160: 1 | K160: 1 | BG160: 4
C161: > 33 kV & < = 66 kV ; Oil Filled Reactors | D161: 44.8 | E161: 6.693280212 | F161: 0 | G161: 0
C162: > 66 kV & < = 132 kV ; Oil Filled Reactors | D162: 44.8 | E162: 6.693280212 | F162: 0 | G162: 0
C163: > 132 kV & < = 275 kV ; Oil Filled Reactors | D163: 44.8 | E163: 6.693280212 | F163: 0 | G163: 0 | H163: 1 | K163: 1 | L163: 3 | N163: 1 | AJ163: 4
C164: > 275 kV & < = 330 kV ; Oil Filled Reactors
C165: > 330 kV & < = 500 kV ; Oil Filled Reactors
C166: > 500 kV ; Oil Filled Reactors
C167: Other
B168: SCADA, NETWORK CONTROL AND PROTECTION SYSTEMS BY: Function | C168: Communications Network Assets
C169: Master Station Assets
C170: Control equipment / systems
C171: Infrastructure: protection and control
C172: Metering systems
C173: OPGW | D173: 27 | E173: 5.196152423 | F173: 11.64 | G173: 93.517 | H173: 0 | I173: 19.463 | J173: 229.01291 | K173: 22.730092 | L173: 73.657 | M173: 78.078295 | N173: 225.7249 | O173: 3.48 | P173: 42.158866 | Q173: 0 | R173: 32.860254 | S173: 67.0136 | T173: 0 | U173: 0 | V173: 3.803 | W173: 3.613 | X173: 3.698 | Y173: 1.636 | Z173: 0.615 | AA173: 0 | AB173: 0 | AC173: 0 | AD173: 0 | AE173: 0 | AF173: 0 | AG173: 0 | AH173: 0 | AI173: 0 | AJ173: 0 | AK173: 0 | AL173: 0 | AM173: 0 | AN173: 0 | AO173: 0 | AP173: 0 | AQ173: 0 | AR173: 0 | AS173: 0 | AT173: 0 | AU173: 0 | AV173: 0 | AW173: 0 | AX173: 0 | AY173: 0 | AZ173: 0 | BA173: 0 | BB173: 0 | BC173: 0 | BD173: 0 | BE173: 0 | BF173: 0 | BG173: 0 | BH173: 0 | BI173: 0 | BJ173: 0 | BK173: 0 | BL173: 0 | BM173: 0 | BN173: 0 | BO173: 0 | BP173: 0 | BQ173: 0 | BR173: 0 | BS173: 0 | BT173: 0 | BU173: 0 | BV173: 0 | BW173: 0 | BX173: 0 | BY173: 0 | BZ173: 0 | CA173: 0 | CB173: 0 | CC173: 0 | CD173: 0 | CE173: 0 | CF173: 0 | CG173: 0 | CH173: 0 | CI173: 0 | CJ173: 0 | CK173: 0 | CL173: 0 | CM173: 0 | CN173: 0 | CO173: 0 | CP173: 0 | CQ173: 0 | CR173: 0 | CS173: 0 | CT173: 0 | CU173: 0 | CV173: 0 | CW173: 0 | CX173: 0 | CY173: 0 | CZ173: 0 | DA173: 0 | DB173: 0 | DC173: 0 | DD173: 0 | DE173: 0 | DF173: 0 | DG173: 0 | DH173: 0 | DI173: 0
C174: Protection schemes / systems
C175: Site establishment | D175: 55 | E175: 7.416198487 | F175: 1 | G175: 1 | H175: 1 | I175: 0 | J175: 0 | K175: 1 | L175: 2 | M175: 2 | N175: 0 | O175: 0 | P175: 1 | Q175: 0 | R175: 1 | S175: 0 | T175: 1 | U175: 0 | V175: 0 | W175: 0 | X175: 1 | Y175: 1 | Z175: 1 | AA175: 0 | AB175: 0 | AC175: 0 | AD175: 1 | AE175: 0 | AF175: 1 | AG175: 1 | AH175: 1 | AI175: 2 | AJ175: 0 | AK175: 2 | AL175: 1 | AM175: 0 | AN175: 1 | AO175: 2 | AP175: 2 | AQ175: 1 | AR175: 1 | AS175: 3 | AT175: 2 | AU175: 4 | AV175: 1 | AW175: 0 | AX175: 2 | AY175: 1 | AZ175: 1 | BA175: 3 | BB175: 2 | BC175: 5 | BD175: 2 | BE175: 2 | BF175: 3 | BG175: 5 | BH175: 3 | BI175: 1 | BJ175: 0 | BK175: 2 | BL175: 1 | BM175: 1 | BN175: 0 | BO175: 1 | BP175: 0 | BQ175: 0 | BR175: 1 | BS175: 2 | BT175: 0 | BU175: 0 | BV175: 0 | BW175: 0 | BX175: 0 | BY175: 0 | BZ175: 0 | CA175: 0 | CB175: 0 | CC175: 0 | CD175: 0 | CE175: 0 | CF175: 0 | CG175: 0 | CH175: 0 | CI175: 0 | CJ175: 0 | CK175: 0 | CL175: 0 | CM175: 0 | CN175: 0 | CO175: 0 | CP175: 0 | CQ175: 0 | CR175: 0 | CS175: 0 | CT175: 0 | CU175: 0 | CV175: 0 | CW175: 0 | CX175: 0 | CY175: 0 | CZ175: 0 | DA175: 0 | DB175: 0 | DC175: 0 | DD175: 0 | DE175: 0 | DF175: 0 | DG175: 0 | DH175: 0 | DI175: 0
C176: Station SCADA and control systems
C177: Telecommunications Network / Systems
C178: Total secondary systems | D178: 15 | E178: 3.872983346 | F178: 16 | G178: 96 | H178: 92 | I178: 27 | J178: 199 | K178: 89 | L178: 59 | M178: 62 | N178: 55 | O178: 16 | P178: 89 | Q178: 15 | R178: 119 | S178: 50 | T178: 110 | U178: 16 | V178: 27 | W178: 8 | X178: 30 | Y178: 9 | Z178: 25 | AA178: 0 | AB178: 0 | AC178: 0 | AD178: 0 | AE178: 0 | AF178: 0 | AG178: 0 | AH178: 11 | AI178: 1 | AJ178: 12 | AK178: 8 | AL178: 7 | AM178: 19 | AN178: 1 | AO178: 55 | AP178: 5 | AQ178: 1 | AR178: 0 | AS178: 15 | AT178: 8 | AU178: 18 | AV178: 2 | AW178: 0 | AX178: 27 | AY178: 1 | AZ178: 3 | BA178: 2 | BB178: 8 | BC178: 12 | BD178: 2 | BE178: 2 | BF178: 0 | BG178: 3 | BH178: 2 | BI178: 0 | BJ178: 0 | BK178: 0 | BL178: 3 | BM178: 0 | BN178: 0 | BO178: 0 | BP178: 0 | BQ178: 0 | BR178: 0 | BS178: 0 | BT178: 0 | BU178: 0 | BV178: 0 | BW178: 0 | BX178: 0 | BY178: 0 | BZ178: 0 | CA178: 0 | CB178: 0 | CC178: 0 | CD178: 0 | CE178: 0 | CF178: 0 | CG178: 0 | CH178: 0 | CI178: 0 | CJ178: 0 | CK178: 0 | CL178: 0 | CM178: 0 | CN178: 0 | CO178: 0 | CP178: 0 | CQ178: 0 | CR178: 0 | CS178: 0 | CT178: 0 | CU178: 0 | CV178: 0 | CW178: 0 | CX178: 0 | CY178: 0 | CZ178: 0 | DA178: 0 | DB178: 0 | DC178: 0 | DD178: 0 | DE178: 0 | DF178: 0 | DG178: 0 | DH178: 0 | DI178: 0
C179: Other
B180: OTHER BY: TNSP defined
C181: Telecommunications | D181: 15 | E181: 3.872983346 | F181: 0 | G181: 1 | H181: 3 | I181: 4 | J181: 1 | K181: 1 | L181: 5 | M181: 3 | N181: 3 | O181: 6 | P181: 3 | Q181: 2 | R181: 5 | S181: 1 | T181: 3 | U181: 0 | V181: 6 | W181: 1 | X181: 0 | Y181: 1 | Z181: 0 | AA181: 0 | AB181: 1 | AC181: 1 | AD181: 1 | AE181: 0 | AF181: 1 | AG181: 1 | AH181: 2 | AI181: 4 | AJ181: 2 | AK181: 5 | AL181: 0 | AM181: 0 | AN181: 1 | AO181: 1 | AP181: 2 | AQ181: 1 | AR181: 1 | AS181: 3 | AT181: 2 | AU181: 4 | AV181: 1 | AW181: 0 | AX181: 2 | AY181: 0 | AZ181: 1 | BA181: 3 | BB181: 2 | BC181: 4 | BD181: 2 | BE181: 2 | BF181: 3 | BG181: 5 | BH181: 3 | BI181: 1 | BJ181: 0 | BK181: 2 | BL181: 1 | BM181: 1 | BN181: 0 | BO181: 1 | BP181: 0 | BQ181: 0 | BR181: 1 | BS181: 2 | BT181: 0 | BU181: 0 | BV181: 0 | BW181: 0 | BX181: 0 | BY181: 0 | BZ181: 0 | CA181: 0 | CB181: 0 | CC181: 0 | CD181: 0 | CE181: 0 | CF181: 0 | CG181: 0 | CH181: 0 | CI181: 0 | CJ181: 0 | CK181: 0 | CL181: 0 | CM181: 0 | CN181: 0 | CO181: 0 | CP181: 0 | CQ181: 0 | CR181: 0 | CS181: 0 | CT181: 0 | CU181: 0 | CV181: 0 | CW181: 0 | CX181: 0 | CY181: 0 | CZ181: 0 | DA181: 0 | DB181: 0 | DC181: 0 | DD181: 0 | DE181: 0 | DF181: 0 | DG181: 0 | DH181: 0 | DI181: 0

Sheet 5.3 MD - Network level
B1: REGULATORY REPORTING STATEMENT
B2: =INDEX(dms_TradingNameFull_List,MATCH(dms_TradingName,dms_TradingName_List)) -> ElectraNet
B3: =CONCATENATE((LOOKUP(dms_Model,dms_Model_List,dms_Worksheet_List))&" "&CRY) -> CATEGORY ANALYSIS 2017-18
B4: 5.3 MAXIMUM DEMAND AT NETWORK LEVEL
B7: 5.3.1 - RAW AND WEATHER CORRECTED COINCIDENT MD AT NETWORK LEVEL (Summed at transmission connection point)
C8: UNIT | D8: =CRY -> 2017-18
B9: Raw network coincident MD | C9: MW | D9: 2812.003652
B10: Date MD occurred | D10: 2018-01-18
B11: Half hour time period MD occurred | D11: 19:30:00
B12: Winter/summer peaking | D12: Summer
B13: Embedded generation | C13: MW | D13: 209.7222405
B14: Weather corrected (10% POE) network coincident MD | C14: MW | D14: 3032.019015
B15: Weather corrected (50% POE) network coincident MD | C15: MW | D15: 2719.74865

Sheet 5.4 MD & utilisation-Spatial
B1: REGULATORY REPORTING STATEMENT
B2: =INDEX(dms_TradingNameFull_List,MATCH(dms_TradingName,dms_TradingName_List)) -> ElectraNet
B3: =CONCATENATE((LOOKUP(dms_Model,dms_Model_List,dms_Worksheet_List))&" "&CRY) -> CATEGORY ANALYSIS 2017-18
B4: 5.4 MAXIMUM DEMAND AND UTILISATION AT SPATIAL LEVEL
B6: There is ONE table on this worksheet. It has been sub-grouped into blocks of approximately 1000 rows for ease of navigation. See the Instructions sheet on how to group or ungroup data.
B8: TABLE 5.4.1 NON-COINCIDENT & COINCIDENT MAXIMUM DEMAND
B9: CONNECTION POINT | C9: FORECASTING ELEMENTS | D9: UNIT | E9: MAX DEMAND | F9: =CRY -> 2017-18
B10: ACR | C10: Connection Point Rating | D10: MVA | E10: Non-Coincident | F10: 600
E11: Coincident | F11: 600
C12: Raw Adjusted MD | D12: MW | E12: Non-Coincident | F12: 299.8913152
E13: Coincident | F13: 291.1638769
C14: Raw Adjusted MD | D14: MVA | E14: Non-Coincident | F14: 304.7336176
E15: Coincident | F15: 292.654225
C16: Date MD occurred | E16: Non-Coincident | F16: 2018-01-19
E17: Coincident | F17: 2018-01-18
C18: Half hour time period MD occurred | E18: Non-Coincident | F18: 19:30:00
E19: Coincident | F19: 19:30:00
C20: Winter/Summer Peaking | E20: Non-Coincident | F20: Summer
E21: Coincident | F21: Summer
C22: Adjustments - Embedded generation | D22: MW | E22: Non-Coincident | F22: 0.401879827
E23: Coincident | F23: 0.247196705
C24: Weather Corrected MD 10% POE | D24: MW | E24: Non-Coincident | F24: 306.6304523
E25: Coincident | F25: 297.2064589
C26: Weather Corrected MD 10% POE | D26: MVA | E26: Non-Coincident | F26: 311.7679824
E27: Coincident | F27: 298.7245082
C28: Weather Corrected MD 50% POE | D28: MW | E28: Non-Coincident | F28: 276.4543345
E29: Coincident | F29: 267.9884891
C30: Weather Corrected MD 50% POE | D30: MVA | E30: Non-Coincident | F30: 281.0748289
E31: Coincident | F31: 269.3574995
B32: Angas Creek | C32: Connection Point Rating | D32: MVA | E32: Non-Coincident | F32: 56.6
E33: Coincident | F33: 56.6
C34: Raw Adjusted MD | D34: MW | E34: Non-Coincident | F34: 17.8913
E35: Coincident | F35: 16.2037
C36: Raw Adjusted MD | D36: MVA | E36: Non-Coincident | F36: 18.50529603
E37: Coincident | F37: 16.68123729
C38: Date MD occurred | E38: Non-Coincident | F38: 2018-02-07
E39: Coincident | F39: 2018-01-18
C40: Half hour time period MD occurred | E40: Non-Coincident | F40: 19:30:00
E41: Coincident | F41: 19:30:00
C42: Winter/Summer Peaking | E42: Non-Coincident | F42: Summer
E43: Coincident | F43: Summer
C44: Adjustments - Embedded generation | D44: MW | E44: Non-Coincident | F44: 1.31101242
E45: Coincident | F45: 1.529556443
C46: Weather Corrected MD 10% POE | D46: MW | E46: Non-Coincident | F46: 17.53266774
E47: Coincident | F47: 15.87889579
C48: Weather Corrected MD 10% POE | D48: MVA | E48: Non-Coincident | F48: 18.13435618
E49: Coincident | F49: 16.34686082
C50: Weather Corrected MD 50% POE | D50: MW | E50: Non-Coincident | F50: 16.02083387
E51: Coincident | F51: 14.50966591
C52: Weather Corrected MD 50% POE | D52: MVA | E52: Non-Coincident | F52: 16.57063899
E53: Coincident | F53: 14.93727853
B54: Ardrossan West | C54: Connection Point Rating | D54: MVA | E54: Non-Coincident | F54: 50
E55: Coincident | F55: 50
C56: Raw Adjusted MD | D56: MW | E56: Non-Coincident | F56: 9.7483
E57: Coincident | F57: 9.7483
C58: Raw Adjusted MD | D58: MVA | E58: Non-Coincident | F58: 9.860263068
E59: Coincident | F59: 9.860263068
C60: Date MD occurred | E60: Non-Coincident | F60: 2018-01-18
E61: Coincident | F61: 2018-01-18
C62: Half hour time period MD occurred | E62: Non-Coincident | F62: 19:30:00
E63: Coincident | F63: 19:30:00
C64: Winter/Summer Peaking | E64: Non-Coincident | F64: Summer
E65: Coincident | F65: Summer
C66: Adjustments - Embedded generation | D66: MW | E66: Non-Coincident | F66: 0.979565669
E67: Coincident | F67: 0.979565669
C68: Weather Corrected MD 10% POE | D68: MW | E68: Non-Coincident | F68: 8.828710059
E69: Coincident | F69: 8.828710059
C70: Weather Corrected MD 10% POE | D70: MVA | E70: Non-Coincident | F70: 8.930111275
E71: Coincident | F71: 8.930111275
C72: Weather Corrected MD 50% POE | D72: MW | E72: Non-Coincident | F72: 7.967018316
E73: Coincident | F73: 7.967018316
C74: Weather Corrected MD 50% POE | D74: MVA | E74: Non-Coincident | F74: 8.058522662
E75: Coincident | F75: 8.058522662
B76: Back Callington | C76: Connection Point Rating | D76: MVA | E76: Non-Coincident
E77: Coincident
C78: Raw Adjusted MD | D78: MW | E78: Non-Coincident
E79: Coincident
C80: Raw Adjusted MD | D80: MVA | E80: Non-Coincident
E81: Coincident
C82: Date MD occurred | E82: Non-Coincident
E83: Coincident
C84: Half hour time period MD occurred | E84: Non-Coincident
E85: Coincident
C86: Winter/Summer Peaking | E86: Non-Coincident
E87: Coincident
C88: Adjustments - Embedded generation | D88: MW | E88: Non-Coincident
E89: Coincident
C90: Weather Corrected MD 10% POE | D90: MW | E90: Non-Coincident
E91: Coincident
C92: Weather Corrected MD 10% POE | D92: MVA | E92: Non-Coincident
E93: Coincident
C94: Weather Corrected MD 50% POE | D94: MW | E94: Non-Coincident
E95: Coincident
C96: Weather Corrected MD 50% POE | D96: MVA | E96: Non-Coincident
E97: Coincident
B98: Baroota | C98: Connection Point Rating | D98: MVA | E98: Non-Coincident | F98: 11.8
E99: Coincident | F99: 11.8
C100: Raw Adjusted MD | D100: MW | E100: Non-Coincident | F100: 7.6639
E101: Coincident | F101: 7.0303
C102: Raw Adjusted MD | D102: MVA | E102: Non-Coincident | F102: 7.66928318
E103: Coincident | F103: 7.034526034
C104: Date MD occurred | E104: Non-Coincident | F104: 2018-02-08
E105: Coincident | F105: 2018-01-18
C106: Half hour time period MD occurred | E106: Non-Coincident | F106: 20:00:00
E107: Coincident | F107: 19:30:00
C108: Winter/Summer Peaking | E108: Non-Coincident | F108: Summer
E109: Coincident | F109: Summer
C110: Adjustments - Embedded generation | D110: MW | E110: Non-Coincident | F110: 0.259307769
E111: Coincident | F111: 0.644907284
C112: Weather Corrected MD 10% POE | D112: MW | E112: Non-Coincident | F112: 7.760210471
E113: Coincident | F113: 7.118648166
C114: Weather Corrected MD 10% POE | D114: MVA | E114: Non-Coincident | F114: 7.765661301
E115: Coincident | F115: 7.122927308
C116: Weather Corrected MD 50% POE | D116: MW | E116: Non-Coincident | F116: 6.985849963
E117: Coincident | F117: 6.408306605
C118: Weather Corrected MD 50% POE | D118: MVA | E118: Non-Coincident | F118: 6.990756875
E119: Coincident | F119: 6.412158749
B120: Berri | C120: Connection Point Rating | D120: MVA | E120: Non-Coincident | F120: 200.1
E121: Coincident | F121: 200.1
C122: Raw Adjusted MD | D122: MW | E122: Non-Coincident | F122: 87.5526
E123: Coincident | F123: 80.5406
C124: Raw Adjusted MD | D124: MVA | E124: Non-Coincident | F124: 89.4756792
E125: Coincident | F125: 82.50299237
C126: Date MD occurred | E126: Non-Coincident | F126: 2018-01-28
E127: Coincident | F127: 2018-01-18
C128: Half hour time period MD occurred | E128: Non-Coincident | F128: 19:30:00
E129: Coincident | F129: 19:30:00
C130: Winter/Summer Peaking | E130: Non-Coincident | F130: Summer
E131: Coincident | F131: Summer
C132: Adjustments - Embedded generation | D132: MW | E132: Non-Coincident | F132: 3.723277816
E133: Coincident | F133: 4.563236363
C134: Weather Corrected MD 10% POE | D134: MW | E134: Non-Coincident | F134: 90.42961548
E135: Coincident | F135: 83.18719819
C136: Weather Corrected MD 10% POE | D136: MVA | E136: Non-Coincident | F136: 92.41588787
E137: Coincident | F137: 85.2140756
C138: Weather Corrected MD 50% POE | D138: MW | E138: Non-Coincident | F138: 83.6687082
E139: Coincident | F139: 76.9677652
C140: Weather Corrected MD 50% POE | D140: MVA | E140: Non-Coincident | F140: 85.50647832
E141: Coincident | F141: 78.84310453
B142: Blanche | C142: Connection Point Rating | D142: MVA | E142: Non-Coincident | F142: 134.8
E143: Coincident | F143: 134.8
C144: Raw Adjusted MD | D144: MW | E144: Non-Coincident | F144: 36.0594
E145: Coincident | F145: 33.8083
C146: Raw Adjusted MD | D146: MVA | E146: Non-Coincident | F146: 37.95178633
E147: Coincident | F147: 35.47157716
C148: Date MD occurred | E148: Non-Coincident | F148: 2018-01-28
E149: Coincident | F149: 2018-01-18
C150: Half hour time period MD occurred | E150: Non-Coincident | F150: 18:00:00
E151: Coincident | F151: 19:30:00
C152: Winter/Summer Peaking | E152: Non-Coincident | F152: Summer
E153: Coincident | F153: Summer
C154: Adjustments - Embedded generation | D154: MW | E154: Non-Coincident | F154: 2.012609897
E155: Coincident | F155: 1.200434058
C156: Weather Corrected MD 10% POE | D156: MW | E156: Non-Coincident | F156: 34.87464228
E157: Coincident | F157: 32.6975038
C158: Weather Corrected MD 10% POE | D158: MVA | E158: Non-Coincident | F158: 36.70485289
E159: Coincident | F159: 34.30613279
C160: Weather Corrected MD 50% POE | D160: MW | E160: Non-Coincident | F160: 32.82351366
E161: Coincident | F161: 30.77442211
C162: Weather Corrected MD 50% POE | D162: MVA | E162: Non-Coincident | F162: 34.54608166
E163: Coincident | F163: 32.28844066
B164: Brinkworth | C164: Connection Point Rating | D164: MVA | E164: Non-Coincident | F164: 24.6
E165: Coincident | F165: 24.6
C166: Raw Adjusted MD | D166: MW | E166: Non-Coincident | F166: 4.6903
E167: Coincident | F167: 3.7885
C168: Raw Adjusted MD | D168: MVA | E168: Non-Coincident | F168: 4.69433523
E169: Coincident | F169: 3.814650582
C170: Date MD occurred | E170: Non-Coincident | F170: 2018-01-28
E171: Coincident | F171: 2018-01-18
C172: Half hour time period MD occurred | E172: Non-Coincident | F172: 18:00:00
E173: Coincident | F173: 19:30:00
C174: Winter/Summer Peaking | E174: Non-Coincident | F174: Summer
E175: Coincident | F175: Summer
C176: Adjustments - Embedded generation | D176: MW | E176: Non-Coincident | F176: 0.532479789
E177: Coincident | F177: 0.317600979
C178: Weather Corrected MD 10% POE | D178: MW | E178: Non-Coincident | F178: 4.467480523
E179: Coincident | F179: 3.608521834
C180: Weather Corrected MD 10% POE | D180: MVA | E180: Non-Coincident | F180: 4.471324053
E181: Coincident | F181: 3.633430095
C182: Weather Corrected MD 50% POE | D182: MW | E182: Non-Coincident | F182: 4.030021299
E183: Coincident | F183: 3.255172525
C184: Weather Corrected MD 50% POE | D184: MVA | E184: Non-Coincident | F184: 4.033488468
E185: Coincident | F185: 3.277641749
B186: Bungama Rural | C186: Connection Point Rating | D186: MVA | E186: Non-Coincident | F186: 64
E187: Coincident | F187: 64
C188: Raw Adjusted MD | D188: MW | E188: Non-Coincident | F188: 18.51632665
E189: Coincident | F189: 17.13302239
C190: Raw Adjusted MD | D190: MVA | E190: Non-Coincident | F190: 19.16111116
E191: Coincident | F191: 17.64292541
C192: Date MD occurred | E192: Non-Coincident | F192: 2018-01-19
E193: Coincident | F193: 2018-01-18
C194: Half hour time period MD occurred | E194: Non-Coincident | F194: 20:00:00
E195: Coincident | F195: 19:30:00
C196: Winter/Summer Peaking | E196: Non-Coincident | F196: Summer
E197: Coincident | F197: Summer
C198: Adjustments - Embedded generation | D198: MW | E198: Non-Coincident | F198: 0.427903069
E199: Coincident | F199: 0.773294635
C200: Weather Corrected MD 10% POE | D200: MW | E200: Non-Coincident | F200: 17.89656544
E201: Coincident | F201: 16.55956185
C202: Weather Corrected MD 10% POE | D202: MVA | E202: Non-Coincident | F202: 18.51976833
... 4229 more rows

Sheet Amendments
B1: NSP data amendments
B2: =INDEX(dms_TradingNameFull_List,MATCH(dms_TradingName,dms_TradingName_List)) -> ElectraNet | C2: Table | D2: Comments
